Workbook

Sheet 1. Information Sheet
U1: a | AA1: =IF(OR(F16="", F16="(if applicable)"), F14, F14 & " - " & F16) -> Entegrus Powerlines Inc. - former Chatham-Kent Hydro Service Area - Chatham-Kent
M12: Version | N12: 1.1
E14: Utility Name | F14: Entegrus Powerlines Inc. - former Chatham-Kent Hydro Service Area
E16: Service Territory | F16: Chatham-Kent
E18: Assigned EB Number | F18: EB-2014-0064
E20: Name of Contact and Title | F20: Andrya Eagen, Senior Regulatory Specialist
E22: Phone Number | F22: 519-352-6300 Ext. 243
E24: Email Address | F24: andrya.eagen@entegrus.com
E26: We are applying for rates effective | F26: 2015-05-01
E28: Rate-Setting Method | F28: Price Cap IR
A30: Please indicate in which Rate Year the Group 1 accounts were last cleared1 | F30: 2013
A32: Please indicate the last Cost of Service Re-Basing Year | F32: 2010
B35: Notes
C37: Pale green cells represent input cells.
C39: Pale blue cells represent drop-down lists. The applicant should select the appropriate item from the drop-down list.
C41: White cells contain fixed values, automatically generated values or formulae.
A44: Note: 1. Rate year of application

Sheet 2. Related Links
A13: ● | B13: Ontario Energy Board's 2015 Electricity Distribution Rates Webpage
A15: ● | B15: An updated version of Chapter 3 of the Filing Requirements for Electricity Distribution Rate Applications for 2015 rates.

Sheet 3. Rate Class Selection
A12: Select the appropriate rate classes as they appear on your most recent Board-Approved Tariff of Rates and Charges, including the MicroFit Class.
A14: How many classes are on your most recent Board-Approved Tariff of Rates and Charges? | J14: 10
A16: Select Your Rate Classes from the Blue Cells below. Please ensure that a rate class is assigned to each shaded cell.
B18: Rate Class Classification | Q18: # of duplicates
A19: 1 | B19: RESIDENTIAL | P19: =COUNTIF($B$19:$J$40, B19) -> 1 | Q19: =COUNTIF(P19:P40, 2)/2 -> 0
A20: 2 | B20: GENERAL SERVICE LESS THAN 50 KW | P20: =COUNTIF($B$19:$J$40, B20) -> 1
A21: 3 | B21: GENERAL SERVICE 50 TO 999 KW | P21: 1
A22: 4 | B22: GENERAL SERVICE INTERMEDIATE 1,000 TO 4,999 KW | P22: 1
A23: 5 | B23: INTERMEDIATE WITH SELF GENERATION | P23: 1
A24: 6 | B24: UNMETERED SCATTERED LOAD | P24: 1
A25: 7 | B25: STANDBY POWER | P25: 1
A26: 8 | B26: SENTINEL LIGHTING | P26: 1
A27: 9 | B27: STREET LIGHTING | P27: 1
A28: 10 | B28: microFIT | P28: 1
P29: 0
P30: 0
P31: 0
P32: 0
P33: 0

Sheet 4. Current Tariff Schedule
Z1: 3 | AA1: January | AB1: ≥
AA2: February
AA3: March
AA4: April
AA5: May
AA6: June
AA7: July
AA8: August
AA9: September
AA10: October
AA11: November
B12: For each class, Applicants are required to copy and paste the class descriptions (located directly under the class name) and the description of the applicability of those rates (description is found under the class name and directly under the word "APPLICATION"). By using the drop-down lists located under the column labeled "Rate Description", please select the descriptions of the rates and charges that BEST MATCHES the descriptions on your most recent Board-Approved Tariff of Rates and Charges. If the description is not found in the drop-down list, please enter the description in the green cells under the correct class exactly as it appears on the tariff. Please do not enter more than one "Service Charge" for each class for which a base monthly fixed charge applies. | AA12: December
B21: =IF(ISBLANK('1. Information Sheet'!F14), "Please Choose Distributor Name on Sheet 1", '1. Information Sheet'!F14) -> Entegrus Powerlines Inc. - former Chatham-Kent Hydro Service Area
B22: TARIFF OF RATES AND CHARGES
A24: RESIDENTIAL | B24: RESIDENTIAL Service Classification
A25: RESIDENTIAL
A26: RESIDENTIAL | B26: This classification applies to an account taking electricity at 750 volts or less and includes: 1) All services supplied to single-family dwelling units for domestic or household purposes, 2) All multi-unit residential establishments such as apartments of 6 or less units. 3) If a service supplies a combination of residential and commercial load and wiring does not permit separate metering, the classification of this customer will be determined individually by the distributor. Further servicing details are available in the distributor’s Conditions of Service.
A27: RESIDENTIAL
A28: RESIDENTIAL
A29: RESIDENTIAL
A30: RESIDENTIAL
A31: RESIDENTIAL
A32: RESIDENTIAL | B32: APPLICATION
A33: RESIDENTIAL
A34: RESIDENTIAL | B34: The application of these rates and charges shall be in accordance with the Licence of the Distributor and any Code or Order of the Board, and amendments thereto as approved by the Board, which may be applicable to the administration of this schedule.
A35: RESIDENTIAL
A36: RESIDENTIAL
A37: RESIDENTIAL | B37: No rates and charges for the distribution of electricity and charges to meet the costs of any work or service done or furnished for the purpose of the distribution of electricity shall be made except as permitted by this schedule, unless required by the Distributor’s Licence or a Code or Order of the Board, and amendments thereto as approved by the Board, or as specified herein.
A38: RESIDENTIAL
A39: RESIDENTIAL
A40: RESIDENTIAL
A41: RESIDENTIAL | B41: Unless specifically noted, this schedule does not contain any charges for the electricity commodity, be it under the Regulated Price Plan, a contract with a retailer or the wholesale market price, as applicable. In addition, the charges in the MONTHLY RATES AND CHARGES – Regulatory Component of this schedule do not apply to a customer that is an embedded wholesale market participant.
A42: RESIDENTIAL
A43: RESIDENTIAL
A44: RESIDENTIAL | B44: It should be noted that this schedule does not list any charges, assessments or credits that are required by law to be invoiced by a distributor and that are not subject to Board approval, such as the Debt Retirement Charge, the Global Adjustment, the Ontario Clean Energy Benefit and the HST.
A45: RESIDENTIAL
A46: RESIDENTIAL
A47: RESIDENTIAL
A48: RESIDENTIAL | B48: MONTHLY RATES AND CHARGES - Delivery Component (If applicable, Effective Date MUST be included in rate description)
A49: RESIDENTIAL | B49: Service Charge | H49: $ | I49: 18.71 | K49: 1_C_MSC
A50: RESIDENTIAL | B50: Rate Rider for Recovery of Smart Meter Incremental Revenue Requirement - effective until the date of the next cost of service-based rate order | H50: $ | I50: 0.28 | K50: 1_C_MSC_Rate_Rider_1
A51: RESIDENTIAL | B51: Rate Rider for Smart Metering Entity Charge - effective until October 31, 2018 | H51: $ | I51: 0.79 | K51: 1_C_SMEC | L51: 2018-10-31
A52: RESIDENTIAL | B52: Distribution Volumetric Rate | H52: $/kWh | I52: 0.0087 | K52: 1_C_VC_1
A53: RESIDENTIAL | B53: Low Voltage Service Rate | H53: $/kWh | I53: 0.0003 | K53: 1_C_LVrate
A54: RESIDENTIAL | B54: Rate Rider for Recovery of Lost Revenue Adjustment Mechanism Variance Account (LRAMVA) (2014) - effective until April 30, 2015 | H54: $/kWh | I54: 0.0001 | K54: 1_C_VC_Rate_Rider_kWh_1 | L54: 2015-04-30
A55: RESIDENTIAL | B55: Rate Rider for Application of Tax Change - effective until April 30, 2015 | H55: $/kWh | I55: -0.0002 | K55: 1_C_VC_Rate_Rider_kWh_2 | L55: 2015-04-30
A56: RESIDENTIAL | B56: Retail Transmission Rate - Network Service Rate | H56: $/kWh | I56: 0.0073 | K56: 1_C_RTSR_Network
A57: RESIDENTIAL | B57: Retail Transmission Rate - Line and Transformation Connection Service Rate | H57: $/kWh | I57: 0.0051 | K57: 1_C_RTSR_Connection
A58: RESIDENTIAL
A59: RESIDENTIAL
A60: RESIDENTIAL
A61: RESIDENTIAL
A62: RESIDENTIAL
A63: RESIDENTIAL
A64: RESIDENTIAL
A65: RESIDENTIAL
A66: RESIDENTIAL
A67: RESIDENTIAL
A68: RESIDENTIAL
A69: RESIDENTIAL
A70: RESIDENTIAL
A71: RESIDENTIAL
A72: RESIDENTIAL
A73: RESIDENTIAL
A74: RESIDENTIAL
A75: RESIDENTIAL
A76: RESIDENTIAL
A77: RESIDENTIAL
A78: RESIDENTIAL
A79: RESIDENTIAL | B79: MONTHLY RATES AND CHARGES - Regulatory Component
A80: RESIDENTIAL
A81: RESIDENTIAL | B81: Wholesale Market Service Rate | H81: $/kWh | I81: 0.0044 | K81: 1_C_WMSR
A82: RESIDENTIAL | B82: Rural or Remote Electricity Rate Protection Charge (RRRP) | H82: $/kWh | I82: 0.0013 | K82: 1_C_RRPC
A83: RESIDENTIAL | B83: Standard Supply Service - Administrative Charge (if applicable) | H83: $ | I83: 0.25 | K83: 1_C_SSS
A84: RESIDENTIAL
A87: GENERAL SERVICE LESS THAN 50 KW | B87: GENERAL SERVICE LESS THAN 50 KW Service Classification
A88: GENERAL SERVICE LESS THAN 50 KW
A89: GENERAL SERVICE LESS THAN 50 KW | B89: This classification applies to a non residential account taking electricity at 750 volts or less whose average monthly maximum demand is less than, or is forecast to be less than, 50 kW and includes multi-unit residential establishments such as apartment buildings supplied through one service (bulk-metered). Further servicing details are available in the distributor’s Conditions of Service.
A90: GENERAL SERVICE LESS THAN 50 KW
A91: GENERAL SERVICE LESS THAN 50 KW
A92: GENERAL SERVICE LESS THAN 50 KW
A93: GENERAL SERVICE LESS THAN 50 KW
A94: GENERAL SERVICE LESS THAN 50 KW
A95: GENERAL SERVICE LESS THAN 50 KW | B95: APPLICATION
A96: GENERAL SERVICE LESS THAN 50 KW
A97: GENERAL SERVICE LESS THAN 50 KW | B97: The application of these rates and charges shall be in accordance with the Licence of the Distributor and any Code or Order of the Board, and amendments thereto as approved by the Board, which may be applicable to the administration of this schedule.
A98: GENERAL SERVICE LESS THAN 50 KW
A99: GENERAL SERVICE LESS THAN 50 KW
A100: GENERAL SERVICE LESS THAN 50 KW | B100: No rates and charges for the distribution of electricity and charges to meet the costs of any work or service done or furnished for the purpose of the distribution of electricity shall be made except as permitted by this schedule, unless required by the Distributor’s Licence or a Code or Order of the Board, and amendments thereto as approved by the Board, or as specified herein.
A101: GENERAL SERVICE LESS THAN 50 KW
A102: GENERAL SERVICE LESS THAN 50 KW
A103: GENERAL SERVICE LESS THAN 50 KW
A104: GENERAL SERVICE LESS THAN 50 KW | B104: Unless specifically noted, this schedule does not contain any charges for the electricity commodity, be it under the Regulated Price Plan, a contract with a retailer or the wholesale market price, as applicable. In addition, the charges in the MONTHLY RATES AND CHARGES – Regulatory Component of this schedule do not apply to a customer that is an embedded wholesale market participant.
A105: GENERAL SERVICE LESS THAN 50 KW
A106: GENERAL SERVICE LESS THAN 50 KW
A107: GENERAL SERVICE LESS THAN 50 KW | B107: It should be noted that this schedule does not list any charges, assessments or credits that are required by law to be invoiced by a distributor and that are not subject to Board approval, such as the Debt Retirement Charge, the Global Adjustment, the Ontario Clean Energy Benefit and the HST.
A108: GENERAL SERVICE LESS THAN 50 KW
A109: GENERAL SERVICE LESS THAN 50 KW
A110: GENERAL SERVICE LESS THAN 50 KW
A111: GENERAL SERVICE LESS THAN 50 KW | B111: MONTHLY RATES AND CHARGES - Delivery Component (If applicable, Effective Date MUST be included in rate description)
A112: GENERAL SERVICE LESS THAN 50 KW | B112: Service Charge | H112: $ | I112: 34.34 | K112: 2_C_MSC
A113: GENERAL SERVICE LESS THAN 50 KW | B113: Rate Rider for Disposition of Residual Historical Smart Meter Costs - effective until April 30, 2016 | H113: $ | I113: 3.01 | K113: 2_C_MSC_Rate_Rider_1 | L113: 2016-04-30
A114: GENERAL SERVICE LESS THAN 50 KW | B114: Rate Rider for Recovery of Smart Meter Incremental Revenue Requirement - effective until the date of the next cost of service-based rate order | H114: $ | I114: 5.6 | K114: 2_C_MSC_Rate_Rider_2
A115: GENERAL SERVICE LESS THAN 50 KW | B115: Rate Rider for Smart Metering Entity Charge - effective until October 31, 2018 | H115: $ | I115: 0.79 | K115: 2_C_SMEC | L115: 2018-10-31
A116: GENERAL SERVICE LESS THAN 50 KW | B116: Distribution Volumetric Rate | H116: $/kWh | I116: 0.0116 | K116: 2_C_VC_1
A117: GENERAL SERVICE LESS THAN 50 KW | B117: Low Voltage Service Rate | H117: $/kWh | I117: 0.0003 | K117: 2_C_LVrate
A118: GENERAL SERVICE LESS THAN 50 KW | B118: Rate Rider for Recovery of Lost Revenue Adjustment Mechanism Variance Account (LRAMVA) (2014) - effective until April 30, 2015 | H118: $/kWh | I118: 0.0005 | K118: 2_C_VC_Rate_Rider_kWh_1 | L118: 2015-04-30
A119: GENERAL SERVICE LESS THAN 50 KW | B119: Rate Rider for Application of Tax Change - effective until April 30, 2015 | H119: $/kWh | I119: -0.0001 | K119: 2_C_VC_Rate_Rider_kWh_2 | L119: 2015-04-30
A120: GENERAL SERVICE LESS THAN 50 KW | B120: Retail Transmission Rate - Network Service Rate | H120: $/kWh | I120: 0.0064 | K120: 2_C_RTSR_Network
A121: GENERAL SERVICE LESS THAN 50 KW | B121: Retail Transmission Rate - Line and Transformation Connection Service Rate | H121: $/kWh | I121: 0.0045 | K121: 2_C_RTSR_Connection
A122: GENERAL SERVICE LESS THAN 50 KW
A123: GENERAL SERVICE LESS THAN 50 KW
A124: GENERAL SERVICE LESS THAN 50 KW
A125: GENERAL SERVICE LESS THAN 50 KW
A126: GENERAL SERVICE LESS THAN 50 KW
A127: GENERAL SERVICE LESS THAN 50 KW
A128: GENERAL SERVICE LESS THAN 50 KW
A129: GENERAL SERVICE LESS THAN 50 KW
A130: GENERAL SERVICE LESS THAN 50 KW
A131: GENERAL SERVICE LESS THAN 50 KW
A132: GENERAL SERVICE LESS THAN 50 KW
A133: GENERAL SERVICE LESS THAN 50 KW
A134: GENERAL SERVICE LESS THAN 50 KW
A135: GENERAL SERVICE LESS THAN 50 KW
A136: GENERAL SERVICE LESS THAN 50 KW
A137: GENERAL SERVICE LESS THAN 50 KW
A138: GENERAL SERVICE LESS THAN 50 KW
A139: GENERAL SERVICE LESS THAN 50 KW
A140: GENERAL SERVICE LESS THAN 50 KW
A141: GENERAL SERVICE LESS THAN 50 KW
A142: GENERAL SERVICE LESS THAN 50 KW | B142: MONTHLY RATES AND CHARGES - Regulatory Component
A143: GENERAL SERVICE LESS THAN 50 KW
A144: GENERAL SERVICE LESS THAN 50 KW | B144: Wholesale Market Service Rate | H144: =H81 -> $/kWh | I144: 0.0044 | K144: 2_C_WMSR
A145: GENERAL SERVICE LESS THAN 50 KW | B145: Rural or Remote Electricity Rate Protection Charge (RRRP) | H145: $/kWh | I145: 0.0013 | K145: 2_C_RRPC
A146: GENERAL SERVICE LESS THAN 50 KW | B146: Standard Supply Service - Administrative Charge (if applicable) | H146: $ | I146: 0.25 | K146: 2_C_SSS
A147: GENERAL SERVICE LESS THAN 50 KW
A150: GENERAL SERVICE 50 TO 999 KW | B150: GENERAL SERVICE 50 TO 999 KW Service Classification
A151: GENERAL SERVICE 50 TO 999 KW
A152: GENERAL SERVICE 50 TO 999 KW | B152: This classification applies to a non residential account whose average monthly maximum demand used for billing purposes is equal to or greater than, or is forecast to be equal to or greater than, 50 kW but less than 1,000 kW. Note that for the application of the Retail Transmission Rate – Network Service Rate and the Retail Transmission Rate – Line and Transformation Connection Service Rate the following sub-classifications apply: General Service 50 to 999 kW non-interval metered General Service 50 to 999 kW interval metered Further servicing details are available in the distributor’s Conditions of Service.
A153: GENERAL SERVICE 50 TO 999 KW
A154: GENERAL SERVICE 50 TO 999 KW
A155: GENERAL SERVICE 50 TO 999 KW
A156: GENERAL SERVICE 50 TO 999 KW
A157: GENERAL SERVICE 50 TO 999 KW
A158: GENERAL SERVICE 50 TO 999 KW | B158: APPLICATION
A159: GENERAL SERVICE 50 TO 999 KW
A160: GENERAL SERVICE 50 TO 999 KW | B160: The application of these rates and charges shall be in accordance with the Licence of the Distributor and any Code or Order of the Board, and amendments thereto as approved by the Board, which may be applicable to the administration of this schedule.
A161: GENERAL SERVICE 50 TO 999 KW
A162: GENERAL SERVICE 50 TO 999 KW
A163: GENERAL SERVICE 50 TO 999 KW | B163: No rates and charges for the distribution of electricity and charges to meet the costs of any work or service done or furnished for the purpose of the distribution of electricity shall be made except as permitted by this schedule, unless required by the Distributor’s Licence or a Code or Order of the Board, and amendments thereto as approved by the Board, or as specified herein.
A164: GENERAL SERVICE 50 TO 999 KW
A165: GENERAL SERVICE 50 TO 999 KW
A166: GENERAL SERVICE 50 TO 999 KW
A167: GENERAL SERVICE 50 TO 999 KW | B167: Unless specifically noted, this schedule does not contain any charges for the electricity commodity, be it under the Regulated Price Plan, a contract with a retailer or the wholesale market price, as applicable. In addition, the charges in the MONTHLY RATES AND CHARGES – Regulatory Component of this schedule do not apply to a customer that is an embedded wholesale market participant.
A168: GENERAL SERVICE 50 TO 999 KW
A169: GENERAL SERVICE 50 TO 999 KW
A170: GENERAL SERVICE 50 TO 999 KW | B170: It should be noted that this schedule does not list any charges, assessments or credits that are required by law to be invoiced by a distributor and that are not subject to Board approval, such as the Debt Retirement Charge, the Global Adjustment, the Ontario Clean Energy Benefit and the HST.
A171: GENERAL SERVICE 50 TO 999 KW
A172: GENERAL SERVICE 50 TO 999 KW
A173: GENERAL SERVICE 50 TO 999 KW
A174: GENERAL SERVICE 50 TO 999 KW | B174: MONTHLY RATES AND CHARGES - Delivery Component (If applicable, Effective Date MUST be included in rate description)
A175: GENERAL SERVICE 50 TO 999 KW | B175: Service Charge | H175: $ | I175: 121.1 | K175: 3_C_MSC
A176: GENERAL SERVICE 50 TO 999 KW | B176: Rate Rider for Recovery of Smart Meter Incremental Revenue Requirement - in effect until the effective date of the next cost of service-based rate order | H176: $ | I176: 11.31 | K176: 3_C_MSC_Rate_Rider_1
A177: GENERAL SERVICE 50 TO 999 KW | B177: Distribution Volumetric Rate | H177: $/kW | I177: 3.4329 | K177: 3_C_VC_1
A178: GENERAL SERVICE 50 TO 999 KW | B178: Low Voltage Service Rate | H178: $/kW | I178: 0.1295 | K178: 3_C_LVrate
A179: GENERAL SERVICE 50 TO 999 KW | B179: Rate Rider for Recovery of Lost Revenue Adjustment Mechanism Variance Account (LRAMVA) (2014) - effective until April 30, 2015 | H179: $/kW | I179: 0.0279 | K179: 3_C_VC_Rate_Rider_kW_1 | L179: 2015-04-30
A180: GENERAL SERVICE 50 TO 999 KW | B180: Rate Rider for Application of Tax Change - effective until April 30, 2015 | H180: $/kW | I180: -0.0238 | K180: 3_C_VC_Rate_Rider_kW_2 | L180: 2015-04-30
A181: GENERAL SERVICE 50 TO 999 KW | B181: Retail Transmission Rate - Network Service Rate | H181: $/kW | I181: 2.6952 | K181: 3_C_RTSR_Network
A182: GENERAL SERVICE 50 TO 999 KW | B182: Retail Transmission Rate - Line and Transformation Connection Service Rate | H182: $/kW | I182: 1.8182 | K182: 3_C_RTSR_Connection
A183: GENERAL SERVICE 50 TO 999 KW | B183: Retail Transmission Rate - Network Service Rate - Interval Metered | H183: $/kW | I183: 2.8582 | K183: 3_C_RTSR_Network_Interval
A184: GENERAL SERVICE 50 TO 999 KW | B184: Retail Transmission Rate - Line and Transformation Connection Service Rate - Interval Metered | H184: $/kW | I184: 1.9905 | K184: 3_C_RTSR_Connection_Interval
A185: GENERAL SERVICE 50 TO 999 KW
A186: GENERAL SERVICE 50 TO 999 KW
A187: GENERAL SERVICE 50 TO 999 KW
A188: GENERAL SERVICE 50 TO 999 KW
A189: GENERAL SERVICE 50 TO 999 KW
A190: GENERAL SERVICE 50 TO 999 KW
A191: GENERAL SERVICE 50 TO 999 KW
A192: GENERAL SERVICE 50 TO 999 KW
A193: GENERAL SERVICE 50 TO 999 KW
A194: GENERAL SERVICE 50 TO 999 KW
A195: GENERAL SERVICE 50 TO 999 KW
A196: GENERAL SERVICE 50 TO 999 KW
A197: GENERAL SERVICE 50 TO 999 KW
A198: GENERAL SERVICE 50 TO 999 KW
A199: GENERAL SERVICE 50 TO 999 KW
A200: GENERAL SERVICE 50 TO 999 KW
A201: GENERAL SERVICE 50 TO 999 KW
A202: GENERAL SERVICE 50 TO 999 KW
A203: GENERAL SERVICE 50 TO 999 KW
A204: GENERAL SERVICE 50 TO 999 KW
A205: GENERAL SERVICE 50 TO 999 KW | B205: MONTHLY RATES AND CHARGES - Regulatory Component
A206: GENERAL SERVICE 50 TO 999 KW
A207: GENERAL SERVICE 50 TO 999 KW | B207: Wholesale Market Service Rate | H207: =H81 -> $/kWh | I207: 0.0044 | K207: 3_C_WMSR
A208: GENERAL SERVICE 50 TO 999 KW | B208: Rural or Remote Electricity Rate Protection Charge (RRRP) | H208: $/kWh | I208: 0.0013 | K208: 3_C_RRPC
A209: GENERAL SERVICE 50 TO 999 KW | B209: Standard Supply Service - Administrative Charge (if applicable) | H209: $ | I209: 0.25 | K209: 3_C_SSS
A210: GENERAL SERVICE 50 TO 999 KW
A213: GENERAL SERVICE INTERMEDIATE 1,000 TO 4,999 KW | B213: GENERAL SERVICE INTERMEDIATE 1,000 TO 4,999 KW Service Classification
A214: GENERAL SERVICE INTERMEDIATE 1,000 TO 4,999 KW
A215: GENERAL SERVICE INTERMEDIATE 1,000 TO 4,999 KW | B215: This classification applies to a non residential account whose average monthly maximum demand used for billing purposes is equal to or greater than, or is forecast to be equal to or greater than, 1,000 kW but less than 5,000 kW. This classification includes the former Time-of-Use Chatham classification customers, the former Large Use classification customers and the former General Service > 50 kW classification customers with loads between 1,000 and 4,999 kW. Further servicing details are available in the distributor’s Conditions of Service.
... 418 more rows

Sheet 4. Hidden (hidden)
M1: Current Rate Classes | N1: Changed to Rate Classes | O1: Values in A that are NOT in B | P1: Values in B that are Not in A | Q1: Count of A | R1: Count of B
M2: RESIDENTIAL | N2: RESIDENTIAL | Q2: 10 | R2: 10
M3: GENERAL SERVICE LESS THAN 50 KW | N3: GENERAL SERVICE LESS THAN 50 KW
M4: GENERAL SERVICE 50 TO 999 KW | N4: GENERAL SERVICE 50 TO 999 KW
M5: GENERAL SERVICE INTERMEDIATE 1,000 TO 4,999 KW | N5: GENERAL SERVICE INTERMEDIATE 1,000 TO 4,999 KW
M6: INTERMEDIATE WITH SELF GENERATION | N6: INTERMEDIATE WITH SELF GENERATION
M7: UNMETERED SCATTERED LOAD | N7: UNMETERED SCATTERED LOAD
M8: STANDBY POWER | N8: STANDBY POWER
M9: SENTINEL LIGHTING | N9: SENTINEL LIGHTING
M10: STREET LIGHTING | N10: STREET LIGHTING
M11: microFIT | N11: microFIT
A24: RESIDENTIAL | B24: RESIDENTIAL Service Classification
A25: RESIDENTIAL
A26: RESIDENTIAL
A27: RESIDENTIAL
A28: RESIDENTIAL
A29: RESIDENTIAL
A30: RESIDENTIAL
A31: RESIDENTIAL
A32: RESIDENTIAL | B32: APPLICATION
A33: RESIDENTIAL
A34: RESIDENTIAL
A35: RESIDENTIAL
A36: RESIDENTIAL
A37: RESIDENTIAL
A38: RESIDENTIAL
A39: RESIDENTIAL
A40: RESIDENTIAL
A41: RESIDENTIAL
A42: RESIDENTIAL
A43: RESIDENTIAL
A44: RESIDENTIAL
A45: RESIDENTIAL
A46: RESIDENTIAL
A47: RESIDENTIAL
A48: RESIDENTIAL | B48: MONTHLY RATES AND CHARGES - Delivery Component (If applicable, Effective Date MUST be included in rate description)
A49: RESIDENTIAL
A50: RESIDENTIAL
A51: RESIDENTIAL
A52: RESIDENTIAL
A53: RESIDENTIAL
A54: RESIDENTIAL
A55: RESIDENTIAL
A56: RESIDENTIAL
A57: RESIDENTIAL
A58: RESIDENTIAL
A59: RESIDENTIAL
A60: RESIDENTIAL
A61: RESIDENTIAL
A62: RESIDENTIAL
A63: RESIDENTIAL
A64: RESIDENTIAL
A65: RESIDENTIAL
A66: RESIDENTIAL
A67: RESIDENTIAL
A68: RESIDENTIAL
A69: RESIDENTIAL
A70: RESIDENTIAL
A71: RESIDENTIAL
A72: RESIDENTIAL
A73: RESIDENTIAL
A74: RESIDENTIAL
A75: RESIDENTIAL
A76: RESIDENTIAL
A77: RESIDENTIAL
A78: RESIDENTIAL
A79: RESIDENTIAL | B79: MONTHLY RATES AND CHARGES - Regulatory Component
A80: RESIDENTIAL
A81: RESIDENTIAL | B81: Wholesale Market Service Rate | H81: $/kWh | I81: 0.0044
A82: RESIDENTIAL | B82: Rural or Remote Electricity Rate Protection Charge (RRRP) | H82: $/kWh | I82: 0.0013
A83: RESIDENTIAL | B83: Standard Supply Service - Administrative Charge (if applicable) | H83: $ | I83: 0.25
A84: RESIDENTIAL
A87: STREET LIGHTING | B87: STREET LIGHTING Service Classification
A88: STREET LIGHTING
A89: STREET LIGHTING
A90: STREET LIGHTING
A91: STREET LIGHTING
A92: STREET LIGHTING
A93: STREET LIGHTING
A94: STREET LIGHTING
A95: STREET LIGHTING | B95: APPLICATION
A96: STREET LIGHTING
A97: STREET LIGHTING
A98: STREET LIGHTING
A99: STREET LIGHTING
A100: STREET LIGHTING
A101: STREET LIGHTING
A102: STREET LIGHTING
A103: STREET LIGHTING
A104: STREET LIGHTING
A105: STREET LIGHTING
A106: STREET LIGHTING
A107: STREET LIGHTING
A108: STREET LIGHTING
A109: STREET LIGHTING
A110: STREET LIGHTING
A111: STREET LIGHTING | B111: MONTHLY RATES AND CHARGES - Delivery Component (If applicable, Effective Date MUST be included in rate description)
A112: STREET LIGHTING
A113: STREET LIGHTING
A114: STREET LIGHTING
A115: STREET LIGHTING
A116: STREET LIGHTING
A117: STREET LIGHTING
A118: STREET LIGHTING
A119: STREET LIGHTING
A120: STREET LIGHTING
A121: STREET LIGHTING
A122: STREET LIGHTING
A123: STREET LIGHTING
A124: STREET LIGHTING
A125: STREET LIGHTING
A126: STREET LIGHTING
A127: STREET LIGHTING
A128: STREET LIGHTING
A129: STREET LIGHTING
A130: STREET LIGHTING
A131: STREET LIGHTING
A132: STREET LIGHTING
A133: STREET LIGHTING
A134: STREET LIGHTING
A135: STREET LIGHTING
A136: STREET LIGHTING
A137: STREET LIGHTING
A138: STREET LIGHTING
A139: STREET LIGHTING
A140: STREET LIGHTING
A141: STREET LIGHTING
A142: STREET LIGHTING | B142: MONTHLY RATES AND CHARGES - Regulatory Component
A143: STREET LIGHTING
A144: STREET LIGHTING | B144: Wholesale Market Service Rate | H144: $/kWh | I144: 0.0044
A145: STREET LIGHTING | B145: Rural or Remote Electricity Rate Protection Charge (RRRP) | H145: $/kWh | I145: 0.0013
A146: STREET LIGHTING | B146: Standard Supply Service - Administrative Charge (if applicable) | H146: $ | I146: 0.25
A147: STREET LIGHTING
A150: STANDBY POWER | B150: STANDBY POWER Service Classification
A151: STANDBY POWER
A152: STANDBY POWER
A153: STANDBY POWER
A154: STANDBY POWER
A155: STANDBY POWER
A156: STANDBY POWER
A157: STANDBY POWER
A158: STANDBY POWER | B158: APPLICATION
A159: STANDBY POWER
A160: STANDBY POWER
A161: STANDBY POWER
A162: STANDBY POWER
A163: STANDBY POWER
A164: STANDBY POWER
A165: STANDBY POWER
A166: STANDBY POWER
A167: STANDBY POWER
A168: STANDBY POWER
A169: STANDBY POWER
A170: STANDBY POWER
A171: STANDBY POWER
A172: STANDBY POWER
A173: STANDBY POWER
A174: STANDBY POWER | B174: MONTHLY RATES AND CHARGES - Delivery Component (If applicable, Effective Date MUST be included in rate description)
A175: STANDBY POWER
A176: STANDBY POWER
A177: STANDBY POWER
A178: STANDBY POWER
A179: STANDBY POWER
A180: STANDBY POWER
A181: STANDBY POWER
A182: STANDBY POWER
A183: STANDBY POWER
A184: STANDBY POWER
A185: STANDBY POWER
A186: STANDBY POWER
A187: STANDBY POWER
A188: STANDBY POWER
A189: STANDBY POWER
A190: STANDBY POWER
A191: STANDBY POWER
A192: STANDBY POWER
A193: STANDBY POWER
A194: STANDBY POWER
A195: STANDBY POWER
A196: STANDBY POWER
A197: STANDBY POWER
A198: STANDBY POWER
A199: STANDBY POWER
A200: STANDBY POWER
A201: STANDBY POWER
A202: STANDBY POWER
A203: STANDBY POWER
A204: STANDBY POWER
A205: STANDBY POWER | B205: MONTHLY RATES AND CHARGES - Regulatory Component
A206: STANDBY POWER
A207: STANDBY POWER | B207: Wholesale Market Service Rate | H207: =H81 -> $/kWh | I207: 0.0044
A208: STANDBY POWER | B208: Rural or Remote Electricity Rate Protection Charge (RRRP) | H208: $/kWh | I208: 0.0013
A209: STANDBY POWER | B209: Standard Supply Service - Administrative Charge (if applicable) | H209: $ | I209: 0.25
A210: STANDBY POWER

Sheet 5. 2014 Continuity Schedule
C15: Please complete the following continuity schedule for the following Deferral / Variance Accounts. Enter information into green cells only. If you have received approval to dispose of balances from prior years, the starting point for entries in the 2015 DVA schedule below will be the balance sheet date as per your G/L for which you received approval. For example, if in the 2014 EDR process (CoS or IRM) you received approval for the December 31, 2012 balances, the starting point for your entries below should be the 2011 year. This will allow for the correct starting point for the 2012 opening balance columns for both principal and interest. Please refer to the footnotes for further instructions.
E19: 2010 | O19: 2011 | Y19: 2012 | AL19: 2013 | AY19: 2014 | BC19: Projected Interest on Dec-31-13 Balances | BF19: 2.1.7 RRR
C20: Account Descriptions | D20: Account Number | E20: Opening Principal Amounts as of Jan-1-10 | F20: Transactions Debit / (Credit) during 2010 excluding interest and adjustments 2 | G20: Board-Approved Disposition during 2010 | H20: Adjustments during 2010 - other 1 | I20: Closing Principal Balance as of Dec-31-10 | J20: Opening Interest Amounts as of Jan-1-10 | K20: Interest Jan-1 to Dec-31-10 | L20: Board-Approved Disposition during 2010 | M20: Adjustments during 2010 - other 2 | N20: Closing Interest Amounts as of Dec-31-10 | O20: Opening Principal Amounts as of Jan-1-11 | P20: Transactions Debit / (Credit) during 2011 excluding interest and adjustments 2 | Q20: Board-Approved Disposition during 2011 | R20: Adjustments during 2011 - other 1 | S20: Closing Principal Balance as of Dec-31-11 | T20: Opening Interest Amounts as of Jan-1-11 | U20: Interest Jan-1 to Dec-31-11 | V20: Board-Approved Disposition during 2011 | W20: Adjustments during 2011 - other 2 | X20: Closing Interest Amounts as of Dec-31-11 | Y20: Opening Principal Amounts as of Jan-1-12 | Z20: Transactions Debit / (Credit) during 2012 excluding interest and adjustments 2 | AA20: Board-Approved Disposition during 2012 | AB20: Other 1 Adjustments during Q1 2012 | AC20: Other 1 Adjustments during Q2 2012 | AD20: Other 1 Adjustments during Q3 2012 | AE20: Other 1 Adjustments during Q4 2012 | AF20: Closing Principal Balance as of Dec-31-12 | AG20: Opening Interest Amounts as of Jan-1-12 | AH20: Interest Jan-1 to Dec-31-12 | AI20: Board-Approved Disposition during 2012 | AJ20: Adjustments during 2012 - other 1 | AK20: Closing Interest Amounts as of Dec-31-12 | AL20: Opening Principal Amounts as of Jan-1-13 | AM20: Transactions Debit / (Credit) during 2013 excluding interest and adjustments 2 | AN20: Board-Approved Disposition during 2013 | AO20: Other 1 Adjustments during Q1 2013 | AP20: Other 1 Adjustments during Q2 2013 | AQ20: Other 1 Adjustments during Q3 2013 | AR20: Other 1 Adjustments during Q4 2013 | AS20: Closing Principal Balance as of Dec-31-13 | AT20: Opening Interest Amounts as of Jan-1-13 | AU20: Interest Jan-1 to Dec-31-13 | AV20: Board-Approved Disposition during 2013 | AW20: Adjustments during 2013 - other 1 | AX20: Closing Interest Amounts as of Dec-31-13 | AY20: Principal Disposition during 2014 - instructed by Board | AZ20: Interest Disposition during 2014 - instructed by Board | BA20: Closing Principal Balances as of Dec 31-13 Adjusted for Dispositions during 2014 | BB20: Closing Interest Balances as of Dec 31-13 Adjusted for Dispositions during 2014 | BC20: Projected Interest from Jan 1, 2014 to December 31, 2014 on Dec 31 -13 balance adjusted for disposition during 2014 3 | BD20: Projected Interest from January 1, 2015 to April 30, 2015 on Dec 31 -13 balance adjusted for disposition during 2014 3 | BE20: Total Claim | BF20: As of Dec 31-13 | BG20: Variance RRR vs. 2013 Balance (Principal + Interest)
BE22: Claim before Forecasted Transactions
C23: Group 1 Accounts
A24: 1 | C24: LV Variance Account | D24: 1550 | E24: -218350.99 | F24: -47168.96 | I24: =E24+F24-G24+H24 -> -265519.95 | J24: -183.23 | K24: -2625.07 | N24: =J24+K24-L24+M24 -> -2808.3 | O24: =I24 -> -265519.95 | P24: 231086.5 | S24: =O24+P24-Q24+R24 -> -34433.45 | T24: =N24 -> -2808.3 | U24: -2327.3 | X24: =T24+U24-V24+W24 -> -5135.6 | Y24: =S24 -> -34433.45 | Z24: 248619.28 | AA24: -265520 | AF24: =Y24+Z24-AA24+SUM(AB24:AE24) -> 479705.83 | AG24: =X24 -> -5135.6 | AH24: 3808.7 | AI24: -7995 | AK24: =AG24+AH24-AI24+AJ24 -> 6668.1 | AL24: =AF24 -> 479705.83 | AM24: 272300.74 | AN24: 231086.5 | AS24: =AL24+AM24-AN24+SUM(AO24:AR24) -> 520920.07 | AT24: =AK24 -> 6668.1 | AU24: 8100.86 | AV24: 7388 | AX24: =AT24+AU24-AV24+AW24 -> 7380.96 | BA24: =AS24-AY24 -> 520920.07 | BB24: =AX24-AZ24 -> 7380.96 | BC24: =ROUND(AS24*1.47%,2) -> 7657.53 | BD24: =ROUND(AS24*1.47%*(4/12),2) -> 2552.51 | BE24: =SUM(BA24:BD24) -> 538511.07 | BF24: 528301.03 | BG24: =BF24-SUM(AS24,AX24) -> 0
C25: Smart Metering Entity Charge Variance | D25: 1551 | AK25: 0 | AL25: =AK25 -> 0 | AM25: 23466.63 | AS25: =AL25+AM25-AN25+SUM(AO25:AR25) -> 23466.63 | AT25: =AK25 -> 0 | AU25: -17.32 | AX25: -17.32 | BA25: =AS25-AY25 -> 23466.63 | BB25: =AX25-AZ25 -> -17.32 | BC25: =ROUND(AS25*1.47%,2) -> 344.96 | BD25: =ROUND(AS25*1.47%*(4/12),2) -> 114.99 | BE25: =SUM(BA25:BD25) -> 23909.26 | BF25: 23449.31 | BG25: =BF25-SUM(AS25,AX25) -> 0
A26: 2 | C26: RSVA - Wholesale Market Service Charge | D26: 1580 | E26: -186431.19 | F26: -760794.03 | I26: =E26+F26-G26+SUM(H26:H26) -> -947225.22 | J26: 2386.95 | K26: -6994.07 | N26: =J26+K26-L26+M26 -> -4607.12 | O26: =I26 -> -947225.22 | P26: -628323.21 | S26: =O26+P26-Q26+SUM(R26:R26) -> -1575548.43 | T26: -4607.12 | U26: -17543.2 | X26: =T26+U26-V26+W26 -> -22150.32 | Y26: =S26 -> -1575548.43 | Z26: -876806.31 | AA26: -947225.22 | AF26: -1505129.52 | AG26: =X26 -> -22150.32 | AH26: -14801.66 | AI26: -18531.39 | AK26: -18420.59 | AL26: =AF26 -> -1505129.52 | AM26: -190264.64 | AN26: -628323.21 | AS26: -1067070.95 | AT26: =AK26 -> -18420.59 | AU26: -19550.72 | AV26: -15891.9 | AX26: -22079.41 | BA26: -1067070.95 | BB26: -22079.41 | BC26: -15685.94 | BD26: -5228.65 | BE26: =SUM(BA26:BD26) -> -1110064.95 | BF26: -1089150.36 | BG26: 0
A27: 3 | C27: RSVA - Retail Transmission Network Charge | D27: 1584 | E27: 10714.55 | F27: 244592.81 | I27: 255307.36 | J27: -584.07 | K27: 1773.17 | N27: 1189.1 | O27: 255307.36 | P27: 321611.75 | S27: 576919.11 | T27: 1189.1 | U27: 7078.27 | X27: 8267.37 | Y27: 576919.11 | Z27: 158922.08 | AA27: 255307.36 | AF27: 480533.83 | AG27: 8267.37 | AH27: 7421.3 | AI27: 6175.99 | AK27: 9512.68 | AL27: 480533.83 | AM27: 172873.66 | AN27: 321611.75 | AS27: 331795.74 | AT27: 9512.68 | AU27: 4646.66 | AV27: 9607.25 | AX27: 4552.09 | BA27: 331795.74 | BB27: 4552.09 | BC27: 4877.4 | BD27: 1625.8 | BE27: 342851.03 | BF27: 336347.83 | BG27: 0
A28: 4 | C28: RSVA - Retail Transmission Connection Charge | D28: 1586 | E28: 73011.06 | F28: 177098.95 | I28: 250110.01 | J28: 2795.48 | K28: -486.93 | N28: 2308.55 | O28: 250110.01 | P28: 419696.08 | S28: 669806.09 | T28: 2308.55 | U28: 6890.43 | X28: 9198.98 | Y28: 669806.09 | Z28: 396091.87 | AA28: 250110.01 | AF28: 815787.95 | AG28: 9198.98 | AH28: 11544.82 | AI28: 7193.92 | AK28: 13549.88 | AL28: 815787.95 | AM28: 597613.904 | AN28: 419696.08 | AS28: 993705.774 | AT28: 13549.88 | AU28: 11254.85 | AV28: 11411.72 | AX28: 13393.01 | BA28: 993705.774 | BB28: 13393.01 | BC28: 14607.47 | BD28: 4869.16 | BE28: 1026575.414 | BF28: 1007098.78 | BG28: -0.00400000019
A29: 5 | C29: RSVA - Power (excluding Global Adjustment) | D29: 1588 | E29: -34784.84 | F29: 619286.13 | I29: 584501.29 | J29: 1784.32 | K29: 5654.79 | N29: 7439.11 | O29: 584501.29 | P29: -481507.92 | S29: 102993.37 | T29: 7439.11 | U29: 9608.04 | X29: 17047.15 | Y29: 102993.37 | Z29: 462737.46 | AA29: 0 | AF29: 565730.83 | AG29: 17047.15 | AH29: 3296.59 | AI29: 0 | AK29: 20343.74 | AL29: 565730.83 | AM29: 211988.88 | AN29: 102993.37 | AS29: 674726.34 | AT29: 20343.74 | AU29: 8419.09 | AV29: 19058.94 | AX29: 9703.89 | BA29: 674726.34 | BB29: 9703.89 | BC29: 9918.48 | BD29: 3306.16 | BE29: 697654.87 | BF29: 684430.23 | BG29: 0
A30: 6 | C30: RSVA - Global Adjustment | D30: 1589 | E30: 698952.77 | F30: -115437.64 | I30: 583515.13 | J30: 2280.57 | K30: 2133.01 | N30: 4413.58 | O30: 583515.13 | P30: 769405.63 | S30: 1352920.76 | T30: 4413.58 | U30: 15067.9 | X30: 19481.48 | Y30: 1352920.76 | Z30: -276541.65 | AA30: 0 | AF30: 1076379.11 | AG30: 19481.48 | AH30: 23248.34 | AI30: 0 | AK30: 42729.82 | AL30: 1076379.11 | AM30: 791147.85 | AN30: 1351736.66 | AS30: 515790.3 | AT30: 42729.82 | AU30: 10459.91 | AV30: 47068.87 | AX30: 6120.86 | BA30: 515790.3 | BB30: 6120.86 | BC30: 7582.12 | BD30: 2527.37 | BE30: 532020.65 | BF30: 521911.16 | BG30: -5.238689482e-10
A31: 7 | C31: Recovery of Regulatory Asset Balances | D31: 1590 | I31: 0 | N31: 0 | O31: 0 | S31: 0 | T31: 0 | X31: 0 | Y31: 0 | AF31: 0 | AG31: 0 | AK31: 0 | AL31: 0 | AS31: 0 | AT31: 0 | AX31: 0 | BA31: 0 | BB31: 0 | BE31: 0 | BG31: 0
A32: 8 | C32: Disposition and Recovery/Refund of Regulatory Balances (2008)4 | D32: 1595 | I32: 0 | N32: 0 | O32: =I32 -> 0 | S32: 0 | T32: 0 | X32: 0 | Y32: 0 | AF32: 0 | AG32: 0 | AK32: 0 | AL32: 0 | AS32: 0 | AT32: 0 | AX32: 0 | BA32: 0 | BB32: 0 | BE32: 0 | BG32: 0
A33: 9 | C33: Disposition and Recovery/Refund of Regulatory Balances (2009)4 | D33: 1595 | I33: 0 | N33: 0 | O33: =I33 -> 0 | S33: 0 | T33: 0 | X33: 0 | Y33: 0 | AF33: 0 | AG33: 0 | AK33: 0 | AL33: 0 | AS33: 0 | AT33: 0 | AX33: 0 | BA33: 0 | BB33: 0 | BE33: 0 | BG33: 0
A34: 9 | C34: Disposition and Recovery/Refund of Regulatory Balances (2010)4 | D34: 1595 | F34: =1217461-484147.04 -> 733313.96 | I34: 733313.96 | N34: 0 | O34: =I34 -> 733313.96 | P34: -1022525.99 | S34: -289212.03 | T34: 0 | X34: 0 | Y34: -289212.03 | Z34: -317439.71 | AF34: -606651.74 | AG34: 0 | AK34: 0 | AL34: -606651.74 | AM34: 218928.47 | AS34: -387723.27 | AT34: 0 | AX34: 0 | BA34: -387723.27 | BB34: 0 | BE34: -387723.27 | BF34: -387723.27 | BG34: 0
A35: 9 | C35: Disposition and Recovery/Refund of Regulatory Balances (2011)4 | D35: 1595 | I35: 0 | N35: 0 | O35: =I35 -> 0 | S35: 0 | T35: 0 | X35: 0 | Y35: 0 | AF35: 0 | AG35: 0 | AK35: 0 | AL35: 0 | AS35: 0 | AT35: 0 | AX35: 0 | BA35: 0 | BB35: 0 | BE35: =SUM(BA35:BD35) -> 0 | BG35: 0
A36: 9 | C36: Disposition and Recovery/Refund of Regulatory Balances (2012)4 | D36: 1595 | I36: 0 | N36: 0 | O36: =I36 -> 0 | S36: 0 | T36: =N36 -> 0 | X36: 0 | Y36: =S36 -> 0 | Z36: 36457.41 | AF36: =Y36+Z36-AA36+SUM(AB36:AE36) -> 36457.41 | AG36: =X36 -> 0 | AK36: =AG36+AH36-AI36+AJ36 -> 0 | AL36: =AF36 -> 36457.41 | AM36: 5030.18 | AS36: =AL36+AM36-AN36+SUM(AO36:AR36) -> 41487.59 | AT36: =AK36 -> 0 | AX36: =AT36+AU36-AV36+AW36 -> 0 | BA36: 41487.59 | BB36: 0 | BE36: =SUM(BA36:BD36) -> 41487.59 | BF36: 41487.59 | BG36: 0
C38: RSVA - Global Adjustment | D38: 1589 | E38: =E30 -> 698952.77 | F38: =F30 -> -115437.64 | G38: 0 | H38: 0 | I38: 583515.13 | J38: 2280.57 | K38: 2133.01 | L38: 0 | M38: 0 | N38: 4413.58 | O38: =O30 -> 583515.13 | P38: =P30 -> 769405.63 | Q38: 0 | R38: 0 | S38: 1352920.76 | T38: 4413.58 | U38: 15067.9 | V38: 0 | W38: 0 | X38: 19481.48 | Y38: =Y30 -> 1352920.76 | Z38: =Z30 -> -276541.65 | AA38: 0 | AB38: 0 | AC38: 0 | AD38: 0 | AE38: 0 | AF38: =AF30 -> 1076379.11 | AG38: 19481.48 | AH38: 23248.34 | AI38: 0 | AJ38: =AJ30 -> 0 | AK38: 42729.82 | AL38: =AL30 -> 1076379.11 | AM38: =AM30 -> 791147.85 | AN38: 1351736.66 | AO38: 0 | AP38: 0 | AQ38: 0 | AR38: 0 | AS38: 515790.3 | AT38: 42729.82 | AU38: 10459.91 | AV38: 47068.87 | AW38: 0 | AX38: 6120.86 | AY38: 0 | AZ38: =AZ30 -> 0 | BA38: 515790.3 | BB38: 6120.86 | BC38: 7582.12 | BD38: 2527.37 | BE38: 532020.65 | BF38: 521911.16 | BG38: -5.238689482e-10
C39: Total Group 1 Balance excluding Account 1589 - Global Adjustment | E39: =SUM(E24:E29,E31:E36) -> -355841.41 | F39: =SUM(F24:F29,F31:F36) -> 966328.86 | G39: 0 | H39: 0 | I39: 610487.45 | J39: 6199.45 | K39: -2678.11 | L39: 0 | M39: 0 | N39: 3521.34 | O39: =SUM(O24:O29,O31:O36) -> 610487.45 | P39: =SUM(P24:P29,P31:P36) -> -1159962.79 | Q39: 0 | R39: 0 | S39: -549475.34 | T39: 3521.34 | U39: 3706.24 | V39: 0 | W39: 0 | X39: 7227.58 | Y39: =SUM(Y24:Y29,Y31:Y36) -> -549475.34 | Z39: =SUM(Z24:Z29,Z31:Z36) -> 108582.08 | AA39: -707327.85 | AB39: 0 | AC39: 0 | AD39: 0 | AE39: 0 | AF39: =SUM(AF24:AF29,AF31:AF36) -> 266434.59 | AG39: 7227.58 | AH39: 11269.75 | AI39: -13156.48 | AJ39: =SUM(AJ24:AJ29,AJ31:AJ36) -> 0 | AK39: 31653.81 | AL39: =SUM(AL24:AL29,AL31:AL36) -> 266434.59 | AM39: =SUM(AM24:AM29,AM31:AM36) -> 1311937.824 | AN39: 447064.49 | AO39: 0 | AP39: 0 | AQ39: 0 | AR39: 0 | AS39: 1131307.924 | AT39: 31653.81 | AU39: 12853.42 | AV39: 31574.01 | AW39: 0 | AX39: 12933.22 | AY39: 0 | AZ39: =SUM(AZ24:AZ29,AZ31:AZ36) -> 0 | BA39: 1131307.924 | BB39: 12933.22 | BC39: 21719.9 | BD39: 7239.97 | BE39: 1173201.014 | BF39: 1144241.14 | BG39: -0.00400000019
C40: Total Group 1 Balance | E40: =SUM(E24:E36) -> 343111.36 | F40: =SUM(F24:F36) -> 850891.22 | G40: 0 | H40: 0 | I40: 1194002.58 | J40: 8480.02 | K40: -545.1 | L40: 0 | M40: 0 | N40: 7934.92 | O40: =SUM(O24:O36) -> 1194002.58 | P40: =SUM(P24:P36) -> -390557.16 | Q40: 0 | R40: 0 | S40: 803445.42 | T40: 7934.92 | U40: 18774.14 | V40: 0 | W40: 0 | X40: 26709.06 | Y40: =SUM(Y24:Y36) -> 803445.42 | Z40: =SUM(Z24:Z36) -> -167959.57 | AA40: -707327.85 | AB40: 0 | AC40: 0 | AD40: 0 | AE40: 0 | AF40: =SUM(AF24:AF36) -> 1342813.7 | AG40: 26709.06 | AH40: 34518.09 | AI40: -13156.48 | AJ40: =SUM(AJ24:AJ36) -> 0 | AK40: 74383.63 | AL40: =SUM(AL24:AL36) -> 1342813.7 | AM40: =SUM(AM24:AM36) -> 2103085.674 | AN40: 1798801.15 | AO40: 0 | AP40: 0 | AQ40: 0 | AR40: 0 | AS40: 1647098.224 | AT40: 74383.63 | AU40: 23313.33 | AV40: 78642.88 | AW40: 0 | AX40: 19054.08 | AY40: 0 | AZ40: =SUM(AZ24:AZ36) -> 0 | BA40: 1647098.224 | BB40: 19054.08 | BC40: 29302.02 | BD40: 9767.34 | BE40: 1705221.664 | BF40: 1666152.3 | BG40: -0.004000000714
C42: LRAM Variance Account | D42: 1568 | E42: 0 | I42: =E42+F42-G42+SUM(H42:H42) -> 0 | N42: =J42+K42-L42+M42 -> 0 | S42: =O42+P42-Q42+SUM(R42:R42) -> 0 | X42: =T42+U42-V42+W42 -> 0 | Y42: =S42 -> 0 | AF42: =Y42+Z42-AA42+SUM(AB42:AE42) -> 0 | AG42: =X42 -> 0 | AK42: =AG42+AH42-AI42+AJ42 -> 0 | AL42: =AF42 -> 0 | AM42: 164407 | AR42: =19799.28 -> 19799.28 | AS42: =AL42+AM42-AN42+SUM(AO42:AR42) -> 184206.28 | AT42: =AK42 -> 0 | AU42: 2465 | AW42: 3458.51 | AX42: =AT42+AU42-AV42+AW42 -> 5923.51 | AY42: 84063.29 | AZ42: 2464.84 | BA42: =AS42-AY42 -> 100142.99 | BB42: =AX42-AZ42 -> 3458.67 | BE42: =SUM(BA42:BD42) -> 103601.66 | BF42: 166872 | BG42: =BF42-SUM(AS42,AX42) -> -23257.79
C44: Total including Account 1568 | E44: =E42+E40 -> 343111.36 | F44: =F42+F40 -> 850891.22 | G44: 0 | H44: 0 | I44: 1194002.58 | J44: 8480.02 | K44: -545.1 | L44: 0 | M44: 0 | N44: 7934.92 | O44: 1194002.58 | P44: -390557.16 | Q44: 0 | R44: 0 | S44: 803445.42 | T44: 7934.92 | U44: 18774.14 | V44: 0 | W44: 0 | X44: 26709.06 | Y44: 803445.42 | Z44: -167959.57 | AA44: -707327.85 | AB44: 0 | AC44: 0 | AD44: 0 | AE44: 0 | AF44: 1342813.7 | AG44: 26709.06 | AH44: 34518.09 | AI44: -13156.48 | AJ44: 0 | AK44: 74383.63 | AL44: 1342813.7 | AM44: 2267492.674 | AN44: 1798801.15 | AO44: 0 | AP44: 0 | AQ44: 0 | AR44: 19799.28 | AS44: 1831304.504 | AT44: 74383.63 | AU44: 25778.33 | AV44: 78642.88 | AW44: 3458.51 | AX44: 24977.59 | AY44: 84063.29 | AZ44: 2464.84 | BA44: 1747241.214 | BB44: 22512.75 | BC44: 29302.02 | BD44: 9767.34 | BE44: 1808823.324 | BF44: 1833024.3 | BG44: -23257.794
C47: For all Board-Approved dispositions, please ensure that the disposition amount has the same sign (e.g: debit balances are to have a positive figure and credit balance are to have a negative figure) as per the related Board decision.
B50: 1 | C50: Please provide explanations for the nature of the adjustments. If the adjustment relates to previously Board Approved disposed balances, please provide amounts for adjustments and include supporting documentations.
B51: 2 | C51: For RSVA accounts only, report the net variance to the account during the year. For all other accounts, record the transactions during the year.
B52: 3 | C52: If the LDC’s rate year begins on January 1, 2015, the projected interest is recorded from January 1, 2014 to December 31, 2014 on the December 31, 2013 balances adjusted for the disposed balances approved by the Board in the 2014 rate decision. If the LDC’s rate year begins on May 1, 2015, the projected interest is recorded from January 1, 2014 to April 30, 2015 on the December 31, 2013 balances adjusted for the disposed interest balances approved by the Board in the 2014 rate decision.
B53: 4 | C53: Include Account 1595 as part of Group 1 accounts (lines 31, 32, 33 and 34) for review and disposition if the recovery (or refund) period has been completed. If the recovery (or refund) period has not been completed, do not include the respective balance in Account 1595 for disposition at this time.

Sheet 6. Billing Det. for Def-Var
AS1: As per Section 3.2.3 of the 2015 Filing Requirements for Electricity Distribution Rate Applications, an applicant may elect to dispose of the Group 1 account balances below the threshold. If doing so, please select YES from the adjacent drop-down cell and also indicate so in the Manager's Summary. If not, please select NO.
A13: In the green shaded cells, enter the most recent Board Approved volumetric forecast. If there is a material difference between the latest Board-approved volumetric forecast and the most recent 12-month actual volumetric data, use the most recent 12-month actual data. Do not enter data for the MicroFit class.
E15: Billed kWh for Non-RPP Customers | F15: Estimated kW for Non-RPP Customers | H15: 1590 Recovery Share Proportion* | I15: 1595 Recovery Share Proportion (2008) 1 | J15: 1595 Recovery Share Proportion (2009) 1 | K15: 1595 Recovery Share Proportion (2010) 1 | L15: 1595 Recovery Share Proportion (2011) 1 | M15: 1595 Recovery Share Proportion (2012) 1 | N15: 1568 LRAM Variance Account Class Allocation ($ amounts) | O15: Number of Customers for Residential and GS<50 classes3
A16: Rate Class | B16: Unit | C16: Metered kWh | D16: Metered kW
A17: RESIDENTIAL | B17: $/kWh | F17: =IF(ISERROR(D17/C17*E17), 0, D17/C17*E17) -> 0 | N17: 20750
A18: GENERAL SERVICE LESS THAN 50 KW | B18: $/kWh | F18: =IF(ISERROR(D18/C18*E18), 0, D18/C18*E18) -> 0 | N18: 48389
A19: GENERAL SERVICE 50 TO 999 KW | B19: $/kW | F19: =IF(ISERROR(D19/C19*E19), 0, D19/C19*E19) -> 0 | N19: 22734
A20: GENERAL SERVICE INTERMEDIATE 1,000 TO 4,999 KW | B20: $/kW | F20: =IF(ISERROR(D20/C20*E20), 0, D20/C20*E20) -> 0 | N20: 8381
A21: INTERMEDIATE WITH SELF GENERATION | B21: $/kW | F21: =IF(ISERROR(D21/C21*E21), 0, D21/C21*E21) -> 0 | N21: 3348
A22: UNMETERED SCATTERED LOAD | B22: $/kWh | F22: =IF(ISERROR(D22/C22*E22), 0, D22/C22*E22) -> 0
A23: STANDBY POWER | F23: =IF(ISERROR(D23/C23*E23), 0, D23/C23*E23) -> 0
A24: SENTINEL LIGHTING | B24: $/kW | F24: =IF(ISERROR(D24/C24*E24), 0, D24/C24*E24) -> 0
A25: STREET LIGHTING | B25: $/kW | F25: =IF(ISERROR(D25/C25*E25), 0, D25/C25*E25) -> 0
A26: microFIT
B28: Total | C28: =SUM(C17:C26) -> 0 | D28: =SUM(D17:D26) -> 0 | E28: 0 | F28: 0 | H28: 0 | I28: 0 | J28: 0 | K28: 0 | L28: 0 | M28: 0 | N28: 103602 | O28: 0
M29: Balance as per Sheet 5 | N29: =ROUND('5. 2014 Continuity Schedule'!BE42, 0) -> 103602
M30: Variance | N30: =N28-N29 -> 0
A32: Threshold Test
A33: Total Claim (including Account 1568) | B33: ='5. 2014 Continuity Schedule'!BE44 -> 1808823.324
A34: Total Claim for Threshold Test (All Group 1 Accounts) | B34: ='5. 2014 Continuity Schedule'!BE40 -> 1705221.664
A35: Threshold Test (Total claim per kWh) 2 | B35: =IF(ISERROR(B34/C28), 0, B34/C28) -> 0 | D35: =IF(AND(B35>-0.001,B35<0.001),"Claim does not meet the threshold test.","") -> Claim does not meet the threshold test.
A37: =IF(AND(B35>-0.001, B35<0.001), AS1, "") -> As per Section 3.2.3 of the 2015 Filing Requirements for Electricity Distribution Rate Applications, an applicant may elect to dispose of the Group 1 account balances below the threshold. If doing so, please select YES from the adjacent drop-down cell and also indicate so in the Manager's Summary. If not, please select NO.
A41: 1 Residual Account balance to be allocated to rate classes in proportion to the recovery share as established when rate riders were implemented.
A42: 2 The Threshold Test does not include the amount in 1568.
A43: 3 The proportion of customers for the Residential and GS<50 Classes will be used to allocate Account 1551.

Sheet 6. hidden (hidden)
E1: Billed kWh for Non-RPP Customers | F1: Estimated kW for Non-RPP Customers | G1: Distribution Revenue 1 | H1: 1590 Recovery Share Proportion* | I1: 1595 Recovery Share Proportion (2008) 2 | J1: 1595 Recovery Share Proportion (2009) 2 | K1: 1595 Recovery Share Proportion (2010) 2 | L1: 1595 Recovery Share Proportion (2011) 2 | M1: 1568 LRAM Variance Account Class Allocation
A2: Rate Class | B2: Unit | C2: Metered kWh | D2: Metered kW
A3: RESIDENTIAL | B3: $/kWh | C3: 0 | D3: 0 | E3: 0 | G3: 0 | H3: 0 | I3: 0 | J3: 0 | K3: 0 | L3: 0 | M3: 0 | N3: 20750 | O3: 0
A4: GENERAL SERVICE LESS THAN 50 KW | B4: $/kWh | C4: 0 | D4: 0 | E4: 0 | G4: 0 | H4: 0 | I4: 0 | J4: 0 | K4: 0 | L4: 0 | M4: 0 | N4: 48389 | O4: 0
A5: GENERAL SERVICE 50 TO 999 KW | B5: $/kW | C5: 0 | D5: 0 | E5: 0 | G5: 0 | H5: 0 | I5: 0 | J5: 0 | K5: 0 | L5: 0 | M5: 0 | N5: 22734 | O5: 0
A6: GENERAL SERVICE INTERMEDIATE 1,000 TO 4,999 KW | B6: $/kW | C6: 0 | D6: 0 | E6: 0 | G6: 0 | H6: 0 | I6: 0 | J6: 0 | K6: 0 | L6: 0 | M6: 0 | N6: 8381 | O6: 0
A7: INTERMEDIATE WITH SELF GENERATION | B7: $/kW | C7: 0 | D7: 0 | E7: 0 | G7: 0 | H7: 0 | I7: 0 | J7: 0 | K7: 0 | L7: 0 | M7: 0 | N7: 3348 | O7: 0
A8: UNMETERED SCATTERED LOAD | B8: $/kWh | C8: 0 | D8: 0 | E8: 0 | G8: 0 | H8: 0 | I8: 0 | J8: 0 | K8: 0 | L8: 0 | M8: 0 | N8: 0 | O8: 0
A9: STANDBY POWER | B9: 0 | C9: 0 | D9: 0 | E9: 0 | G9: 0 | H9: 0 | I9: 0 | J9: 0 | K9: 0 | L9: 0 | M9: 0 | N9: 0 | O9: 0
A10: SENTINEL LIGHTING | B10: $/kW | C10: 0 | D10: 0 | E10: 0 | G10: 0 | H10: 0 | I10: 0 | J10: 0 | K10: 0 | L10: 0 | M10: 0 | N10: 0 | O10: 0
A11: STREET LIGHTING | B11: $/kW | C11: 0 | D11: 0 | E11: 0 | G11: 0 | H11: 0 | I11: 0 | J11: 0 | K11: 0 | L11: 0 | M11: 0 | N11: 0 | O11: 0
A12: microFIT | B12: 0 | C12: 0 | D12: 0 | E12: 0 | G12: 0 | H12: 0 | I12: 0 | J12: 0 | K12: 0 | L12: 0 | M12: 0 | N12: 0 | O12: 0

Sheet 7. Allocating Def-Var Balances
A13: No input required. This workshseet allocates the deferral/variance account balances (Group 1, 1589, and 1568) to the appropriate classes as per the EDDVAR Report dated July 31, 2009
A15: Allocation of Group 1 Accounts (including Account 1568)
C16: % of Total kWh | D16: % of Total non-RPP kWh | E16: % of Customer Numbers ** | N16: 1595 (2008) | O16: 1595 (2009) | P16: 1595 (2010) | Q16: 1595 (2011) | R16: 1595 (2012) | S16: 1568
A17: Rate Class | F17: 1550 | G17: 1551 | H17: 1580 | I17: 1584 | J17: 1586 | K17: 1588 | L17: 1589 | M17: 1590
A19: RESIDENTIAL | C19: =VLOOKUP(A19, '6. Billing Det. for Def-Var'!A17:D26, 3,0)/'6. Billing Det. for Def-Var'!C28 ->  | D19: =VLOOKUP(A19, '6. Billing Det. for Def-Var'!A17:E26, 5,0)/'6. Billing Det. for Def-Var'!E28 ->  | E19: =VLOOKUP(A19, '6. Billing Det. for Def-Var'!A17:O26, 15,0)/'6. Billing Det. for Def-Var'!O28 ->  | F19: 0 | G19: 0 | H19: 0 | I19: 0 | J19: 0 | K19: 0 | L19: 0 | M19: ='6. Billing Det. for Def-Var'!H17* '5. 2014 Continuity Schedule'!BE31 -> 0 | N19: ='6. Billing Det. for Def-Var'!I17* '5. 2014 Continuity Schedule'!BE32 -> 0 | O19: ='6. Billing Det. for Def-Var'!J17* '5. 2014 Continuity Schedule'!BE33 -> 0 | P19: ='6. Billing Det. for Def-Var'!K17* '5. 2014 Continuity Schedule'!BE34 -> 0 | Q19: ='6. Billing Det. for Def-Var'!L17* '5. 2014 Continuity Schedule'!BE35 -> 0 | R19: ='6. Billing Det. for Def-Var'!M17* '5. 2014 Continuity Schedule'!BE36 -> 0 | S19: ='6. Billing Det. for Def-Var'!N17 -> 20750
A20: GENERAL SERVICE LESS THAN 50 KW | C20: =VLOOKUP(A20, '6. Billing Det. for Def-Var'!A17:D26, 3,0)/'6. Billing Det. for Def-Var'!C28 ->  | D20: =VLOOKUP(A20, '6. Billing Det. for Def-Var'!A17:E26, 5,0)/'6. Billing Det. for Def-Var'!E28 ->  | E20: =VLOOKUP(A20, '6. Billing Det. for Def-Var'!A17:O26, 15,0)/'6. Billing Det. for Def-Var'!O28 ->  | F20: 0 | G20: 0 | H20: 0 | I20: 0 | J20: 0 | K20: 0 | L20: 0 | M20: ='6. Billing Det. for Def-Var'!H18* '5. 2014 Continuity Schedule'!BE31 -> 0 | N20: ='6. Billing Det. for Def-Var'!I18* '5. 2014 Continuity Schedule'!BE32 -> 0 | O20: ='6. Billing Det. for Def-Var'!J18* '5. 2014 Continuity Schedule'!BE33 -> 0 | P20: ='6. Billing Det. for Def-Var'!K18* '5. 2014 Continuity Schedule'!BE34 -> 0 | Q20: ='6. Billing Det. for Def-Var'!L18* '5. 2014 Continuity Schedule'!BE35 -> 0 | R20: ='6. Billing Det. for Def-Var'!M18* '5. 2014 Continuity Schedule'!BE36 -> 0 | S20: ='6. Billing Det. for Def-Var'!N18 -> 48389
A21: GENERAL SERVICE 50 TO 999 KW | C21: =VLOOKUP(A21, '6. Billing Det. for Def-Var'!A17:D26, 3,0)/'6. Billing Det. for Def-Var'!C28 ->  | D21: =VLOOKUP(A21, '6. Billing Det. for Def-Var'!A17:E26, 5,0)/'6. Billing Det. for Def-Var'!E28 ->  | F21: 0 | G21: =E21* '5. 2014 Continuity Schedule'!BE25 -> 0 | H21: 0 | I21: 0 | J21: 0 | K21: 0 | L21: 0 | M21: ='6. Billing Det. for Def-Var'!H19* '5. 2014 Continuity Schedule'!BE31 -> 0 | N21: ='6. Billing Det. for Def-Var'!I19* '5. 2014 Continuity Schedule'!BE32 -> 0 | O21: ='6. Billing Det. for Def-Var'!J19* '5. 2014 Continuity Schedule'!BE33 -> 0 | P21: ='6. Billing Det. for Def-Var'!K19* '5. 2014 Continuity Schedule'!BE34 -> 0 | Q21: ='6. Billing Det. for Def-Var'!L19* '5. 2014 Continuity Schedule'!BE35 -> 0 | R21: ='6. Billing Det. for Def-Var'!M19* '5. 2014 Continuity Schedule'!BE36 -> 0 | S21: ='6. Billing Det. for Def-Var'!N19 -> 22734
A22: GENERAL SERVICE INTERMEDIATE 1,000 TO 4,999 KW | C22: =VLOOKUP(A22, '6. Billing Det. for Def-Var'!A17:D26, 3,0)/'6. Billing Det. for Def-Var'!C28 ->  | D22: =VLOOKUP(A22, '6. Billing Det. for Def-Var'!A17:E26, 5,0)/'6. Billing Det. for Def-Var'!E28 ->  | F22: 0 | G22: =E22* '5. 2014 Continuity Schedule'!BE25 -> 0 | H22: 0 | I22: 0 | J22: 0 | K22: 0 | L22: 0 | M22: ='6. Billing Det. for Def-Var'!H20* '5. 2014 Continuity Schedule'!BE31 -> 0 | N22: ='6. Billing Det. for Def-Var'!I20* '5. 2014 Continuity Schedule'!BE32 -> 0 | O22: ='6. Billing Det. for Def-Var'!J20* '5. 2014 Continuity Schedule'!BE33 -> 0 | P22: ='6. Billing Det. for Def-Var'!K20* '5. 2014 Continuity Schedule'!BE34 -> 0 | Q22: ='6. Billing Det. for Def-Var'!L20* '5. 2014 Continuity Schedule'!BE35 -> 0 | R22: ='6. Billing Det. for Def-Var'!M20* '5. 2014 Continuity Schedule'!BE36 -> 0 | S22: ='6. Billing Det. for Def-Var'!N20 -> 8381
A23: INTERMEDIATE WITH SELF GENERATION | C23: =VLOOKUP(A23, '6. Billing Det. for Def-Var'!A17:D26, 3,0)/'6. Billing Det. for Def-Var'!C28 ->  | D23: =VLOOKUP(A23, '6. Billing Det. for Def-Var'!A17:E26, 5,0)/'6. Billing Det. for Def-Var'!E28 ->  | F23: 0 | G23: =E23* '5. 2014 Continuity Schedule'!BE25 -> 0 | H23: 0 | I23: 0 | J23: 0 | K23: 0 | L23: 0 | M23: ='6. Billing Det. for Def-Var'!H21* '5. 2014 Continuity Schedule'!BE31 -> 0 | N23: ='6. Billing Det. for Def-Var'!I21* '5. 2014 Continuity Schedule'!BE32 -> 0 | O23: ='6. Billing Det. for Def-Var'!J21* '5. 2014 Continuity Schedule'!BE33 -> 0 | P23: ='6. Billing Det. for Def-Var'!K21* '5. 2014 Continuity Schedule'!BE34 -> 0 | Q23: ='6. Billing Det. for Def-Var'!L21* '5. 2014 Continuity Schedule'!BE35 -> 0 | R23: ='6. Billing Det. for Def-Var'!M21* '5. 2014 Continuity Schedule'!BE36 -> 0 | S23: ='6. Billing Det. for Def-Var'!N21 -> 3348
A24: UNMETERED SCATTERED LOAD | C24: =VLOOKUP(A24, '6. Billing Det. for Def-Var'!A17:D26, 3,0)/'6. Billing Det. for Def-Var'!C28 ->  | D24: =VLOOKUP(A24, '6. Billing Det. for Def-Var'!A17:E26, 5,0)/'6. Billing Det. for Def-Var'!E28 ->  | F24: 0 | G24: =E24* '5. 2014 Continuity Schedule'!BE25 -> 0 | H24: 0 | I24: 0 | J24: 0 | K24: 0 | L24: 0 | M24: ='6. Billing Det. for Def-Var'!H22* '5. 2014 Continuity Schedule'!BE31 -> 0 | N24: ='6. Billing Det. for Def-Var'!I22* '5. 2014 Continuity Schedule'!BE32 -> 0 | O24: ='6. Billing Det. for Def-Var'!J22* '5. 2014 Continuity Schedule'!BE33 -> 0 | P24: ='6. Billing Det. for Def-Var'!K22* '5. 2014 Continuity Schedule'!BE34 -> 0 | Q24: ='6. Billing Det. for Def-Var'!L22* '5. 2014 Continuity Schedule'!BE35 -> 0 | R24: ='6. Billing Det. for Def-Var'!M22* '5. 2014 Continuity Schedule'!BE36 -> 0 | S24: ='6. Billing Det. for Def-Var'!N22 -> 0
A25: STANDBY POWER | C25: 0 | D25: 0 | E25: 0 | F25: =C25* '5. 2014 Continuity Schedule'!BE24 -> 0 | G25: =E25* '5. 2014 Continuity Schedule'!BE25 -> 0 | H25: =C25* '5. 2014 Continuity Schedule'!BE26 -> 0 | I25: =C25* '5. 2014 Continuity Schedule'!BE27 -> 0 | J25: =C25* '5. 2014 Continuity Schedule'!BE28 -> 0 | K25: =C25* '5. 2014 Continuity Schedule'!BE29 -> 0 | L25: =D25* '5. 2014 Continuity Schedule'!BE30 -> 0 | M25: ='6. Billing Det. for Def-Var'!H23* '5. 2014 Continuity Schedule'!BE31 -> 0 | N25: ='6. Billing Det. for Def-Var'!I23* '5. 2014 Continuity Schedule'!BE32 -> 0 | O25: ='6. Billing Det. for Def-Var'!J23* '5. 2014 Continuity Schedule'!BE33 -> 0 | P25: ='6. Billing Det. for Def-Var'!K23* '5. 2014 Continuity Schedule'!BE34 -> 0 | Q25: ='6. Billing Det. for Def-Var'!L23* '5. 2014 Continuity Schedule'!BE35 -> 0 | R25: ='6. Billing Det. for Def-Var'!M23* '5. 2014 Continuity Schedule'!BE36 -> 0 | S25: ='6. Billing Det. for Def-Var'!N23 -> 0
A26: SENTINEL LIGHTING | C26: =VLOOKUP(A26, '6. Billing Det. for Def-Var'!A17:D26, 3,0)/'6. Billing Det. for Def-Var'!C28 ->  | D26: =VLOOKUP(A26, '6. Billing Det. for Def-Var'!A17:E26, 5,0)/'6. Billing Det. for Def-Var'!E28 ->  | F26: 0 | G26: =E26* '5. 2014 Continuity Schedule'!BE25 -> 0 | H26: 0 | I26: 0 | J26: 0 | K26: 0 | L26: 0 | M26: ='6. Billing Det. for Def-Var'!H24* '5. 2014 Continuity Schedule'!BE31 -> 0 | N26: ='6. Billing Det. for Def-Var'!I24* '5. 2014 Continuity Schedule'!BE32 -> 0 | O26: ='6. Billing Det. for Def-Var'!J24* '5. 2014 Continuity Schedule'!BE33 -> 0 | P26: ='6. Billing Det. for Def-Var'!K24* '5. 2014 Continuity Schedule'!BE34 -> 0 | Q26: ='6. Billing Det. for Def-Var'!L24* '5. 2014 Continuity Schedule'!BE35 -> 0 | R26: ='6. Billing Det. for Def-Var'!M24* '5. 2014 Continuity Schedule'!BE36 -> 0 | S26: ='6. Billing Det. for Def-Var'!N24 -> 0
A27: STREET LIGHTING | C27: =VLOOKUP(A27, '6. Billing Det. for Def-Var'!A17:D26, 3,0)/'6. Billing Det. for Def-Var'!C28 ->  | D27: =VLOOKUP(A27, '6. Billing Det. for Def-Var'!A17:E26, 5,0)/'6. Billing Det. for Def-Var'!E28 ->  | F27: 0 | G27: =E27* '5. 2014 Continuity Schedule'!BE25 -> 0 | H27: 0 | I27: 0 | J27: 0 | K27: 0 | L27: 0 | M27: ='6. Billing Det. for Def-Var'!H25* '5. 2014 Continuity Schedule'!BE31 -> 0 | N27: ='6. Billing Det. for Def-Var'!I25* '5. 2014 Continuity Schedule'!BE32 -> 0 | O27: ='6. Billing Det. for Def-Var'!J25* '5. 2014 Continuity Schedule'!BE33 -> 0 | P27: ='6. Billing Det. for Def-Var'!K25* '5. 2014 Continuity Schedule'!BE34 -> 0 | Q27: ='6. Billing Det. for Def-Var'!L25* '5. 2014 Continuity Schedule'!BE35 -> 0 | R27: ='6. Billing Det. for Def-Var'!M25* '5. 2014 Continuity Schedule'!BE36 -> 0 | S27: ='6. Billing Det. for Def-Var'!N25 -> 0
A28: microFIT | C28: 0 | D28: 0 | E28: 0 | F28: =C28* '5. 2014 Continuity Schedule'!BE24 -> 0 | G28: =E28* '5. 2014 Continuity Schedule'!BE25 -> 0 | H28: =C28* '5. 2014 Continuity Schedule'!BE26 -> 0 | I28: =C28* '5. 2014 Continuity Schedule'!BE27 -> 0 | J28: =C28* '5. 2014 Continuity Schedule'!BE28 -> 0 | K28: =C28* '5. 2014 Continuity Schedule'!BE29 -> 0 | L28: =D28* '5. 2014 Continuity Schedule'!BE30 -> 0 | M28: ='6. Billing Det. for Def-Var'!H26* '5. 2014 Continuity Schedule'!BE31 -> 0 | N28: ='6. Billing Det. for Def-Var'!I26* '5. 2014 Continuity Schedule'!BE32 -> 0 | O28: ='6. Billing Det. for Def-Var'!J26* '5. 2014 Continuity Schedule'!BE33 -> 0 | P28: ='6. Billing Det. for Def-Var'!K26* '5. 2014 Continuity Schedule'!BE34 -> 0 | Q28: ='6. Billing Det. for Def-Var'!L26* '5. 2014 Continuity Schedule'!BE35 -> 0 | R28: ='6. Billing Det. for Def-Var'!M26* '5. 2014 Continuity Schedule'!BE36 -> 0 | S28: ='6. Billing Det. for Def-Var'!N26 -> 0
A30: Total | C30: =SUM(C19:C28) ->  | D30: =SUM(D19:D28) ->  | E30: =SUM(E19:E28) ->  | F30: =SUM(F19:F28) -> 0 | G30: =SUM(G19:G28) -> 0 | H30: =SUM(H19:H28) -> 0 | I30: =SUM(I19:I28) -> 0 | J30: =SUM(J19:J28) -> 0 | K30: =SUM(K19:K28) -> 0 | L30: =SUM(L19:L28) -> 0 | M30: =SUM(M19:M28) -> 0 | N30: =SUM(N19:N28) -> 0 | O30: =SUM(O19:O28) -> 0 | P30: =SUM(P19:P28) -> 0 | Q30: =SUM(Q19:Q28) -> 0 | R30: =SUM(R19:R28) -> 0 | S30: =SUM(S19:S28) -> 103602
A33: * RSVA - Power (Excluding Global Adjustment)
A34: ** Used to allocate Account 1551 as this account records the variances arising from the Smart Metering Entity Charges to Residential and GS<50 customers.

Sheet 8. Calculation of Def-Var RR
A12: Input required at cell C15 only. This workshseet calculates rate riders related to the Deferral/Variance Account Disposition (if applicable), associated rate riders for the global adjustment account (1589) and Account 1568. Rate Riders will not be generated for the microFIT class.
A15: Please indicate the Rate Rider Recovery Period (in years) | C15: 1
E17: Balance of Accounts Allocated by kWh/kW (RPP) or Distribution Revenue | F17: Deferral/Variance Account Rate Rider | G17: Allocation of Balance in Account 1589 | H17: Billed kWh or Estimated kW for Non-RPP Customers | I17: Global Adjustment Rate Rider | J17: Allocation of Account 1568 | K17: Account 1568 Rate Rider
A18: Rate Class | B18: Unit | C18: Billed kWh | D18: Billed kW or kVA
A20: RESIDENTIAL | B20: $/kWh | E20: =SUM('7. Allocating Def-Var Balances'!F19:K19)+SUM('7. Allocating Def-Var Balances'!M19:R19) -> 0 | F20: 0 | G20: 0 | J20: 20750
A21: GENERAL SERVICE LESS THAN 50 KW | B21: $/kWh | E21: =SUM('7. Allocating Def-Var Balances'!F20:K20)+SUM('7. Allocating Def-Var Balances'!M20:R20) -> 0 | F21: 0 | G21: 0 | J21: 48389
A22: GENERAL SERVICE 50 TO 999 KW | B22: $/kW | E22: =SUM('7. Allocating Def-Var Balances'!F21:K21)+SUM('7. Allocating Def-Var Balances'!M21:R21) -> 0 | F22: 0 | G22: 0 | J22: 22734
A23: GENERAL SERVICE INTERMEDIATE 1,000 TO 4,999 KW | B23: $/kW | E23: =SUM('7. Allocating Def-Var Balances'!F22:K22)+SUM('7. Allocating Def-Var Balances'!M22:R22) -> 0 | F23: 0 | G23: 0 | J23: 8381
A24: INTERMEDIATE WITH SELF GENERATION | B24: $/kW | E24: =SUM('7. Allocating Def-Var Balances'!F23:K23)+SUM('7. Allocating Def-Var Balances'!M23:R23) -> 0 | F24: 0 | G24: 0 | J24: 3348
A25: UNMETERED SCATTERED LOAD | B25: $/kWh | E25: =SUM('7. Allocating Def-Var Balances'!F24:K24)+SUM('7. Allocating Def-Var Balances'!M24:R24) -> 0 | F25: 0 | G25: 0
A26: STANDBY POWER
A27: SENTINEL LIGHTING | B27: $/kW | E27: =SUM('7. Allocating Def-Var Balances'!F26:K26)+SUM('7. Allocating Def-Var Balances'!M26:R26) -> 0 | F27: 0 | G27: 0
A28: STREET LIGHTING | B28: $/kW | E28: =SUM('7. Allocating Def-Var Balances'!F27:K27)+SUM('7. Allocating Def-Var Balances'!M27:R27) -> 0 | F28: 0 | G28: 0
A29: microFIT

Sheet 9. STS - Billing Det & Rates
A11: Shared Tax Savings
A13: ="Enter your " & '1. Information Sheet'!F32 & " Board-Approved Billing Determinents into columns B, C and D." -> Enter your 2010 Board-Approved Billing Determinents into columns B, C and D.
A14: ="Enter your " & '1. Information Sheet'!F32 & " Board-Approved Base monthly service and volumetric charges into columns G, H and I." -> Enter your 2010 Board-Approved Base monthly service and volumetric charges into columns G, H and I.
A16: Rate Class | B16: Units | C16: Re-based Billed Customers or Connections | D16: Re-based Billed kWh | E16: Re-based Billed kW (if applicable) | G16: ='1. Information Sheet'!F32 &" Base Monthly Service Charge" -> 2010 Base Monthly Service Charge | H16: ='1. Information Sheet'!F32 &" Base Distribution Volumetric Rate kWh" -> 2010 Base Distribution Volumetric Rate kWh | I16: ='1. Information Sheet'!F32 &" Base Distribution Volumetric Rate kW" -> 2010 Base Distribution Volumetric Rate kW
A17: RESIDENTIAL | B17: $/kWh | C17: 0 | D17: 0 | E17: 0 | G17: 0 | H17: 0 | I17: 0
A18: GENERAL SERVICE LESS THAN 50 KW | B18: $/kWh | C18: 0 | D18: 0 | E18: 0 | G18: 0 | H18: 0 | I18: 0
A19: GENERAL SERVICE 50 TO 999 KW | B19: $/kW | C19: 0 | D19: 0 | E19: 0 | G19: 0 | H19: 0 | I19: 0
A20: GENERAL SERVICE INTERMEDIATE 1,000 TO 4,999 KW | B20: $/kW | C20: 0 | D20: 0 | E20: 0 | G20: 0 | H20: 0 | I20: 0
A21: INTERMEDIATE WITH SELF GENERATION | B21: $/kW | C21: 0 | D21: 0 | E21: 0 | G21: 0 | H21: 0 | I21: 0
A22: UNMETERED SCATTERED LOAD | B22: $/kWh | C22: 0 | D22: 0 | E22: 0 | G22: 0 | H22: 0 | I22: 0
A23: STANDBY POWER | C23: 0 | D23: 0 | E23: 0 | G23: 0 | H23: 0 | I23: 0
A24: SENTINEL LIGHTING | B24: $/kW | C24: 0 | D24: 0 | E24: 0 | G24: 0 | H24: 0 | I24: 0
A25: STREET LIGHTING | B25: $/kW | C25: 0 | D25: 0 | E25: 0 | G25: 0 | H25: 0 | I25: 0
A26: microFIT

Sheet 10. STS - Rebased Rev
A12: Calculation of Rebased Revenue Requirement. No input required.
A15: Rate Class | C15: Re-based Billed Customers or Connections | D15: Re-based Billed kWh | E15: Re-based Billed kW | G15: Rate ReBal Base Service Charge | H15: Rate ReBal Base Distribution Volumetric Rate kWh | I15: Rate ReBal Base Distribution Volumetric Rate kW | K15: Service Charge Revenue | L15: Distribution Volumetric Rate Revenue kWh | M15: Distribution Volumetric Rate Revenue kW | N15: Revenue Requirement from Rates | P15: Service Charge % Revenue | Q15: Distribution Volumetric Rate % Revenue kWh | R15: Distribution Volumetric Rate % Revenue kW | S15: Total % Revenue
C16: A | D16: B | E16: C | G16: D | H16: E | I16: F | K16: G = A * D *12 | L16: H = B * E | M16: I = C * F | N16: J = G + H + I | P16: K = G / J | Q16: L = H / J | R16: M = I / J | S16: N = J / R
A17: RESIDENTIAL | C17: 0 | D17: 0 | E17: 0 | G17: 0 | H17: 0 | I17: 0 | K17: =G17*C17*12 -> 0 | L17: 0 | M17: 0 | N17: =SUM(K17,L17,M17) -> 0 | P17: =IF(ISERROR(K17/N17),0,K17/N17) -> 0 | Q17: =IF(ISERROR(L17/N17),0,L17/N17) -> 0 | R17: =IF(ISERROR(M17/N17),0,M17/N17) -> 0 | S17: =N17/N27 -> 
A18: GENERAL SERVICE LESS THAN 50 KW | C18: 0 | D18: 0 | E18: 0 | G18: 0 | H18: 0 | I18: 0 | K18: =G18*C18*12 -> 0 | L18: 0 | M18: 0 | N18: =SUM(K18,L18,M18) -> 0 | P18: =IF(ISERROR(K18/N18),0,K18/N18) -> 0 | Q18: =IF(ISERROR(L18/N18),0,L18/N18) -> 0 | R18: =IF(ISERROR(M18/N18),0,M18/N18) -> 0 | S18: =N18/N27 -> 
A19: GENERAL SERVICE 50 TO 999 KW | C19: 0 | D19: 0 | E19: 0 | G19: 0 | H19: 0 | I19: 0 | K19: =G19*C19*12 -> 0 | L19: 0 | M19: 0 | N19: =SUM(K19,L19,M19) -> 0 | P19: =IF(ISERROR(K19/N19),0,K19/N19) -> 0 | Q19: =IF(ISERROR(L19/N19),0,L19/N19) -> 0 | R19: =IF(ISERROR(M19/N19),0,M19/N19) -> 0 | S19: =N19/N27 -> 
A20: GENERAL SERVICE INTERMEDIATE 1,000 TO 4,999 KW | C20: 0 | D20: 0 | E20: 0 | G20: 0 | H20: 0 | I20: 0 | K20: =G20*C20*12 -> 0 | L20: 0 | M20: 0 | N20: =SUM(K20,L20,M20) -> 0 | P20: =IF(ISERROR(K20/N20),0,K20/N20) -> 0 | Q20: =IF(ISERROR(L20/N20),0,L20/N20) -> 0 | R20: =IF(ISERROR(M20/N20),0,M20/N20) -> 0 | S20: =N20/N27 -> 
A21: INTERMEDIATE WITH SELF GENERATION | C21: 0 | D21: 0 | E21: 0 | G21: 0 | H21: 0 | I21: 0 | K21: =G21*C21*12 -> 0 | L21: 0 | M21: 0 | N21: =SUM(K21,L21,M21) -> 0 | P21: =IF(ISERROR(K21/N21),0,K21/N21) -> 0 | Q21: =IF(ISERROR(L21/N21),0,L21/N21) -> 0 | R21: =IF(ISERROR(M21/N21),0,M21/N21) -> 0 | S21: =N21/N27 -> 
A22: UNMETERED SCATTERED LOAD | C22: 0 | D22: 0 | E22: 0 | G22: 0 | H22: 0 | I22: 0 | K22: =G22*C22*12 -> 0 | L22: 0 | M22: 0 | N22: =SUM(K22,L22,M22) -> 0 | P22: =IF(ISERROR(K22/N22),0,K22/N22) -> 0 | Q22: =IF(ISERROR(L22/N22),0,L22/N22) -> 0 | R22: =IF(ISERROR(M22/N22),0,M22/N22) -> 0 | S22: =N22/N27 -> 
A23: STANDBY POWER | C23: 0 | D23: 0 | E23: 0 | G23: 0 | H23: 0 | I23: 0 | K23: =G23*C23*12 -> 0 | L23: 0 | M23: 0 | N23: =SUM(K23,L23,M23) -> 0 | P23: =IF(ISERROR(K23/N23),0,K23/N23) -> 0 | Q23: =IF(ISERROR(L23/N23),0,L23/N23) -> 0 | R23: =IF(ISERROR(M23/N23),0,M23/N23) -> 0 | S23: =N23/N27 -> 
A24: SENTINEL LIGHTING | C24: 0 | D24: 0 | E24: 0 | G24: 0 | H24: 0 | I24: 0 | K24: =G24*C24*12 -> 0 | L24: 0 | M24: 0 | N24: =SUM(K24,L24,M24) -> 0 | P24: =IF(ISERROR(K24/N24),0,K24/N24) -> 0 | Q24: =IF(ISERROR(L24/N24),0,L24/N24) -> 0 | R24: =IF(ISERROR(M24/N24),0,M24/N24) -> 0 | S24: =N24/N27 -> 
A25: STREET LIGHTING | C25: 0 | D25: 0 | E25: 0 | G25: 0 | H25: 0 | I25: 0 | K25: =G25*C25*12 -> 0 | L25: 0 | M25: 0 | N25: =SUM(K25,L25,M25) -> 0 | P25: =IF(ISERROR(K25/N25),0,K25/N25) -> 0 | Q25: =IF(ISERROR(L25/N25),0,L25/N25) -> 0 | R25: =IF(ISERROR(M25/N25),0,M25/N25) -> 0 | S25: =N25/N27 -> 
A26: microFIT | K26: =G26*C26*12 -> 0 | L26: 0 | M26: 0 | N26: =SUM(K26,L26,M26) -> 0 | P26: =IF(ISERROR(K26/N26),0,K26/N26) -> 0 | Q26: =IF(ISERROR(L26/N26),0,L26/N26) -> 0 | R26: =IF(ISERROR(M26/N26),0,M26/N26) -> 0 | S26: =N26/N27 -> 
A27: Total | C27: =SUM(C17:C26) -> 0 | D27: =SUM(D17:D26) -> 0 | E27: =SUM(E17:E26) -> 0 | K27: =SUM(K17:K26) -> 0 | L27: =SUM(L17:L26) -> 0 | M27: =SUM(M17:M26) -> 0 | N27: =SUM(N17:N26) -> 0 | S27: =SUM(S17:S26) -> 

Sheet 9. STS - Billing Det & Rate HID (hidden)
A11: Shared Tax Savings
A12: ="Enter your " & '1. Information Sheet'!F32 & " Board-Approved Billing Determinents into columns B, C and D." -> Enter your 2010 Board-Approved Billing Determinents into columns B, C and D.
A16: Rate Class | B16: Units | C16: Re-based Billed Customers or Connections | D16: Re-based Billed kWh | E16: Re-based Billed kW (if applicable) | G16: ='1. Information Sheet'!F32 &" Base Monthly Service Charge" -> 2010 Base Monthly Service Charge | H16: ='1. Information Sheet'!F32 &" Base Distribution Volumetric Rate kWh" -> 2010 Base Distribution Volumetric Rate kWh | I16: ='1. Information Sheet'!F32 &" Base Distribution Volumetric Rate kW" -> 2010 Base Distribution Volumetric Rate kW
A17: RESIDENTIAL | B17: $/kWh | C17: 0 | D17: 0 | E17: 0 | G17: 0 | H17: 0 | I17: 0
A18: GENERAL SERVICE LESS THAN 50 KW | B18: $/kWh | C18: 0 | D18: 0 | E18: 0 | G18: 0 | H18: 0 | I18: 0
A19: GENERAL SERVICE 50 TO 999 KW | B19: $/kW | C19: 0 | D19: 0 | E19: 0 | G19: 0 | H19: 0 | I19: 0
A20: GENERAL SERVICE INTERMEDIATE 1,000 TO 4,999 KW | B20: $/kW | C20: 0 | D20: 0 | E20: 0 | G20: 0 | H20: 0 | I20: 0
A21: INTERMEDIATE WITH SELF GENERATION | B21: $/kW | C21: 0 | D21: 0 | E21: 0 | G21: 0 | H21: 0 | I21: 0
A22: UNMETERED SCATTERED LOAD | B22: $/kWh | C22: 0 | D22: 0 | E22: 0 | G22: 0 | H22: 0 | I22: 0
A23: STANDBY POWER | B23: 0 | C23: 0 | D23: 0 | E23: 0 | G23: 0 | H23: 0 | I23: 0
A24: SENTINEL LIGHTING | B24: $/kW | C24: 0 | D24: 0 | E24: 0 | G24: 0 | H24: 0 | I24: 0
A25: STREET LIGHTING | B25: $/kW | C25: 0 | D25: 0 | E25: 0 | G25: 0 | H25: 0 | I25: 0
A26: microFIT | B26: 0 | C26: 0 | D26: 0 | E26: 0 | G26: 0 | H26: 0 | I26: 0

Sheet 11. STS - Tax Change
T1: Rate Base | U1: Federal Tax Rate
T2: 500000 | U2: 0.11
T3: 10000000 | U3: 0.11
T4: =T3+100000 -> 10100000 | U4: 0.11
T5: =T4+100000 -> 10200000 | U5: 0.11
T6: 10300000 | U6: 0.11
T7: 10400000 | U7: 0.11
T8: 10500000 | U8: 0.11
T9: 10600000 | U9: 0.11
T10: 10700000 | U10: 0.11
T11: 10800000 | U11: 0.11
T12: 10900000 | U12: 0.11
A13: Summary - Sharing of Tax Change Forecast Amounts | T13: 11000000 | U13: 0.11
T14: 11100000 | U14: 0.111
A15: ="For the " & '1. Information Sheet'!F32 & " year, enter any Tax Credits from the Cost of Service Tax Calculation (Positive #)" -> For the 2010 year, enter any Tax Credits from the Cost of Service Tax Calculation (Positive #) | L15: 0 | T15: 11200000 | U15: =U14+0.13% -> 0.1123 | V15: =U15-U14 -> 0.0013
T16: 11300000 | U16: =U15+0.13% -> 0.1136 | V16: =U16-U15 -> 0.0013
T17: 11400000 | U17: 0.1149 | V17: 0.0013
A18: 1. Tax Related Amounts Forecast from Capital Tax Rate Changes | L18: ='1. Information Sheet'!F32 -> 2010 | N18: 2015 | T18: 11500000 | U18: 0.1162 | V18: 0.0013
A19: Taxable Capital (if you are not claiming capital tax, please enter your Board-Approved Rate Base) | L19: 1 | N19: =L19 -> 1 | T19: 11600000 | U19: =U18+0.12% -> 0.1174 | V19: 0.0012
T20: 11700000 | U20: =U19+0.12% -> 0.1186 | V20: 0.0012
A21: Deduction from taxable capital up to $15,000,000 | N21: =L21 -> 0 | T21: 11800000 | U21: 0.1198 | V21: 0.0012
T22: 11900000 | U22: 0.121 | V22: 0.0012
A23: Net Taxable Capital | L23: =L19-L21 -> 1 | N23: =N19-N21 -> 1 | T23: 12000000 | U23: =U22+0.112% -> 0.12212 | V23: 0.00112
T24: 12100000 | U24: =U23+0.112% -> 0.12324 | V24: 0.00112
A25: Rate | N25: 0 | T25: 12200000 | U25: 0.12436 | V25: 0.00112
T26: 12300000 | U26: 0.12548 | V26: 0.00112
A27: Ontario Capital Tax (Deductible, not grossed-up) | L27: =IF(L23>0, L23*L25, 0)*181/365 -> 0 | N27: 0 | T27: 12400000 | U27: 0.1266 | V27: 0.00112
T28: 12500000 | U28: 0.12772 | V28: 0.00112
A29: 2. Tax Related Amounts Forecast from lncome Tax Rate Changes | T29: 12600000 | U29: =U28+0.102% -> 0.12874 | V29: 0.00102
A30: Regulatory Taxable Income | N30: =L30 -> 0 | T30: 12700000 | U30: =U29+0.102% -> 0.12976 | V30: 0.00102
T31: 12800000 | U31: 0.13078 | V31: 0.00102
A32: Corporate Tax Rate | N32: =IF(N30=0,0,IF(N30<=500000,4.5%+11%,IF(N30>500000,(11.5%*N30-35000)/N30+VLOOKUP(N19,T:U,2,TRUE),""))) -> 0 | T32: 12900000 | U32: 0.1318 | V32: 0.00102
T33: 13000000 | U33: 0.13282 | V33: 0.00102
A34: Tax Impact | N34: =N30*N32-L15 -> 0 | T34: 13100000 | U34: =U33+0.096% -> 0.13378 | V34: 0.00096
T35: 13200000 | U35: =U34+0.096% -> 0.13474 | V35: 0.00096
A36: Grossed-up Tax Amount | N36: =N34/(1-N32) -> 0 | T36: 13300000 | U36: 0.1357 | V36: 0.00096
T37: 13400000 | U37: 0.13666 | V37: 0.00096
A38: Tax Related Amounts Forecast from Capital Tax Rate Changes | L38: =L27 -> 0 | N38: =N27 -> 0 | T38: 13500000 | U38: 0.13762 | V38: 0.00096
T39: 13600000 | U39: =U38+0.088% -> 0.1385 | V39: 0.00088
A40: Tax Related Amounts Forecast from lncome Tax Rate Changes | L40: =L36 -> 0 | N40: =N36 -> 0 | T40: 13700000 | U40: =U39+0.088% -> 0.13938 | V40: 0.00088
T41: 13800000 | U41: 0.14026 | V41: 0.00088
A42: Total Tax Related Amounts | L42: =SUM(L40,L38) -> 0 | N42: =SUM(N40,N38) -> 0 | T42: 13900000 | U42: 0.14114 | V42: 0.00088
T43: 14000000 | U43: 0.14202 | V43: 0.00088
A44: Incremental Tax Savings | N44: =N42-L42 -> 0 | T44: 14100000 | U44: =U43+0.082% -> 0.14284 | V44: 0.00082
T45: 14200000 | U45: =U44+0.082% -> 0.14366 | V45: 0.00082
A46: Sharing of Tax Savings (50%) | N46: =0.5*N44 -> 0 | T46: 14300000 | U46: 0.14448 | V46: 0.00082
T47: 14400000 | U47: 0.1453 | V47: 0.00082
T48: 14500000 | U48: 0.14612 | V48: 0.00082
T49: 14600000 | U49: =U48+0.076% -> 0.14688 | V49: 0.00076
T50: 14700000 | U50: =U49+0.076% -> 0.14764 | V50: 0.00076
T51: 14800000 | U51: 0.1484 | V51: 0.00076
T52: 14900000 | U52: 0.14916 | V52: 0.00076
T53: 15000000 | U53: 0.15 | V53: 0.00084

Sheet 12. STS - Tax Change Rate Rider
A11: This worksheet calculates a tax change volumetric rate rider. If the rate riders are material (round to 4 decimal places), then the outputs in columns M and O will appear on Sheet 27 - Final Tariff Schedule.
A15: Rate Class | C15: Total Revenue $ by Rate Class | E15: Total Revenue % by Rate Class | G15: Allocation of Tax Savings by Rate Class | I15: Billed kWh | K15: Billed kW | M15: Distribution Volumetric Rate kWh Rate Rider | O15: Distribution Volumetric Rate kW Rate Rider
A17: RESIDENTIAL | C17: 0 | E17: =C17/C27 ->  | G17: =E17*G27 ->  | I17: 0 | K17: 0
A18: GENERAL SERVICE LESS THAN 50 KW | C18: 0 | E18: =C18/C27 ->  | G18: =E18*G27 ->  | I18: 0 | K18: 0
A19: GENERAL SERVICE 50 TO 999 KW | C19: 0 | E19: =C19/C27 ->  | G19: =E19*G27 ->  | I19: 0 | K19: 0
A20: GENERAL SERVICE INTERMEDIATE 1,000 TO 4,999 KW | C20: 0 | E20: =C20/C27 ->  | G20: =E20*G27 ->  | I20: 0 | K20: 0
A21: INTERMEDIATE WITH SELF GENERATION | C21: 0 | E21: =C21/C27 ->  | G21: =E21*G27 ->  | I21: 0 | K21: 0
A22: UNMETERED SCATTERED LOAD | C22: 0 | E22: =C22/C27 ->  | G22: =E22*G27 ->  | I22: 0 | K22: 0
A23: STANDBY POWER | C23: 0 | E23: =C23/C27 ->  | G23: =E23*G27 ->  | I23: 0 | K23: 0
A24: SENTINEL LIGHTING | C24: 0 | E24: =C24/C27 ->  | G24: =E24*G27 ->  | I24: 0 | K24: 0
A25: STREET LIGHTING | C25: 0 | E25: =C25/C27 ->  | G25: =E25*G27 ->  | I25: 0 | K25: 0
A26: microFIT | C26: 0 | E26: =C26/C27 ->  | G26: =E26*G27 -> 
A27: Total | C27: =SUM(C17:C26) -> 0 | E27: =SUM(E17:E26) ->  | G27: 0 | I27: =SUM(I17:I26) -> 0 | K27: =SUM(K17:K26) -> 0

Sheet 13. RTSR Rate Sheet
A13: No input required. This sheet consolidates all Current Retail Transmission Rates entered on Sheet 4.
A15: Rate Class | B15: Rate Description | C15: Unit | D15: RTSR-Network | E15: RTSR-Connection
A17: RESIDENTIAL | B17: Retail Transmission Rate - Network Service Rate | C17: $/kWh | D17: 0.0073
A18: RESIDENTIAL | B18: Retail Transmission Rate - Line and Transformation Connection Service Rate | C18: $/kWh | E18: 0.0051
A19: GENERAL SERVICE LESS THAN 50 KW | B19: Retail Transmission Rate - Network Service Rate | C19: $/kWh | D19: 0.0064
A20: GENERAL SERVICE LESS THAN 50 KW | B20: Retail Transmission Rate - Line and Transformation Connection Service Rate | C20: $/kWh | E20: 0.0045
A21: GENERAL SERVICE 50 TO 999 KW | B21: Retail Transmission Rate - Network Service Rate | C21: $/kW | D21: 2.6952
A22: GENERAL SERVICE 50 TO 999 KW | B22: Retail Transmission Rate - Line and Transformation Connection Service Rate | C22: $/kW | E22: 1.8182
A23: GENERAL SERVICE 50 TO 999 KW | B23: Retail Transmission Rate - Network Service Rate - Interval Metered | C23: $/kW | D23: 2.8582
A24: GENERAL SERVICE 50 TO 999 KW | B24: Retail Transmission Rate - Line and Transformation Connection Service Rate - Interval Metered | C24: $/kW | E24: 1.9905
A25: GENERAL SERVICE INTERMEDIATE 1,000 TO 4,999 KW | B25: Retail Transmission Rate - Network Service Rate | C25: $/kW | D25: 2.872
A26: GENERAL SERVICE INTERMEDIATE 1,000 TO 4,999 KW | B26: Retail Transmission Rate - Line and Transformation Connection Service Rate | C26: $/kW | E26: 1.9913
A27: INTERMEDIATE WITH SELF GENERATION | B27: Retail Transmission Rate - Network Service Rate | C27: $/kW | D27: 2.872
A28: INTERMEDIATE WITH SELF GENERATION | B28: Retail Transmission Rate - Line and Transformation Connection Service Rate | C28: $/kW | E28: 1.9913
A29: UNMETERED SCATTERED LOAD | B29: Retail Transmission Rate - Network Service Rate | C29: $/kWh | D29: 0.0064
A30: UNMETERED SCATTERED LOAD | B30: Retail Transmission Rate - Line and Transformation Connection Service Rate | C30: $/kWh | E30: 0.0045
A31: SENTINEL LIGHTING | B31: Retail Transmission Rate - Network Service Rate | C31: $/kW | D31: 2.0475
A32: SENTINEL LIGHTING | B32: Retail Transmission Rate - Line and Transformation Connection Service Rate | C32: $/kW | E32: 1.4334
A33: STREET LIGHTING | B33: Retail Transmission Rate - Network Service Rate | C33: $/kW | D33: 2.0326
A34: STREET LIGHTING | B34: Retail Transmission Rate - Line and Transformation Connection Service Rate | C34: $/kW | E34: 1.4046

Sheet 14. RTSR RRR Data
A12: In the green shaded cells, enter the most recent reported RRR billing determinants. Please ensure that billing determinants are non-loss adjusted.
A14: Rate Class | B14: Rate Description | C14: Unit | D14: Non-Loss Adjusted Metered kWh | E14: Non-Loss Adjusted Metered kW | F14: Applicable Loss Factor | H14: Load Factor | I14: Loss Adjusted Billed kWh | J14: Billed kW
A15: RESIDENTIAL | B15: Retail Transmission Rate - Network Service Rate | C15: $/kWh | D15: 216352313 | E15: 0 | F15: 1.0428 | H15: =IF(C15="$/kW", D15/(E15* 30.4 * 24), "" ) ->  | I15: =IF(OR(F15=0, OR(ISBLANK(F15), TRIM(F15)="")), F15, F15 * D15) -> 225612192 | J15: =IF(OR(F15=0, OR(ISBLANK(F15), TRIM(F15)="")), E15, E15) -> 0
A16: RESIDENTIAL | B16: Retail Transmission Rate - Line and Transformation Connection Service Rate | C16: $/kWh | D16: 216352313 | E16: 0 | F16: 1.0428 | H16: =IF(C16="$/kW", D16/(E16* 30.4 * 24), "" ) ->  | I16: =IF(OR(F16=0, OR(ISBLANK(F16), TRIM(F16)="")), F16, F16 * D16) -> 225612192 | J16: =IF(OR(F16=0, OR(ISBLANK(F16), TRIM(F16)="")), E16, E16) -> 0
A17: GENERAL SERVICE LESS THAN 50 KW | B17: Retail Transmission Rate - Network Service Rate | C17: $/kWh | D17: 84825628 | E17: 0 | F17: 1.0428 | H17: =IF(C17="$/kW", D17/(E17* 30.4 * 24), "" ) ->  | I17: =IF(OR(F17=0, OR(ISBLANK(F17), TRIM(F17)="")), F17, F17 * D17) -> 88456164.88 | J17: =IF(OR(F17=0, OR(ISBLANK(F17), TRIM(F17)="")), E17, E17) -> 0
A18: GENERAL SERVICE LESS THAN 50 KW | B18: Retail Transmission Rate - Line and Transformation Connection Service Rate | C18: $/kWh | D18: 84825628 | E18: 0 | F18: 1.0428 | H18: =IF(C18="$/kW", D18/(E18* 30.4 * 24), "" ) ->  | I18: =IF(OR(F18=0, OR(ISBLANK(F18), TRIM(F18)="")), F18, F18 * D18) -> 88456164.88 | J18: =IF(OR(F18=0, OR(ISBLANK(F18), TRIM(F18)="")), E18, E18) -> 0
A19: GENERAL SERVICE 50 TO 999 KW | B19: Retail Transmission Rate - Network Service Rate | C19: $/kW | D19: 203026843 | E19: 546511 | F19: 0 | H19: 0 | I19: =IF(OR(F19=0, OR(ISBLANK(F19), TRIM(F19)="")), F19, F19 * D19) -> 0 | J19: =IF(OR(F19=0, OR(ISBLANK(F19), TRIM(F19)="")), E19, E19) -> 546511
A20: GENERAL SERVICE 50 TO 999 KW | B20: Retail Transmission Rate - Line and Transformation Connection Service Rate | C20: $/kW | D20: 203026843 | E20: 546511 | F20: 0 | H20: 0 | I20: =IF(OR(F20=0, OR(ISBLANK(F20), TRIM(F20)="")), F20, F20 * D20) -> 0 | J20: =IF(OR(F20=0, OR(ISBLANK(F20), TRIM(F20)="")), E20, E20) -> 546511
A21: GENERAL SERVICE 50 TO 999 KW | B21: Retail Transmission Rate - Network Service Rate - Interval Metered | C21: $/kW | D21: 51821461 | E21: 144879 | F21: 0 | H21: 0 | I21: =IF(OR(F21=0, OR(ISBLANK(F21), TRIM(F21)="")), F21, F21 * D21) -> 0 | J21: =IF(OR(F21=0, OR(ISBLANK(F21), TRIM(F21)="")), E21, E21) -> 144879
A22: GENERAL SERVICE 50 TO 999 KW | B22: Retail Transmission Rate - Line and Transformation Connection Service Rate - Interval Metered | C22: $/kW | D22: 51821461 | E22: 144879 | F22: 0 | H22: 0 | I22: =IF(OR(F22=0, OR(ISBLANK(F22), TRIM(F22)="")), F22, F22 * D22) -> 0 | J22: =IF(OR(F22=0, OR(ISBLANK(F22), TRIM(F22)="")), E22, E22) -> 144879
A23: GENERAL SERVICE INTERMEDIATE 1,000 TO 4,999 KW | B23: Retail Transmission Rate - Network Service Rate | C23: $/kW | D23: 112421650.8 | E23: 278345 | F23: 0 | H23: 0 | I23: =IF(OR(F23=0, OR(ISBLANK(F23), TRIM(F23)="")), F23, F23 * D23) -> 0 | J23: =IF(OR(F23=0, OR(ISBLANK(F23), TRIM(F23)="")), E23, E23) -> 278345
A24: GENERAL SERVICE INTERMEDIATE 1,000 TO 4,999 KW | B24: Retail Transmission Rate - Line and Transformation Connection Service Rate | C24: $/kW | D24: 112421650.8 | E24: 278345 | F24: 0 | H24: 0 | I24: =IF(OR(F24=0, OR(ISBLANK(F24), TRIM(F24)="")), F24, F24 * D24) -> 0 | J24: =IF(OR(F24=0, OR(ISBLANK(F24), TRIM(F24)="")), E24, E24) -> 278345
A25: INTERMEDIATE WITH SELF GENERATION | B25: Retail Transmission Rate - Network Service Rate | C25: $/kW | D25: 39427413.28 | E25: 87871 | F25: 0 | H25: 0 | I25: =IF(OR(F25=0, OR(ISBLANK(F25), TRIM(F25)="")), F25, F25 * D25) -> 0 | J25: =IF(OR(F25=0, OR(ISBLANK(F25), TRIM(F25)="")), E25, E25) -> 87871
A26: INTERMEDIATE WITH SELF GENERATION | B26: Retail Transmission Rate - Line and Transformation Connection Service Rate | C26: $/kW | D26: 39427413.28 | E26: 87871 | F26: 0 | H26: 0 | I26: =IF(OR(F26=0, OR(ISBLANK(F26), TRIM(F26)="")), F26, F26 * D26) -> 0 | J26: =IF(OR(F26=0, OR(ISBLANK(F26), TRIM(F26)="")), E26, E26) -> 87871
A27: UNMETERED SCATTERED LOAD | B27: Retail Transmission Rate - Network Service Rate | C27: $/kWh | D27: 904820 | E27: 0 | F27: 1.0428 | H27: =IF(C27="$/kW", D27/(E27* 30.4 * 24), "" ) ->  | I27: =IF(OR(F27=0, OR(ISBLANK(F27), TRIM(F27)="")), F27, F27 * D27) -> 943546.296 | J27: =IF(OR(F27=0, OR(ISBLANK(F27), TRIM(F27)="")), E27, E27) -> 0
A28: UNMETERED SCATTERED LOAD | B28: Retail Transmission Rate - Line and Transformation Connection Service Rate | C28: $/kWh | D28: 904820 | E28: 0 | F28: 1.0428 | H28: =IF(C28="$/kW", D28/(E28* 30.4 * 24), "" ) ->  | I28: =IF(OR(F28=0, OR(ISBLANK(F28), TRIM(F28)="")), F28, F28 * D28) -> 943546.296 | J28: =IF(OR(F28=0, OR(ISBLANK(F28), TRIM(F28)="")), E28, E28) -> 0
A29: SENTINEL LIGHTING | B29: Retail Transmission Rate - Network Service Rate | C29: $/kW | D29: 364770 | E29: 1002 | F29: 0 | H29: 0 | I29: =IF(OR(F29=0, OR(ISBLANK(F29), TRIM(F29)="")), F29, F29 * D29) -> 0 | J29: =IF(OR(F29=0, OR(ISBLANK(F29), TRIM(F29)="")), E29, E29) -> 1002
A30: SENTINEL LIGHTING | B30: Retail Transmission Rate - Line and Transformation Connection Service Rate | C30: $/kW | D30: 364770 | E30: 1002 | F30: 0 | H30: 0 | I30: =IF(OR(F30=0, OR(ISBLANK(F30), TRIM(F30)="")), F30, F30 * D30) -> 0 | J30: =IF(OR(F30=0, OR(ISBLANK(F30), TRIM(F30)="")), E30, E30) -> 1002
A31: STREET LIGHTING | B31: Retail Transmission Rate - Network Service Rate | C31: $/kW | D31: 6163072 | E31: 18186 | F31: 0 | H31: 0 | I31: =IF(OR(F31=0, OR(ISBLANK(F31), TRIM(F31)="")), F31, F31 * D31) -> 0 | J31: =IF(OR(F31=0, OR(ISBLANK(F31), TRIM(F31)="")), E31, E31) -> 18186
A32: STREET LIGHTING | B32: Retail Transmission Rate - Line and Transformation Connection Service Rate | C32: $/kW | D32: 6163072 | E32: 18186 | F32: 0 | H32: 0 | I32: =IF(OR(F32=0, OR(ISBLANK(F32), TRIM(F32)="")), F32, F32 * D32) -> 0 | J32: =IF(OR(F32=0, OR(ISBLANK(F32), TRIM(F32)="")), E32, E32) -> 18186

Sheet 14. RTSR RRR Data Copy (hidden)
A12: In the green shaded cells, enter the most recent reported RRR billing determinants. Please ensure that billing determinants are non-loss adjusted.
A14: Rate Class | B14: Rate Description | C14: Unit | D14: Non-Loss Adjusted Metered kWh | E14: Non-Loss Adjusted Metered kW | F14: Applicable Loss Factor | H14: Load Factor | I14: Loss Adjusted Billed kWh | J14: Billed kW
A15: RESIDENTIAL | B15: Retail Transmission Rate - Network Service Rate | C15: $/kWh | D15: 216352313 | E15: 0 | F15: 1.0428
A16: RESIDENTIAL | B16: Retail Transmission Rate - Line and Transformation Connection Service Rate | C16: $/kWh | D16: 216352313 | E16: 0 | F16: 1.0428
A17: GENERAL SERVICE LESS THAN 50 KW | B17: Retail Transmission Rate - Network Service Rate | C17: $/kWh | D17: 84825628 | E17: 0 | F17: 1.0428
A18: GENERAL SERVICE LESS THAN 50 KW | B18: Retail Transmission Rate - Line and Transformation Connection Service Rate | C18: $/kWh | D18: 84825628 | E18: 0 | F18: 1.0428
A19: GENERAL SERVICE 50 TO 999 KW | B19: Retail Transmission Rate - Network Service Rate | C19: $/kW | D19: 203026843 | E19: 546511 | F19: 0
A20: GENERAL SERVICE 50 TO 999 KW | B20: Retail Transmission Rate - Line and Transformation Connection Service Rate | C20: $/kW | D20: 203026843 | E20: 546511 | F20: 0
A21: GENERAL SERVICE 50 TO 999 KW | B21: Retail Transmission Rate - Network Service Rate - Interval Metered | C21: $/kW | D21: 51821461 | E21: 144879 | F21: 0
A22: GENERAL SERVICE 50 TO 999 KW | B22: Retail Transmission Rate - Line and Transformation Connection Service Rate - Interval Metered | C22: $/kW | D22: 51821461 | E22: 144879 | F22: 0
A23: GENERAL SERVICE INTERMEDIATE 1,000 TO 4,999 KW | B23: Retail Transmission Rate - Network Service Rate | C23: $/kW | D23: 112421650.8 | E23: 278345 | F23: 0
A24: GENERAL SERVICE INTERMEDIATE 1,000 TO 4,999 KW | B24: Retail Transmission Rate - Line and Transformation Connection Service Rate | C24: $/kW | D24: 112421650.8 | E24: 278345 | F24: 0
A25: INTERMEDIATE WITH SELF GENERATION | B25: Retail Transmission Rate - Network Service Rate | C25: $/kW | D25: 39427413.28 | E25: 87871 | F25: 0
A26: INTERMEDIATE WITH SELF GENERATION | B26: Retail Transmission Rate - Line and Transformation Connection Service Rate | C26: $/kW | D26: 39427413.28 | E26: 87871 | F26: 0
A27: UNMETERED SCATTERED LOAD | B27: Retail Transmission Rate - Network Service Rate | C27: $/kWh | D27: 904820 | E27: 0 | F27: 1.0428
A28: UNMETERED SCATTERED LOAD | B28: Retail Transmission Rate - Line and Transformation Connection Service Rate | C28: $/kWh | D28: 904820 | E28: 0 | F28: 1.0428
A29: SENTINEL LIGHTING | B29: Retail Transmission Rate - Network Service Rate | C29: $/kW | D29: 364770 | E29: 1002 | F29: 0
A30: SENTINEL LIGHTING | B30: Retail Transmission Rate - Line and Transformation Connection Service Rate | C30: $/kW | D30: 364770 | E30: 1002 | F30: 0
A31: STREET LIGHTING | B31: Retail Transmission Rate - Network Service Rate | C31: $/kW | D31: 6163072 | E31: 18186 | F31: 0
A32: STREET LIGHTING | B32: Retail Transmission Rate - Line and Transformation Connection Service Rate | C32: $/kW | D32: 6163072 | E32: 18186 | F32: 0

Sheet 15. RTSR - UTRs & Sub-Tx
B18: Uniform Transmission Rates | C18: Unit | E18: Effective January 1, 2013 | G18: Effective January 1, 2014 | I18: Effective January 1, 2015
B20: Rate Description | E20: Rate | G20: Rate | I20: Rate
B22: Network Service Rate | C22: kW | E22: 3.63 | G22: 3.82 | I22: 3.82
B24: Line Connection Service Rate | C24: kW | E24: 0.75 | G24: 0.82 | I24: 0.82
B26: Transformation Connection Service Rate | C26: kW | E26: 1.85 | G26: 1.98 | I26: 1.98
B29: Hydro One Sub-Transmission Rates | C29: Unit | E29: Effective January 1, 2013 | G29: Effective January 1, 2014 | I29: Effective January 1, 2015
B33: Rate Description | E33: Rate | G33: Rate | I33: Rate
B35: Network Service Rate | C35: kW | E35: 3.18 | G35: 3.23 | I35: =+G35 -> 3.23
B37: Line Connection Service Rate | C37: kW | E37: 0.7 | G37: 0.65 | I37: =+G37 -> 0.65
B39: Transformation Connection Service Rate | C39: kW | E39: 1.63 | G39: 1.62 | I39: =+G39 -> 1.62
B41: Both Line and Transformation Connection Service Rate | C41: kW | E41: =E39+E37 -> 2.33 | G41: =G39+G37 -> 2.27 | I41: =I39+I37 -> 2.27
B44: If needed , add extra host here (I) | C44: Unit | E44: Effective January 1, 2013 | G44: Effective January 1, 2014 | I44: Effective January 1, 2015
B48: Rate Description | E48: Rate | G48: Rate | I48: Rate
B50: Network Service Rate | C50: kW
B52: Line Connection Service Rate | C52: kW
B54: Transformation Connection Service Rate | C54: kW
B56: Both Line and Transformation Connection Service Rate | C56: kW | E56: =E54+E52 -> 0 | G56: =G54+G52 -> 0 | I56: =I54+I52 -> 0
B59: If needed , add extra host here (II) | C59: Unit | E59: Effective January 1, 2013 | G59: Effective January 1, 2014 | I59: Effective January 1, 2015
B63: Rate Description | E63: Rate | G63: Rate | I63: Rate
B65: Network Service Rate | C65: kW
B67: Line Connection Service Rate | C67: kW
B69: Transformation Connection Service Rate | C69: kW
B71: Both Line and Transformation Connection Service Rate | C71: kW | E71: =E69+E67 -> 0 | G71: =G69+G67 -> 0 | I71: =I69+I67 -> 0
B75: Hydro One Sub-Transmission Rate Rider 9A | C75: Unit | E75: Effective January 1, 2013 | G75: Effective January 1, 2014 | I75: Effective January 1, 2015
B77: Rate Description | E77: Rate | G77: Rate | I77: Rate
B79: RSVA Transmission network – 4714 – which affects 1584 | C79: kW | E79: 0 | G79: 0.1465 | I79: 0.1465
B81: RSVA Transmission connection – 4716 – which affects 1586 | C81: kW | E81: 0 | G81: 0.0667 | I81: 0.0667
B83: RSVA LV – 4750 – which affects 1550 | C83: kW | E83: 0 | G83: 0.0475 | I83: 0.0475
B85: RARA 1 – 2252 – which affects 1590 | C85: kW | E85: 0 | G85: 0.0419 | I85: 0.0419
B87: RARA 1 – 2252 – which affects 1590 (2008) | C87: kW | E87: 0 | G87: -0.027 | I87: -0.027
B89: RARA 1 – 2252 – which affects 1590 (2009) | C89: kW | E89: 0 | G89: -0.0006 | I89: -0.0006
B91: Hydro One Sub-Transmission Rate Rider 9A | C91: kW | E91: =SUM(E79:E89) -> 0 | G91: =SUM(G79:G89) -> 0.275 | I91: =SUM(I79:I89) -> 0.275
E94: Historical 2013 | G94: Current 2014 | I94: Forecast 2015
B95: Low Voltage Switchgear Credit (if applicable, enter as a negative value) | C95: $

Sheet 16. RTSR - Historical Wholesale
B13: In the green shaded cells, enter billing detail for wholesale transmission for the same reporting period as the billing determinants on Sheet "14. RTSR RRR Data". For Hydro One Sub-transmission Rates, if you are charged a combined Line and Transformer connection rate, please ensure that both the line connection and transformer connection columns are completed.
B16: IESO | D16: Network | H16: Line Connection | L16: Transformation Connection | P16: Total Line
B17: Month | D17: Units Billed | E17: Rate | F17: Amount | H17: Units Billed | I17: Rate | J17: Amount | L17: Units Billed | M17: Rate | N17: Amount | P17: Amount
B19: January | D19: 72155 | E19: =IF(D19<>0,F19/D19,0) -> 3.63 | F19: 261922.65 | H19: 79208 | I19: =IF(H19<>0,J19/H19,0) -> 0.75 | J19: 59406 | L19: 79208 | M19: =IF(L19<>0,N19/L19,0) -> 1.85 | N19: 146534.8 | P19: =J19+N19 -> 205940.8
B20: February | D20: 64253 | E20: 3.63 | F20: 233238.39 | H20: 67645 | I20: 0.75 | J20: 50733.75 | L20: 67645 | M20: 1.85 | N20: 125143.25 | P20: 175877
B21: March | D21: 61615 | E21: 3.63 | F21: 223662.45 | H21: 64946 | I21: 0.75 | J21: 48709.5 | L21: 64946 | M21: 1.85 | N21: 120150.1 | P21: 168859.6
B22: April | D22: 57850 | E22: 3.63 | F22: 209995.5 | H22: 63499 | I22: 0.75 | J22: 47624.25 | L22: 63499 | M22: 1.85 | N22: 117473.15 | P22: 165097.4
B23: May | D23: 76013 | E23: 3.63 | F23: 275927.19 | H23: 80844 | I23: 0.75 | J23: 60633 | L23: 80844 | M23: 1.85 | N23: 149561.4 | P23: 210194.4
B24: June | D24: 90101 | E24: 3.63 | F24: 327066.63 | H24: 93765 | I24: 0.75 | J24: 70323.75 | L24: 93765 | M24: 1.85 | N24: 173465.25 | P24: 243789
B25: July | D25: 99595 | E25: 3.63 | F25: 361529.85 | H25: 104439 | I25: 0.75 | J25: 78329.25 | L25: 104439 | M25: 1.85 | N25: 193212.15 | P25: 271541.4
B26: August | D26: 92870 | E26: 3.63 | F26: 337118.1 | H26: 94528 | I26: 0.75 | J26: 70896 | L26: 94528 | M26: 1.85 | N26: 174876.8 | P26: 245772.8
B27: September | D27: 97355 | E27: 3.63 | F27: 353398.65 | H27: 101855 | I27: 0.75 | J27: 76391.25 | L27: 101855 | M27: 1.85 | N27: 188431.75 | P27: 264823
B28: October | D28: 62289 | E28: 3.63 | F28: 226109.07 | H28: 73281 | I28: 0.75 | J28: 54960.75 | L28: 73281 | M28: 1.85 | N28: 135569.85 | P28: 190530.6
B29: November | D29: 64306 | E29: 3.63 | F29: 233430.78 | H29: 67539 | I29: 0.75 | J29: 50654.25 | L29: 67539 | M29: 1.85 | N29: 124947.15 | P29: 175601.4
B30: December | D30: 75104 | E30: 3.63 | F30: 272627.52 | H30: 77063 | I30: 0.75 | J30: 57797.25 | L30: 77063 | M30: 1.85 | N30: 142566.55 | P30: 200363.8
B32: Total | D32: =SUM(D19:D30) -> 913506 | E32: =IF(D32<>0,F32/D32,0) -> 3.63 | F32: =SUM(F19:F30) -> 3316026.78 | H32: =SUM(H19:H30) -> 968612 | I32: =IF(H32<>0,J32/H32,0) -> 0.75 | J32: =SUM(J19:J30) -> 726459 | L32: =SUM(L19:L30) -> 968612 | M32: =IF(L32<>0,N32/L32,0) -> 1.85 | N32: =SUM(N19:N30) -> 1791932.2 | P32: =SUM(P19:P30) -> 2518391.2
B34: Hydro One | D34: Network | H34: Line Connection | L34: Transformation Connection | P34: Total Line
B36: Month | D36: Units Billed | E36: Rate | F36: Amount | H36: Units Billed | I36: Rate | J36: Amount | L36: Units Billed | M36: Rate | N36: Amount | P36: Amount
B38: January | D38: 42912 | E38: =IF(D38<>0,F38/D38,0) -> 3.18 | F38: 136460.16 | H38: 42936 | I38: =IF(H38<>0,J38/H38,0) -> 0.7 | J38: 30055.2 | L38: 31797 | M38: =IF(L38<>0,N38/L38,0) -> 1.63 | N38: 51829.11 | P38: =J38+N38 -> 81884.31
B39: February | D39: 40983 | E39: 3.18 | F39: 130325.94 | H39: 40983 | I39: 0.7 | J39: 28688.1 | L39: 29668 | M39: 1.63 | N39: 48358.84 | P39: 77046.94
B40: March | D40: 39453 | E40: 3.18 | F40: 125460.54 | H40: 39823 | I40: 0.7 | J40: 27876.1 | L40: 28737 | M40: 1.63 | N40: 46841.31 | P40: 74717.41
B41: April | D41: 36655.77 | E41: 3.18 | F41: 116565.3486 | H41: 36889.02 | I41: 0.7 | J41: 25822.314 | L41: 26464.59 | M41: 1.63 | N41: 43137.2817 | P41: 68959.5957
B42: May | D42: 41503.46 | E42: 3.18 | F42: 131981.0028 | H42: 41528.9 | I42: 0.7 | J42: 29070.23 | L42: 29458.14 | M42: 1.63 | N42: 48016.7682 | P42: 77086.9982
B43: June | D43: 49438.06 | E43: 3.18 | F43: 157213.0308 | H43: 49459.11 | I43: 0.7 | J43: 34621.377 | L43: 36084.99 | M43: 1.63 | N43: 58818.5337 | P43: 93439.9107
B44: July | D44: 54513.42 | E44: 3.18 | F44: 173352.6756 | H44: 54882.34 | I44: 0.7 | J44: 38417.638 | L44: 40984.83 | M44: 1.63 | N44: 66805.2729 | P44: 105222.9109
B45: August | D45: 50682.61 | E45: 3.18 | F45: 161170.6998 | H45: 50993.9 | I45: 0.7 | J45: 35695.73 | L45: 37597.52 | M45: 1.63 | N45: 61283.9576 | P45: 96979.6876
B46: September | D46: 55489.71 | E46: 3.18 | F46: 176457.2778 | H46: 55787.02 | I46: 0.7 | J46: 39050.914 | L46: 40897.09 | M46: 1.63 | N46: 66662.2567 | P46: 105713.1707
B47: October | D47: 38717.03 | E47: 3.18 | F47: 123120.1554 | H47: 38799.98 | I47: 0.7 | J47: 27159.986 | L47: 27220.84 | M47: 1.63 | N47: 44369.9692 | P47: 71529.9552
B48: November | D48: 40938.8 | E48: 3.18 | F48: 130185.384 | H48: 40941.27 | I48: 0.7 | J48: 28658.889 | L48: 29951.27 | M48: 1.63 | N48: 48820.5701 | P48: 77479.4591
B49: December | D49: 43835.3 | E49: 3.184687504 | F49: 139601.7321 | H49: 43835.3 | I49: 0.6953124781 | J49: 30479.23107 | L49: 32226.38 | M49: 1.629062493 | N49: 52498.78696 | P49: 82978.01803
B51: Total | D51: =SUM(D38:D49) -> 535122.16 | E51: =IF(D51<>0,F51/D51,0) -> 3.180383984 | F51: =SUM(F38:F49) -> 1701893.947 | H51: =SUM(H38:H49) -> 536858.84 | I51: =IF(H51<>0,J51/H51,0) -> 0.6996172571 | J51: =SUM(J38:J49) -> 375595.7091 | L51: =SUM(L38:L49) -> 391087.65 | M51: =IF(L51<>0,N51/L51,0) -> 1.629922748 | N51: =SUM(N38:N49) -> 637442.6571 | P51: =SUM(P38:P49) -> 1013038.366
B53: Add Extra Host Here (I) | D53: Network | H53: Line Connection | L53: Transformation Connection | P53: Total Line
B54: (if needed)
B55: Month | D55: Units Billed | E55: Rate | F55: Amount | H55: Units Billed | I55: Rate | J55: Amount | L55: Units Billed | M55: Rate | N55: Amount | P55: Amount
B57: January | E57: =IF(D57<>0,F57/D57,0) -> 0 | I57: =IF(H57<>0,J57/H57,0) -> 0 | M57: =IF(L57<>0,N57/L57,0) -> 0 | P57: =J57+N57 -> 0
B58: February | E58: 0 | I58: 0 | M58: 0 | P58: 0
B59: March | E59: 0 | I59: 0 | M59: 0 | P59: 0
B60: April | E60: 0 | I60: 0 | M60: 0 | P60: 0
B61: May | E61: 0 | I61: 0 | M61: 0 | P61: 0
B62: June | E62: 0 | I62: 0 | M62: 0 | P62: 0
B63: July | E63: 0 | I63: 0 | M63: 0 | P63: 0
B64: August | E64: 0 | I64: 0 | M64: 0 | P64: 0
B65: September | E65: 0 | I65: 0 | M65: 0 | P65: 0
B66: October | E66: 0 | I66: 0 | M66: 0 | P66: 0
B67: November | E67: 0 | I67: 0 | M67: 0 | P67: 0
B68: December | E68: 0 | I68: 0 | M68: 0 | P68: 0
B70: Total | D70: =SUM(D57:D68) -> 0 | E70: =IF(D70<>0,F70/D70,0) -> 0 | F70: =SUM(F57:F68) -> 0 | H70: =SUM(H57:H68) -> 0 | I70: =IF(H70<>0,J70/H70,0) -> 0 | J70: =SUM(J57:J68) -> 0 | L70: =SUM(L57:L68) -> 0 | M70: =IF(L70<>0,N70/L70,0) -> 0 | N70: =SUM(N57:N68) -> 0 | P70: =SUM(P57:P68) -> 0
B72: Add Extra Host Here (II) | D72: Network | H72: Line Connection | L72: Transformation Connection | P72: Total Line
B73: (if needed)
B74: Month | D74: Units Billed | E74: Rate | F74: Amount | H74: Units Billed | I74: Rate | J74: Amount | L74: Units Billed | M74: Rate | N74: Amount | P74: Amount
B76: January | E76: =IF(D76<>0,F76/D76,0) -> 0 | I76: =IF(H76<>0,J76/H76,0) -> 0 | M76: =IF(L76<>0,N76/L76,0) -> 0 | P76: =J76+N76 -> 0
B77: February | E77: 0 | I77: 0 | M77: 0 | P77: 0
B78: March | E78: 0 | I78: 0 | M78: 0 | P78: 0
B79: April | E79: 0 | I79: 0 | M79: 0 | P79: 0
B80: May | E80: 0 | I80: 0 | M80: 0 | P80: 0
B81: June | E81: 0 | I81: 0 | M81: 0 | P81: 0
B82: July | E82: 0 | I82: 0 | M82: 0 | P82: 0
B83: August | E83: 0 | I83: 0 | M83: 0 | P83: 0
B84: September | E84: 0 | I84: 0 | M84: 0 | P84: 0
B85: October | E85: 0 | I85: 0 | M85: 0 | P85: 0
B86: November | E86: 0 | I86: 0 | M86: 0 | P86: 0
B87: December | E87: 0 | I87: 0 | M87: 0 | P87: 0
B89: Total | D89: =SUM(D76:D87) -> 0 | E89: =IF(D89<>0,F89/D89,0) -> 0 | F89: =SUM(F76:F87) -> 0 | H89: =SUM(H76:H87) -> 0 | I89: =IF(H89<>0,J89/H89,0) -> 0 | J89: =SUM(J76:J87) -> 0 | L89: =SUM(L76:L87) -> 0 | M89: =IF(L89<>0,N89/L89,0) -> 0 | N89: =SUM(N76:N87) -> 0 | P89: =SUM(P76:P87) -> 0
B91: Total | D91: Network | H91: Line Connection | L91: Transformation Connection | P91: Total Line
B93: Month | D93: Units Billed | E93: Rate | F93: Amount | H93: Units Billed | I93: Rate | J93: Amount | L93: Units Billed | M93: Rate | N93: Amount | P93: Amount
B95: January | D95: =D19+D38+D57+D76 -> 115067 | E95: =IF(D95<>0,F95/D95,0) -> 3.462181251 | F95: =F19+F38+F57+F76 -> 398382.81 | H95: =H19+H38+H57+H76 -> 122144 | I95: =IF(H95<>0,J95/H95,0) -> 0.7324240241 | J95: =J19+J38+J57+J76 -> 89461.2 | L95: =L19+L38+L57+L76 -> 111005 | M95: =IF(L95<>0,N95/L95,0) -> 1.786981758 | N95: =N19+N38+N57+N76 -> 198363.91 | P95: =J95+N95 -> 287825.11
B96: February | D96: =D20+D39+D58+D77 -> 105236 | E96: 3.454752461 | F96: =F20+F39+F58+F77 -> 363564.33 | H96: =H20+H39+H58+H77 -> 108628 | I96: 0.7311360791 | J96: =J20+J39+J58+J77 -> 79421.85 | L96: =L20+L39+L58+L77 -> 97313 | M96: 1.78292818 | N96: =N20+N39+N58+N77 -> 173502.09 | P96: 252923.94
B97: March | D97: 101068 | E97: 3.454337575 | F97: 349122.99 | H97: 104769 | I97: 0.7309948553 | J97: 76585.6 | L97: 93683 | M97: 1.782515611 | N97: 166991.41 | P97: 243577.01
B98: April | D98: 94505.77 | E98: 3.455459371 | F98: 326560.8486 | H98: 100388.02 | I98: 0.7316267818 | J98: 73446.564 | L98: 89963.59 | M98: 1.785282598 | N98: 160610.4317 | P98: 234056.9957
B99: May | D99: 117516.46 | E99: 3.471072842 | F99: 407908.1928 | H99: 122372.9 | I99: 0.7330318232 | J99: 89703.23 | L99: 110302.14 | M99: 1.791245104 | N99: 197578.1682 | P99: 287281.3982
B100: June | D100: 139539.06 | E100: 3.470567028 | F100: 484279.6608 | H100: 143224.11 | I100: 0.7327336647 | J100: 104945.127 | L100: 129849.99 | M100: 1.788862546 | N100: 232283.7837 | P100: 337228.9107
B101: July | D101: 154108.42 | E101: 3.470819606 | F101: 534882.5256 | H101: 159321.34 | I101: 0.7327762119 | J101: 116746.888 | L101: 145423.83 | M101: 1.787997352 | N101: 260017.4229 | P101: 376764.3109
B102: August | D102: 143552.61 | E102: 3.471123233 | F102: 498288.7998 | H102: 145521.9 | I102: 0.7324789602 | J102: 106591.73 | L102: 132125.52 | M102: 1.787396996 | N102: 236160.7576 | P102: 342752.4876
B103: September | D103: 152844.71 | E103: 3.466629155 | F103: 529855.9278 | H103: 157642.02 | I103: 0.73230579 | J103: 115442.164 | L103: 142752.09 | M103: 1.786972133 | N103: 255094.0067 | P103: 370536.1707
B104: October | D104: 101006.03 | E104: 3.457508679 | F104: 349229.2254 | H104: 112080.98 | I104: 0.7326910953 | J104: 82120.736 | L104: 100501.84 | M104: 1.790413182 | N104: 179939.8192 | P104: 262060.5552
B105: November | D105: 105244.8 | E105: 3.454956102 | F105: 363616.164 | H105: 108480.27 | I105: 0.7311296238 | J105: 79313.139 | L105: 97490.27 | M105: 1.782410902 | N105: 173767.7201 | P105: 253080.8591
B106: December | D106: 118939.3 | E106: 3.465879252 | F106: 412229.2521 | H106: 120898.3 | I106: 0.7301714009 | J106: 88276.48107 | L106: 109289.38 | M106: 1.784851712 | N106: 195065.337 | P106: 283341.818
B108: Total | D108: =SUM(D95:D106) -> 1448628.16 | E108: =IF(D108<>0,F108/D108,0) -> 3.463912179 | F108: =SUM(F95:F106) -> 5017920.727 | H108: =SUM(H95:H106) -> 1505470.84 | I108: =IF(H108<>0,J108/H108,0) -> 0.7320332482 | J108: =SUM(J95:J106) -> 1102054.709 | L108: =SUM(L95:L106) -> 1359699.65 | M108: =IF(L108<>0,N108/L108,0) -> 1.786699627 | N108: =SUM(N95:N106) -> 2429374.857 | P108: =SUM(P95:P106) -> 3531429.566
N110: Transformer Allowance Credit (if applicable) | P110: ='15. RTSR - UTRs & Sub-Tx'!E95 -> 0
N112: Total including deduction for Transformer Allowance Credit | P112: =P108+P110 -> 3531429.566

Sheet 17. RTSR - Current Wholesale
B13: The purpose of this sheet is to calculate the expected billing when current 2014 Uniform Transmission Rates are applied against historical 2013 transmission units.
B16: IESO | D16: Network | H16: Line Connection | L16: Transformation Connection | P16: Total Line
B18: Month | D18: Units Billed | E18: Rate | F18: Amount | H18: Units Billed | I18: Rate | J18: Amount | L18: Units Billed | M18: Rate | N18: Amount | P18: Amount
B20: January | D20: ='16. RTSR - Historical Wholesale'!D19 -> 72155 | E20: ='15. RTSR - UTRs & Sub-Tx'!G22 -> 3.82 | F20: =D20*E20 -> 275632.1 | H20: ='16. RTSR - Historical Wholesale'!H19 -> 79208 | I20: ='15. RTSR - UTRs & Sub-Tx'!G24 -> 0.82 | J20: =H20*I20 -> 64950.56 | L20: ='16. RTSR - Historical Wholesale'!L19 -> 79208 | M20: ='15. RTSR - UTRs & Sub-Tx'!G26 -> 1.98 | N20: =L20*M20 -> 156831.84 | P20: =J20+N20 -> 221782.4
B21: February | D21: ='16. RTSR - Historical Wholesale'!D20 -> 64253 | E21: =E20 -> 3.82 | F21: =D21*E21 -> 245446.46 | H21: ='16. RTSR - Historical Wholesale'!H20 -> 67645 | I21: =I20 -> 0.82 | J21: =H21*I21 -> 55468.9 | L21: ='16. RTSR - Historical Wholesale'!L20 -> 67645 | M21: =M20 -> 1.98 | N21: =L21*M21 -> 133937.1 | P21: 189406
B22: March | D22: ='16. RTSR - Historical Wholesale'!D21 -> 61615 | E22: =E21 -> 3.82 | F22: 235369.3 | H22: ='16. RTSR - Historical Wholesale'!H21 -> 64946 | I22: =I21 -> 0.82 | J22: 53255.72 | L22: ='16. RTSR - Historical Wholesale'!L21 -> 64946 | M22: =M21 -> 1.98 | N22: 128593.08 | P22: 181848.8
B23: April | D23: ='16. RTSR - Historical Wholesale'!D22 -> 57850 | E23: 3.82 | F23: 220987 | H23: ='16. RTSR - Historical Wholesale'!H22 -> 63499 | I23: 0.82 | J23: 52069.18 | L23: ='16. RTSR - Historical Wholesale'!L22 -> 63499 | M23: 1.98 | N23: 125728.02 | P23: 177797.2
B24: May | D24: ='16. RTSR - Historical Wholesale'!D23 -> 76013 | E24: 3.82 | F24: 290369.66 | H24: ='16. RTSR - Historical Wholesale'!H23 -> 80844 | I24: 0.82 | J24: 66292.08 | L24: ='16. RTSR - Historical Wholesale'!L23 -> 80844 | M24: 1.98 | N24: 160071.12 | P24: 226363.2
B25: June | D25: ='16. RTSR - Historical Wholesale'!D24 -> 90101 | E25: 3.82 | F25: 344185.82 | H25: ='16. RTSR - Historical Wholesale'!H24 -> 93765 | I25: 0.82 | J25: 76887.3 | L25: ='16. RTSR - Historical Wholesale'!L24 -> 93765 | M25: 1.98 | N25: 185654.7 | P25: 262542
B26: July | D26: ='16. RTSR - Historical Wholesale'!D25 -> 99595 | E26: 3.82 | F26: 380452.9 | H26: ='16. RTSR - Historical Wholesale'!H25 -> 104439 | I26: 0.82 | J26: 85639.98 | L26: ='16. RTSR - Historical Wholesale'!L25 -> 104439 | M26: 1.98 | N26: 206789.22 | P26: 292429.2
B27: August | D27: ='16. RTSR - Historical Wholesale'!D26 -> 92870 | E27: 3.82 | F27: 354763.4 | H27: ='16. RTSR - Historical Wholesale'!H26 -> 94528 | I27: 0.82 | J27: 77512.96 | L27: ='16. RTSR - Historical Wholesale'!L26 -> 94528 | M27: 1.98 | N27: 187165.44 | P27: 264678.4
B28: September | D28: ='16. RTSR - Historical Wholesale'!D27 -> 97355 | E28: 3.82 | F28: 371896.1 | H28: ='16. RTSR - Historical Wholesale'!H27 -> 101855 | I28: 0.82 | J28: 83521.1 | L28: ='16. RTSR - Historical Wholesale'!L27 -> 101855 | M28: 1.98 | N28: 201672.9 | P28: 285194
B29: October | D29: ='16. RTSR - Historical Wholesale'!D28 -> 62289 | E29: 3.82 | F29: 237943.98 | H29: ='16. RTSR - Historical Wholesale'!H28 -> 73281 | I29: 0.82 | J29: 60090.42 | L29: ='16. RTSR - Historical Wholesale'!L28 -> 73281 | M29: 1.98 | N29: 145096.38 | P29: 205186.8
B30: November | D30: ='16. RTSR - Historical Wholesale'!D29 -> 64306 | E30: 3.82 | F30: 245648.92 | H30: ='16. RTSR - Historical Wholesale'!H29 -> 67539 | I30: 0.82 | J30: 55381.98 | L30: ='16. RTSR - Historical Wholesale'!L29 -> 67539 | M30: 1.98 | N30: 133727.22 | P30: 189109.2
B31: December | D31: ='16. RTSR - Historical Wholesale'!D30 -> 75104 | E31: 3.82 | F31: 286897.28 | H31: ='16. RTSR - Historical Wholesale'!H30 -> 77063 | I31: 0.82 | J31: 63191.66 | L31: ='16. RTSR - Historical Wholesale'!L30 -> 77063 | M31: 1.98 | N31: 152584.74 | P31: 215776.4
B33: Total | D33: =SUM(D20:D31) -> 913506 | E33: =IF(D33<>0,F33/D33,0) -> 3.82 | F33: =SUM(F20:F31) -> 3489592.92 | H33: =SUM(H20:H31) -> 968612 | I33: =IF(H33<>0,J33/H33,0) -> 0.82 | J33: =SUM(J20:J31) -> 794261.84 | L33: =SUM(L20:L31) -> 968612 | M33: =IF(L33<>0,N33/L33,0) -> 1.98 | N33: =SUM(N20:N31) -> 1917851.76 | P33: =SUM(P20:P31) -> 2712113.6
B35: Hydro One | D35: Network | H35: Line Connection | L35: Transformation Connection | P35: Total Line
B37: Month | D37: Units Billed | E37: Rate | F37: Amount | H37: Units Billed | I37: Rate | J37: Amount | L37: Units Billed | M37: Rate | N37: Amount | P37: Amount
B39: January | D39: ='16. RTSR - Historical Wholesale'!D38 -> 42912 | E39: ='15. RTSR - UTRs & Sub-Tx'!G35+'15. RTSR - UTRs & Sub-Tx'!G79 -> 3.3765 | F39: =D39*E39 -> 144892.368 | H39: ='16. RTSR - Historical Wholesale'!H38 -> 42936 | I39: ='15. RTSR - UTRs & Sub-Tx'!G37+'15. RTSR - UTRs & Sub-Tx'!G81 -> 0.7167 | J39: =H39*I39 -> 30772.2312 | L39: ='16. RTSR - Historical Wholesale'!L38 -> 31797 | M39: ='15. RTSR - UTRs & Sub-Tx'!G39 -> 1.62 | N39: =L39*M39 -> 51511.14 | P39: =J39+N39 -> 82283.3712
B40: February | D40: ='16. RTSR - Historical Wholesale'!D39 -> 40983 | E40: =E39 -> 3.3765 | F40: =D40*E40 -> 138379.0995 | H40: ='16. RTSR - Historical Wholesale'!H39 -> 40983 | I40: =I39 -> 0.7167 | J40: =H40*I40 -> 29372.5161 | L40: ='16. RTSR - Historical Wholesale'!L39 -> 29668 | M40: =M39 -> 1.62 | N40: =L40*M40 -> 48062.16 | P40: 77434.6761
B41: March | D41: ='16. RTSR - Historical Wholesale'!D40 -> 39453 | E41: =E40 -> 3.3765 | F41: 133213.0545 | H41: ='16. RTSR - Historical Wholesale'!H40 -> 39823 | I41: =I40 -> 0.7167 | J41: 28541.1441 | L41: ='16. RTSR - Historical Wholesale'!L40 -> 28737 | M41: =M40 -> 1.62 | N41: 46553.94 | P41: 75095.0841
B42: April | D42: ='16. RTSR - Historical Wholesale'!D41 -> 36655.77 | E42: 3.3765 | F42: 123768.2074 | H42: ='16. RTSR - Historical Wholesale'!H41 -> 36889.02 | I42: 0.7167 | J42: 26438.36063 | L42: ='16. RTSR - Historical Wholesale'!L41 -> 26464.59 | M42: =M41 -> 1.62 | N42: 42872.6358 | P42: 69310.99643
B43: May | D43: ='16. RTSR - Historical Wholesale'!D42 -> 41503.46 | E43: 3.3765 | F43: 140136.4327 | H43: ='16. RTSR - Historical Wholesale'!H42 -> 41528.9 | I43: 0.7167 | J43: 29763.76263 | L43: ='16. RTSR - Historical Wholesale'!L42 -> 29458.14 | M43: 1.62 | N43: 47722.1868 | P43: 77485.94943
B44: June | D44: ='16. RTSR - Historical Wholesale'!D43 -> 49438.06 | E44: 3.3765 | F44: 166927.6096 | H44: ='16. RTSR - Historical Wholesale'!H43 -> 49459.11 | I44: 0.7167 | J44: 35447.34414 | L44: ='16. RTSR - Historical Wholesale'!L43 -> 36084.99 | M44: 1.62 | N44: 58457.6838 | P44: 93905.02794
B45: July | D45: ='16. RTSR - Historical Wholesale'!D44 -> 54513.42 | E45: 3.3765 | F45: 184064.5626 | H45: ='16. RTSR - Historical Wholesale'!H44 -> 54882.34 | I45: 0.7167 | J45: 39334.17308 | L45: ='16. RTSR - Historical Wholesale'!L44 -> 40984.83 | M45: 1.62 | N45: 66395.4246 | P45: 105729.5977
B46: August | D46: ='16. RTSR - Historical Wholesale'!D45 -> 50682.61 | E46: 3.3765 | F46: 171129.8327 | H46: ='16. RTSR - Historical Wholesale'!H45 -> 50993.9 | I46: 0.7167 | J46: 36547.32813 | L46: ='16. RTSR - Historical Wholesale'!L45 -> 37597.52 | M46: 1.62 | N46: 60907.9824 | P46: 97455.31053
B47: September | D47: ='16. RTSR - Historical Wholesale'!D46 -> 55489.71 | E47: 3.3765 | F47: 187361.0058 | H47: ='16. RTSR - Historical Wholesale'!H46 -> 55787.02 | I47: 0.7167 | J47: 39982.55723 | L47: ='16. RTSR - Historical Wholesale'!L46 -> 40897.09 | M47: 1.62 | N47: 66253.2858 | P47: 106235.843
B48: October | D48: ='16. RTSR - Historical Wholesale'!D47 -> 38717.03 | E48: 3.3765 | F48: 130728.0518 | H48: ='16. RTSR - Historical Wholesale'!H47 -> 38799.98 | I48: 0.7167 | J48: 27807.94567 | L48: ='16. RTSR - Historical Wholesale'!L47 -> 27220.84 | M48: 1.62 | N48: 44097.7608 | P48: 71905.70647
B49: November | D49: ='16. RTSR - Historical Wholesale'!D48 -> 40938.8 | E49: 3.3765 | F49: 138229.8582 | H49: ='16. RTSR - Historical Wholesale'!H48 -> 40941.27 | I49: 0.7167 | J49: 29342.60821 | L49: ='16. RTSR - Historical Wholesale'!L48 -> 29951.27 | M49: 1.62 | N49: 48521.0574 | P49: 77863.66561
B50: December | D50: ='16. RTSR - Historical Wholesale'!D49 -> 43835.3 | E50: 3.3765 | F50: 148009.8905 | H50: ='16. RTSR - Historical Wholesale'!H49 -> 43835.3 | I50: 0.7167 | J50: 31416.75951 | L50: ='16. RTSR - Historical Wholesale'!L49 -> 32226.38 | M50: 1.62 | N50: 52206.7356 | P50: 83623.49511
B52: Total | D52: =SUM(D39:D50) -> 535122.16 | E52: =IF(D52<>0,F52/D52,0) -> 3.3765 | F52: =SUM(F39:F50) -> 1806839.973 | H52: =SUM(H39:H50) -> 536858.84 | I52: =IF(H52<>0,J52/H52,0) -> 0.7167 | J52: =SUM(J39:J50) -> 384766.7306 | L52: =SUM(L39:L50) -> 391087.65 | M52: =IF(L52<>0,N52/L52,0) -> 1.62 | N52: =SUM(N39:N50) -> 633561.993 | P52: =SUM(P39:P50) -> 1018328.724
B54: ='16. RTSR - Historical Wholesale'!B53 -> Add Extra Host Here (I) | D54: Network | H54: Line Connection | L54: Transformation Connection | P54: Total Line
B56: Month | D56: Units Billed | E56: Rate | F56: Amount | H56: Units Billed | I56: Rate | J56: Amount | L56: Units Billed | M56: Rate | N56: Amount | P56: Amount
B58: January | D58: ='16. RTSR - Historical Wholesale'!D57 -> 0 | E58: ='15. RTSR - UTRs & Sub-Tx'!G50 -> 0 | F58: =D58*E58 -> 0 | H58: ='16. RTSR - Historical Wholesale'!H57 -> 0 | I58: ='15. RTSR - UTRs & Sub-Tx'!G52 -> 0 | J58: =H58*I58 -> 0 | L58: ='16. RTSR - Historical Wholesale'!L57 -> 0 | M58: ='15. RTSR - UTRs & Sub-Tx'!G54 -> 0 | N58: =L58*M58 -> 0 | P58: =J58+N58 -> 0
B59: February | D59: ='16. RTSR - Historical Wholesale'!D58 -> 0 | E59: =E58 -> 0 | F59: =D59*E59 -> 0 | H59: ='16. RTSR - Historical Wholesale'!H58 -> 0 | I59: =I58 -> 0 | J59: =H59*I59 -> 0 | L59: ='16. RTSR - Historical Wholesale'!L58 -> 0 | M59: =M58 -> 0 | N59: =L59*M59 -> 0 | P59: 0
B60: March | D60: ='16. RTSR - Historical Wholesale'!D59 -> 0 | E60: =E59 -> 0 | F60: 0 | H60: ='16. RTSR - Historical Wholesale'!H59 -> 0 | I60: =I59 -> 0 | J60: 0 | L60: ='16. RTSR - Historical Wholesale'!L59 -> 0 | M60: =M59 -> 0 | N60: 0 | P60: 0
B61: April | D61: ='16. RTSR - Historical Wholesale'!D60 -> 0 | E61: 0 | F61: 0 | H61: ='16. RTSR - Historical Wholesale'!H60 -> 0 | I61: 0 | J61: 0 | L61: ='16. RTSR - Historical Wholesale'!L60 -> 0 | M61: =M60 -> 0 | N61: 0 | P61: 0
B62: May | D62: ='16. RTSR - Historical Wholesale'!D61 -> 0 | E62: 0 | F62: 0 | H62: ='16. RTSR - Historical Wholesale'!H61 -> 0 | I62: 0 | J62: 0 | L62: ='16. RTSR - Historical Wholesale'!L61 -> 0 | M62: 0 | N62: 0 | P62: 0
B63: June | D63: ='16. RTSR - Historical Wholesale'!D62 -> 0 | E63: 0 | F63: 0 | H63: ='16. RTSR - Historical Wholesale'!H62 -> 0 | I63: 0 | J63: 0 | L63: ='16. RTSR - Historical Wholesale'!L62 -> 0 | M63: 0 | N63: 0 | P63: 0
B64: July | D64: ='16. RTSR - Historical Wholesale'!D63 -> 0 | E64: 0 | F64: 0 | H64: ='16. RTSR - Historical Wholesale'!H63 -> 0 | I64: 0 | J64: 0 | L64: ='16. RTSR - Historical Wholesale'!L63 -> 0 | M64: 0 | N64: 0 | P64: 0
B65: August | D65: ='16. RTSR - Historical Wholesale'!D64 -> 0 | E65: 0 | F65: 0 | H65: ='16. RTSR - Historical Wholesale'!H64 -> 0 | I65: 0 | J65: 0 | L65: ='16. RTSR - Historical Wholesale'!L64 -> 0 | M65: 0 | N65: 0 | P65: 0
B66: September | D66: ='16. RTSR - Historical Wholesale'!D65 -> 0 | E66: 0 | F66: 0 | H66: ='16. RTSR - Historical Wholesale'!H65 -> 0 | I66: 0 | J66: 0 | L66: ='16. RTSR - Historical Wholesale'!L65 -> 0 | M66: 0 | N66: 0 | P66: 0
B67: October | D67: ='16. RTSR - Historical Wholesale'!D66 -> 0 | E67: 0 | F67: 0 | H67: ='16. RTSR - Historical Wholesale'!H66 -> 0 | I67: 0 | J67: 0 | L67: ='16. RTSR - Historical Wholesale'!L66 -> 0 | M67: 0 | N67: 0 | P67: 0
B68: November | D68: ='16. RTSR - Historical Wholesale'!D67 -> 0 | E68: 0 | F68: 0 | H68: ='16. RTSR - Historical Wholesale'!H67 -> 0 | I68: 0 | J68: 0 | L68: ='16. RTSR - Historical Wholesale'!L67 -> 0 | M68: 0 | N68: 0 | P68: 0
B69: December | D69: ='16. RTSR - Historical Wholesale'!D68 -> 0 | E69: 0 | F69: 0 | H69: ='16. RTSR - Historical Wholesale'!H68 -> 0 | I69: 0 | J69: 0 | L69: ='16. RTSR - Historical Wholesale'!L68 -> 0 | M69: 0 | N69: 0 | P69: 0
B71: Total | D71: =SUM(D58:D69) -> 0 | E71: =IF(D71<>0,F71/D71,0) -> 0 | F71: =SUM(F58:F69) -> 0 | H71: =SUM(H58:H69) -> 0 | I71: =IF(H71<>0,J71/H71,0) -> 0 | J71: =SUM(J58:J69) -> 0 | L71: =SUM(L58:L69) -> 0 | M71: =IF(L71<>0,N71/L71,0) -> 0 | N71: =SUM(N58:N69) -> 0 | P71: =SUM(P58:P69) -> 0
B73: ='16. RTSR - Historical Wholesale'!B72 -> Add Extra Host Here (II) | D73: Network | H73: Line Connection | L73: Transformation Connection | P73: Total Line
B75: Month | D75: Units Billed | E75: Rate | F75: Amount | H75: Units Billed | I75: Rate | J75: Amount | L75: Units Billed | M75: Rate | N75: Amount | P75: Amount
B77: January | D77: ='16. RTSR - Historical Wholesale'!D76 -> 0 | E77: ='15. RTSR - UTRs & Sub-Tx'!G65 -> 0 | F77: =D77*E77 -> 0 | H77: ='16. RTSR - Historical Wholesale'!H76 -> 0 | I77: ='15. RTSR - UTRs & Sub-Tx'!G67 -> 0 | J77: =H77*I77 -> 0 | L77: ='16. RTSR - Historical Wholesale'!L76 -> 0 | M77: ='15. RTSR - UTRs & Sub-Tx'!G69 -> 0 | N77: =L77*M77 -> 0 | P77: =J77+N77 -> 0
B78: February | D78: ='16. RTSR - Historical Wholesale'!D77 -> 0 | E78: =E77 -> 0 | F78: =D78*E78 -> 0 | H78: ='16. RTSR - Historical Wholesale'!H77 -> 0 | I78: =I77 -> 0 | J78: =H78*I78 -> 0 | L78: ='16. RTSR - Historical Wholesale'!L77 -> 0 | M78: =M77 -> 0 | N78: =L78*M78 -> 0 | P78: 0
B79: March | D79: ='16. RTSR - Historical Wholesale'!D78 -> 0 | E79: =E78 -> 0 | F79: 0 | H79: ='16. RTSR - Historical Wholesale'!H78 -> 0 | I79: =I78 -> 0 | J79: 0 | L79: ='16. RTSR - Historical Wholesale'!L78 -> 0 | M79: =M78 -> 0 | N79: 0 | P79: 0
B80: April | D80: ='16. RTSR - Historical Wholesale'!D79 -> 0 | E80: 0 | F80: 0 | H80: ='16. RTSR - Historical Wholesale'!H79 -> 0 | I80: 0 | J80: 0 | L80: ='16. RTSR - Historical Wholesale'!L79 -> 0 | M80: =M79 -> 0 | N80: 0 | P80: 0
B81: May | D81: ='16. RTSR - Historical Wholesale'!D80 -> 0 | E81: 0 | F81: 0 | H81: ='16. RTSR - Historical Wholesale'!H80 -> 0 | I81: 0 | J81: 0 | L81: ='16. RTSR - Historical Wholesale'!L80 -> 0 | M81: 0 | N81: 0 | P81: 0
B82: June | D82: ='16. RTSR - Historical Wholesale'!D81 -> 0 | E82: 0 | F82: 0 | H82: ='16. RTSR - Historical Wholesale'!H81 -> 0 | I82: 0 | J82: 0 | L82: ='16. RTSR - Historical Wholesale'!L81 -> 0 | M82: 0 | N82: 0 | P82: 0
B83: July | D83: ='16. RTSR - Historical Wholesale'!D82 -> 0 | E83: 0 | F83: 0 | H83: ='16. RTSR - Historical Wholesale'!H82 -> 0 | I83: 0 | J83: 0 | L83: ='16. RTSR - Historical Wholesale'!L82 -> 0 | M83: 0 | N83: 0 | P83: 0
B84: August | D84: ='16. RTSR - Historical Wholesale'!D83 -> 0 | E84: 0 | F84: 0 | H84: ='16. RTSR - Historical Wholesale'!H83 -> 0 | I84: 0 | J84: 0 | L84: ='16. RTSR - Historical Wholesale'!L83 -> 0 | M84: 0 | N84: 0 | P84: 0
B85: September | D85: ='16. RTSR - Historical Wholesale'!D84 -> 0 | E85: 0 | F85: 0 | H85: ='16. RTSR - Historical Wholesale'!H84 -> 0 | I85: 0 | J85: 0 | L85: ='16. RTSR - Historical Wholesale'!L84 -> 0 | M85: 0 | N85: 0 | P85: 0
B86: October | D86: ='16. RTSR - Historical Wholesale'!D85 -> 0 | E86: 0 | F86: 0 | H86: ='16. RTSR - Historical Wholesale'!H85 -> 0 | I86: 0 | J86: 0 | L86: ='16. RTSR - Historical Wholesale'!L85 -> 0 | M86: 0 | N86: 0 | P86: 0
B87: November | D87: ='16. RTSR - Historical Wholesale'!D86 -> 0 | E87: 0 | F87: 0 | H87: ='16. RTSR - Historical Wholesale'!H86 -> 0 | I87: 0 | J87: 0 | L87: ='16. RTSR - Historical Wholesale'!L86 -> 0 | M87: 0 | N87: 0 | P87: 0
B88: December | D88: ='16. RTSR - Historical Wholesale'!D87 -> 0 | E88: 0 | F88: 0 | H88: ='16. RTSR - Historical Wholesale'!H87 -> 0 | I88: 0 | J88: 0 | L88: ='16. RTSR - Historical Wholesale'!L87 -> 0 | M88: 0 | N88: 0 | P88: 0
B90: Total | D90: =SUM(D77:D88) -> 0 | E90: =IF(D90<>0,F90/D90,0) -> 0 | F90: =SUM(F77:F88) -> 0 | H90: =SUM(H77:H88) -> 0 | I90: =IF(H90<>0,J90/H90,0) -> 0 | J90: =SUM(J77:J88) -> 0 | L90: =SUM(L77:L88) -> 0 | M90: =IF(L90<>0,N90/L90,0) -> 0 | N90: =SUM(N77:N88) -> 0 | P90: =SUM(P77:P88) -> 0
B92: Total | D92: Network | H92: Line Connection | L92: Transformation Connection | P92: Total Line
B94: Month | D94: Units Billed | E94: Rate | F94: Amount | H94: Units Billed | I94: Rate | J94: Amount | L94: Units Billed | M94: Rate | N94: Amount | P94: Amount
B96: January | D96: =D20+D39+D58+D77 -> 115067 | E96: =IF(D96<>0,F96/D96,0) -> 3.6546053 | F96: =F20+F39+F58+F77 -> 420524.468 | H96: =H20+H39+H58+H77 -> 122144 | I96: =IF(H96<>0,J96/H96,0) -> 0.7836880338 | J96: =J20+J39+J58+J77 -> 95722.7912 | L96: =L20+L39+L58+L77 -> 111005 | M96: =IF(L96<>0,N96/L96,0) -> 1.87687924 | N96: =N20+N39+N58+N77 -> 208342.98 | P96: =J96+N96 -> 304065.7712
B97: February | D97: =D21+D40+D59+D78 -> 105236 | E97: 3.647283814 | F97: =F21+F40+F59+F78 -> 383825.5595 | H97: =H21+H40+H59+H78 -> 108628 | I97: 0.7810271394 | J97: =J21+J40+J59+J78 -> 84841.4161 | L97: =L21+L40+L59+L78 -> 97313 | M97: 1.870246113 | N97: =N21+N40+N59+N78 -> 181999.26 | P97: 266840.6761
B98: March | D98: 101068 | E98: 3.646874921 | F98: 368582.3545 | H98: 104769 | I98: 0.7807353711 | J98: 81796.8641 | L98: 93683 | M98: 1.869571 | N98: 175147.02 | P98: 256943.8841
B99: April | D99: 94505.77 | E99: 3.647980514 | F99: 344755.2074 | H99: 100388.02 | I99: 0.7820409311 | J99: 78507.54063 | L99: 89963.59 | M99: 1.874098797 | N99: 168600.6558 | P99: 247108.1964
B100: May | D100: 117516.46 | E100: 3.663368457 | F100: 430506.0927 | H100: 122372.9 | I100: 0.7849437468 | J100: 96055.84263 | L100: 110302.14 | M100: 1.883855624 | N100: 207793.3068 | P100: 303849.1494
B101: June | D101: 139539.06 | E101: 3.662869949 | F101: 511113.4296 | H101: 143224.11 | I101: 0.7843277514 | J101: 112334.6441 | L101: 129849.99 | M101: 1.879956893 | N101: 244112.3838 | P101: 356447.0279
B102: July | D102: 154108.42 | E102: 3.663118878 | F102: 564517.4626 | H102: 159321.34 | I102: 0.7844156538 | J102: 124974.1531 | L102: 145423.83 | M102: 1.878541121 | N102: 273184.6446 | P102: 398158.7977
B103: August | D103: 143552.61 | E103: 3.66341812 | F103: 525893.2327 | H103: 145521.9 | I103: 0.7838015318 | J103: 114060.2881 | L103: 132125.52 | M103: 1.877558721 | N103: 248073.4224 | P103: 362133.7105
B104: September | D104: 152844.71 | E104: 3.658988956 | F104: 559257.1058 | H104: 157642.02 | I104: 0.7834437622 | J104: 123503.6572 | L104: 142752.09 | M104: 1.87686349 | N104: 267926.1858 | P104: 391429.843
B105: October | D105: 101006.03 | E105: 3.650000221 | F105: 368672.0318 | H105: 112080.98 | I105: 0.7842398029 | J105: 87898.36567 | L105: 100501.84 | M105: 1.882494299 | N105: 189194.1408 | P105: 277092.5065
B106: November | D106: 105244.8 | E106: 3.647484514 | F106: 383878.7782 | H106: 108480.27 | I106: 0.7810138029 | J106: 84724.58821 | L106: 97490.27 | M106: 1.869399658 | N106: 182248.2774 | P106: 266972.8656
B107: December | D107: 118939.3 | E107: 3.656547251 | F107: 434907.1705 | H107: 120898.3 | I107: 0.7825454908 | J107: 94608.41951 | L107: 109289.38 | M107: 1.873846074 | N107: 204791.4756 | P107: 299399.8951
B109: Total | D109: =SUM(D96:D107) -> 1448628.16 | E109: =IF(D109<>0,F109/D109,0) -> 3.656171431 | F109: =SUM(F96:F107) -> 5296432.893 | H109: =SUM(H96:H107) -> 1505470.84 | I109: =IF(H109<>0,J109/H109,0) -> 0.7831626753 | J109: =SUM(J96:J107) -> 1179028.571 | L109: =SUM(L96:L107) -> 1359699.65 | M109: =IF(L109<>0,N109/L109,0) -> 1.876453931 | N109: =SUM(N96:N107) -> 2551413.753 | P109: =SUM(P96:P107) -> 3730442.324
N111: Transformer Allowance Credit (if applicable) | P111: ='15. RTSR - UTRs & Sub-Tx'!G95 -> 0
N113: Total including deduction for Transformer Allowance Credit | P113: =P109+P111 -> 3730442.324

Sheet 18. RTSR - Forecast Wholesale
B13: The purpose of this sheet is to calculate the expected billing when forecasted 2015 Uniform Transmission Rates are applied against historical 2013 transmission units.
B16: IESO | D16: Network | H16: Line Connection | L16: Transformation Connection | P16: Total Line
B18: Month | D18: Units Billed | E18: Rate | F18: Amount | H18: Units Billed | I18: Rate | J18: Amount | L18: Units Billed | M18: Rate | N18: Amount | P18: Amount
B20: January | D20: ='16. RTSR - Historical Wholesale'!D19 -> 72155 | E20: ='15. RTSR - UTRs & Sub-Tx'!I22 -> 3.82 | F20: =D20*E20 -> 275632.1 | H20: ='16. RTSR - Historical Wholesale'!H19 -> 79208 | I20: ='15. RTSR - UTRs & Sub-Tx'!I24 -> 0.82 | J20: =H20*I20 -> 64950.56 | L20: ='16. RTSR - Historical Wholesale'!L19 -> 79208 | M20: ='15. RTSR - UTRs & Sub-Tx'!I26 -> 1.98 | N20: =L20*M20 -> 156831.84 | P20: =J20+N20 -> 221782.4
B21: February | D21: ='16. RTSR - Historical Wholesale'!D20 -> 64253 | E21: =E20 -> 3.82 | F21: 245446.46 | H21: ='16. RTSR - Historical Wholesale'!H20 -> 67645 | I21: =I20 -> 0.82 | J21: 55468.9 | L21: ='16. RTSR - Historical Wholesale'!L20 -> 67645 | M21: =M20 -> 1.98 | N21: 133937.1 | P21: 189406
B22: March | D22: ='16. RTSR - Historical Wholesale'!D21 -> 61615 | E22: 3.82 | F22: 235369.3 | H22: ='16. RTSR - Historical Wholesale'!H21 -> 64946 | I22: 0.82 | J22: 53255.72 | L22: ='16. RTSR - Historical Wholesale'!L21 -> 64946 | M22: 1.98 | N22: 128593.08 | P22: 181848.8
B23: April | D23: ='16. RTSR - Historical Wholesale'!D22 -> 57850 | E23: 3.82 | F23: 220987 | H23: ='16. RTSR - Historical Wholesale'!H22 -> 63499 | I23: 0.82 | J23: 52069.18 | L23: ='16. RTSR - Historical Wholesale'!L22 -> 63499 | M23: 1.98 | N23: 125728.02 | P23: 177797.2
B24: May | D24: ='16. RTSR - Historical Wholesale'!D23 -> 76013 | E24: 3.82 | F24: 290369.66 | H24: ='16. RTSR - Historical Wholesale'!H23 -> 80844 | I24: 0.82 | J24: 66292.08 | L24: ='16. RTSR - Historical Wholesale'!L23 -> 80844 | M24: 1.98 | N24: 160071.12 | P24: 226363.2
B25: June | D25: ='16. RTSR - Historical Wholesale'!D24 -> 90101 | E25: 3.82 | F25: 344185.82 | H25: ='16. RTSR - Historical Wholesale'!H24 -> 93765 | I25: 0.82 | J25: 76887.3 | L25: ='16. RTSR - Historical Wholesale'!L24 -> 93765 | M25: 1.98 | N25: 185654.7 | P25: 262542
B26: July | D26: ='16. RTSR - Historical Wholesale'!D25 -> 99595 | E26: 3.82 | F26: 380452.9 | H26: ='16. RTSR - Historical Wholesale'!H25 -> 104439 | I26: 0.82 | J26: 85639.98 | L26: ='16. RTSR - Historical Wholesale'!L25 -> 104439 | M26: 1.98 | N26: 206789.22 | P26: 292429.2
B27: August | D27: ='16. RTSR - Historical Wholesale'!D26 -> 92870 | E27: 3.82 | F27: 354763.4 | H27: ='16. RTSR - Historical Wholesale'!H26 -> 94528 | I27: 0.82 | J27: 77512.96 | L27: ='16. RTSR - Historical Wholesale'!L26 -> 94528 | M27: 1.98 | N27: 187165.44 | P27: 264678.4
B28: September | D28: ='16. RTSR - Historical Wholesale'!D27 -> 97355 | E28: 3.82 | F28: 371896.1 | H28: ='16. RTSR - Historical Wholesale'!H27 -> 101855 | I28: 0.82 | J28: 83521.1 | L28: ='16. RTSR - Historical Wholesale'!L27 -> 101855 | M28: 1.98 | N28: 201672.9 | P28: 285194
B29: October | D29: ='16. RTSR - Historical Wholesale'!D28 -> 62289 | E29: 3.82 | F29: 237943.98 | H29: ='16. RTSR - Historical Wholesale'!H28 -> 73281 | I29: 0.82 | J29: 60090.42 | L29: ='16. RTSR - Historical Wholesale'!L28 -> 73281 | M29: 1.98 | N29: 145096.38 | P29: 205186.8
B30: November | D30: ='16. RTSR - Historical Wholesale'!D29 -> 64306 | E30: 3.82 | F30: 245648.92 | H30: ='16. RTSR - Historical Wholesale'!H29 -> 67539 | I30: 0.82 | J30: 55381.98 | L30: ='16. RTSR - Historical Wholesale'!L29 -> 67539 | M30: 1.98 | N30: 133727.22 | P30: 189109.2
B31: December | D31: ='16. RTSR - Historical Wholesale'!D30 -> 75104 | E31: 3.82 | F31: 286897.28 | H31: ='16. RTSR - Historical Wholesale'!H30 -> 77063 | I31: 0.82 | J31: 63191.66 | L31: ='16. RTSR - Historical Wholesale'!L30 -> 77063 | M31: 1.98 | N31: 152584.74 | P31: 215776.4
B33: Total | D33: =SUM(D20:D31) -> 913506 | E33: =IF(D33<>0,F33/D33,0) -> 3.82 | F33: =SUM(F20:F31) -> 3489592.92 | H33: =SUM(H20:H31) -> 968612 | I33: =IF(H33<>0,J33/H33,0) -> 0.82 | J33: =SUM(J20:J31) -> 794261.84 | L33: =SUM(L20:L31) -> 968612 | M33: =IF(L33<>0,N33/L33,0) -> 1.98 | N33: =SUM(N20:N31) -> 1917851.76 | P33: =SUM(P20:P31) -> 2712113.6
B35: Hydro One | D35: Network | H35: Line Connection | L35: Transformation Connection | P35: Total Line
B37: Month | D37: Units Billed | E37: Rate | F37: Amount | H37: Units Billed | I37: Rate | J37: Amount | L37: Units Billed | M37: Rate | N37: Amount | P37: Amount
B39: January | D39: ='16. RTSR - Historical Wholesale'!D38 -> 42912 | E39: ='15. RTSR - UTRs & Sub-Tx'!I35+'15. RTSR - UTRs & Sub-Tx'!I79 -> 3.3765 | F39: =D39*E39 -> 144892.368 | H39: ='16. RTSR - Historical Wholesale'!H38 -> 42936 | I39: ='15. RTSR - UTRs & Sub-Tx'!I37+'15. RTSR - UTRs & Sub-Tx'!I81 -> 0.7167 | J39: =H39*I39 -> 30772.2312 | L39: ='16. RTSR - Historical Wholesale'!L38 -> 31797 | M39: ='15. RTSR - UTRs & Sub-Tx'!I39 -> 1.62 | N39: =L39*M39 -> 51511.14 | P39: =J39+N39 -> 82283.3712
B40: February | D40: ='16. RTSR - Historical Wholesale'!D39 -> 40983 | E40: =E39 -> 3.3765 | F40: 138379.0995 | H40: ='16. RTSR - Historical Wholesale'!H39 -> 40983 | I40: =I39 -> 0.7167 | J40: 29372.5161 | L40: ='16. RTSR - Historical Wholesale'!L39 -> 29668 | M40: =M39 -> 1.62 | N40: 48062.16 | P40: 77434.6761
B41: March | D41: ='16. RTSR - Historical Wholesale'!D40 -> 39453 | E41: 3.3765 | F41: 133213.0545 | H41: ='16. RTSR - Historical Wholesale'!H40 -> 39823 | I41: 0.7167 | J41: 28541.1441 | L41: ='16. RTSR - Historical Wholesale'!L40 -> 28737 | M41: 1.62 | N41: 46553.94 | P41: 75095.0841
B42: April | D42: ='16. RTSR - Historical Wholesale'!D41 -> 36655.77 | E42: 3.3765 | F42: 123768.2074 | H42: ='16. RTSR - Historical Wholesale'!H41 -> 36889.02 | I42: 0.7167 | J42: 26438.36063 | L42: ='16. RTSR - Historical Wholesale'!L41 -> 26464.59 | M42: 1.62 | N42: 42872.6358 | P42: 69310.99643
B43: May | D43: ='16. RTSR - Historical Wholesale'!D42 -> 41503.46 | E43: 3.3765 | F43: 140136.4327 | H43: ='16. RTSR - Historical Wholesale'!H42 -> 41528.9 | I43: 0.7167 | J43: 29763.76263 | L43: ='16. RTSR - Historical Wholesale'!L42 -> 29458.14 | M43: 1.62 | N43: 47722.1868 | P43: 77485.94943
B44: June | D44: ='16. RTSR - Historical Wholesale'!D43 -> 49438.06 | E44: 3.3765 | F44: 166927.6096 | H44: ='16. RTSR - Historical Wholesale'!H43 -> 49459.11 | I44: 0.7167 | J44: 35447.34414 | L44: ='16. RTSR - Historical Wholesale'!L43 -> 36084.99 | M44: 1.62 | N44: 58457.6838 | P44: 93905.02794
B45: July | D45: ='16. RTSR - Historical Wholesale'!D44 -> 54513.42 | E45: 3.3765 | F45: 184064.5626 | H45: ='16. RTSR - Historical Wholesale'!H44 -> 54882.34 | I45: 0.7167 | J45: 39334.17308 | L45: ='16. RTSR - Historical Wholesale'!L44 -> 40984.83 | M45: 1.62 | N45: 66395.4246 | P45: 105729.5977
B46: August | D46: ='16. RTSR - Historical Wholesale'!D45 -> 50682.61 | E46: 3.3765 | F46: 171129.8327 | H46: ='16. RTSR - Historical Wholesale'!H45 -> 50993.9 | I46: 0.7167 | J46: 36547.32813 | L46: ='16. RTSR - Historical Wholesale'!L45 -> 37597.52 | M46: 1.62 | N46: 60907.9824 | P46: 97455.31053
B47: September | D47: ='16. RTSR - Historical Wholesale'!D46 -> 55489.71 | E47: 3.3765 | F47: 187361.0058 | H47: ='16. RTSR - Historical Wholesale'!H46 -> 55787.02 | I47: 0.7167 | J47: 39982.55723 | L47: ='16. RTSR - Historical Wholesale'!L46 -> 40897.09 | M47: 1.62 | N47: 66253.2858 | P47: 106235.843
B48: October | D48: ='16. RTSR - Historical Wholesale'!D47 -> 38717.03 | E48: 3.3765 | F48: 130728.0518 | H48: ='16. RTSR - Historical Wholesale'!H47 -> 38799.98 | I48: 0.7167 | J48: 27807.94567 | L48: ='16. RTSR - Historical Wholesale'!L47 -> 27220.84 | M48: 1.62 | N48: 44097.7608 | P48: 71905.70647
B49: November | D49: ='16. RTSR - Historical Wholesale'!D48 -> 40938.8 | E49: 3.3765 | F49: 138229.8582 | H49: ='16. RTSR - Historical Wholesale'!H48 -> 40941.27 | I49: 0.7167 | J49: 29342.60821 | L49: ='16. RTSR - Historical Wholesale'!L48 -> 29951.27 | M49: 1.62 | N49: 48521.0574 | P49: 77863.66561
B50: December | D50: ='16. RTSR - Historical Wholesale'!D49 -> 43835.3 | E50: 3.3765 | F50: 148009.8905 | H50: ='16. RTSR - Historical Wholesale'!H49 -> 43835.3 | I50: 0.7167 | J50: 31416.75951 | L50: ='16. RTSR - Historical Wholesale'!L49 -> 32226.38 | M50: 1.62 | N50: 52206.7356 | P50: 83623.49511
B52: Total | D52: =SUM(D39:D50) -> 535122.16 | E52: =IF(D52<>0,F52/D52,0) -> 3.3765 | F52: =SUM(F39:F50) -> 1806839.973 | H52: =SUM(H39:H50) -> 536858.84 | I52: =IF(H52<>0,J52/H52,0) -> 0.7167 | J52: =SUM(J39:J50) -> 384766.7306 | L52: =SUM(L39:L50) -> 391087.65 | M52: =IF(L52<>0,N52/L52,0) -> 1.62 | N52: =SUM(N39:N50) -> 633561.993 | P52: =SUM(P39:P50) -> 1018328.724
B54: ='16. RTSR - Historical Wholesale'!B53 -> Add Extra Host Here (I) | D54: Network | H54: Line Connection | L54: Transformation Connection | P54: Total Line
B56: Month | D56: Units Billed | E56: Rate | F56: Amount | H56: Units Billed | I56: Rate | J56: Amount | L56: Units Billed | M56: Rate | N56: Amount | P56: Amount
B58: January | D58: ='16. RTSR - Historical Wholesale'!D57 -> 0 | E58: ='15. RTSR - UTRs & Sub-Tx'!I50 -> 0 | F58: =D58*E58 -> 0 | H58: ='16. RTSR - Historical Wholesale'!H57 -> 0 | I58: ='15. RTSR - UTRs & Sub-Tx'!I52 -> 0 | J58: =H58*I58 -> 0 | L58: ='16. RTSR - Historical Wholesale'!L57 -> 0 | M58: ='15. RTSR - UTRs & Sub-Tx'!I54 -> 0 | N58: =L58*M58 -> 0 | P58: =J58+N58 -> 0
B59: February | D59: ='16. RTSR - Historical Wholesale'!D58 -> 0 | E59: =E58 -> 0 | F59: 0 | H59: ='16. RTSR - Historical Wholesale'!H58 -> 0 | I59: =I58 -> 0 | J59: 0 | L59: ='16. RTSR - Historical Wholesale'!L58 -> 0 | M59: =M58 -> 0 | N59: 0 | P59: 0
B60: March | D60: ='16. RTSR - Historical Wholesale'!D59 -> 0 | E60: 0 | F60: 0 | H60: ='16. RTSR - Historical Wholesale'!H59 -> 0 | I60: 0 | J60: 0 | L60: ='16. RTSR - Historical Wholesale'!L59 -> 0 | M60: 0 | N60: 0 | P60: 0
B61: April | D61: ='16. RTSR - Historical Wholesale'!D60 -> 0 | E61: 0 | F61: 0 | H61: ='16. RTSR - Historical Wholesale'!H60 -> 0 | I61: 0 | J61: 0 | L61: ='16. RTSR - Historical Wholesale'!L60 -> 0 | M61: 0 | N61: 0 | P61: 0
B62: May | D62: ='16. RTSR - Historical Wholesale'!D61 -> 0 | E62: 0 | F62: 0 | H62: ='16. RTSR - Historical Wholesale'!H61 -> 0 | I62: 0 | J62: 0 | L62: ='16. RTSR - Historical Wholesale'!L61 -> 0 | M62: 0 | N62: 0 | P62: 0
B63: June | D63: ='16. RTSR - Historical Wholesale'!D62 -> 0 | E63: 0 | F63: 0 | H63: ='16. RTSR - Historical Wholesale'!H62 -> 0 | I63: 0 | J63: 0 | L63: ='16. RTSR - Historical Wholesale'!L62 -> 0 | M63: 0 | N63: 0 | P63: 0
B64: July | D64: ='16. RTSR - Historical Wholesale'!D63 -> 0 | E64: 0 | F64: 0 | H64: ='16. RTSR - Historical Wholesale'!H63 -> 0 | I64: 0 | J64: 0 | L64: ='16. RTSR - Historical Wholesale'!L63 -> 0 | M64: 0 | N64: 0 | P64: 0
B65: August | D65: ='16. RTSR - Historical Wholesale'!D64 -> 0 | E65: 0 | F65: 0 | H65: ='16. RTSR - Historical Wholesale'!H64 -> 0 | I65: 0 | J65: 0 | L65: ='16. RTSR - Historical Wholesale'!L64 -> 0 | M65: 0 | N65: 0 | P65: 0
B66: September | D66: ='16. RTSR - Historical Wholesale'!D65 -> 0 | E66: 0 | F66: 0 | H66: ='16. RTSR - Historical Wholesale'!H65 -> 0 | I66: 0 | J66: 0 | L66: ='16. RTSR - Historical Wholesale'!L65 -> 0 | M66: 0 | N66: 0 | P66: 0
B67: October | D67: ='16. RTSR - Historical Wholesale'!D66 -> 0 | E67: 0 | F67: 0 | H67: ='16. RTSR - Historical Wholesale'!H66 -> 0 | I67: 0 | J67: 0 | L67: ='16. RTSR - Historical Wholesale'!L66 -> 0 | M67: 0 | N67: 0 | P67: 0
B68: November | D68: ='16. RTSR - Historical Wholesale'!D67 -> 0 | E68: 0 | F68: 0 | H68: ='16. RTSR - Historical Wholesale'!H67 -> 0 | I68: 0 | J68: 0 | L68: ='16. RTSR - Historical Wholesale'!L67 -> 0 | M68: 0 | N68: 0 | P68: 0
B69: December | D69: ='16. RTSR - Historical Wholesale'!D68 -> 0 | E69: 0 | F69: 0 | H69: ='16. RTSR - Historical Wholesale'!H68 -> 0 | I69: 0 | J69: 0 | L69: ='16. RTSR - Historical Wholesale'!L68 -> 0 | M69: 0 | N69: 0 | P69: 0
B71: Total | D71: =SUM(D58:D69) -> 0 | E71: =IF(D71<>0,F71/D71,0) -> 0 | F71: =SUM(F58:F69) -> 0 | H71: =SUM(H58:H69) -> 0 | I71: =IF(H71<>0,J71/H71,0) -> 0 | J71: =SUM(J58:J69) -> 0 | L71: =SUM(L58:L69) -> 0 | M71: =IF(L71<>0,N71/L71,0) -> 0 | N71: =SUM(N58:N69) -> 0 | P71: =SUM(P58:P69) -> 0
B73: ='16. RTSR - Historical Wholesale'!B72 -> Add Extra Host Here (II) | D73: Network | H73: Line Connection | L73: Transformation Connection | P73: Total Line
B75: Month | D75: Units Billed | E75: Rate | F75: Amount | H75: Units Billed | I75: Rate | J75: Amount | L75: Units Billed | M75: Rate | N75: Amount | P75: Amount
B77: January | D77: ='16. RTSR - Historical Wholesale'!D76 -> 0 | E77: ='15. RTSR - UTRs & Sub-Tx'!I65 -> 0 | F77: =D77*E77 -> 0 | H77: ='16. RTSR - Historical Wholesale'!H76 -> 0 | I77: ='15. RTSR - UTRs & Sub-Tx'!I67 -> 0 | J77: =H77*I77 -> 0 | L77: ='16. RTSR - Historical Wholesale'!L76 -> 0 | M77: ='15. RTSR - UTRs & Sub-Tx'!I69 -> 0 | N77: =L77*M77 -> 0 | P77: =J77+N77 -> 0
B78: February | D78: ='16. RTSR - Historical Wholesale'!D77 -> 0 | E78: =E77 -> 0 | F78: 0 | H78: ='16. RTSR - Historical Wholesale'!H77 -> 0 | I78: =I77 -> 0 | J78: 0 | L78: ='16. RTSR - Historical Wholesale'!L77 -> 0 | M78: =M77 -> 0 | N78: 0 | P78: 0
B79: March | D79: ='16. RTSR - Historical Wholesale'!D78 -> 0 | E79: 0 | F79: 0 | H79: ='16. RTSR - Historical Wholesale'!H78 -> 0 | I79: 0 | J79: 0 | L79: ='16. RTSR - Historical Wholesale'!L78 -> 0 | M79: 0 | N79: 0 | P79: 0
B80: April | D80: ='16. RTSR - Historical Wholesale'!D79 -> 0 | E80: 0 | F80: 0 | H80: ='16. RTSR - Historical Wholesale'!H79 -> 0 | I80: 0 | J80: 0 | L80: ='16. RTSR - Historical Wholesale'!L79 -> 0 | M80: 0 | N80: 0 | P80: 0
B81: May | D81: ='16. RTSR - Historical Wholesale'!D80 -> 0 | E81: 0 | F81: 0 | H81: ='16. RTSR - Historical Wholesale'!H80 -> 0 | I81: 0 | J81: 0 | L81: ='16. RTSR - Historical Wholesale'!L80 -> 0 | M81: 0 | N81: 0 | P81: 0
B82: June | D82: ='16. RTSR - Historical Wholesale'!D81 -> 0 | E82: 0 | F82: 0 | H82: ='16. RTSR - Historical Wholesale'!H81 -> 0 | I82: 0 | J82: 0 | L82: ='16. RTSR - Historical Wholesale'!L81 -> 0 | M82: 0 | N82: 0 | P82: 0
B83: July | D83: ='16. RTSR - Historical Wholesale'!D82 -> 0 | E83: 0 | F83: 0 | H83: ='16. RTSR - Historical Wholesale'!H82 -> 0 | I83: 0 | J83: 0 | L83: ='16. RTSR - Historical Wholesale'!L82 -> 0 | M83: 0 | N83: 0 | P83: 0
B84: August | D84: ='16. RTSR - Historical Wholesale'!D83 -> 0 | E84: 0 | F84: 0 | H84: ='16. RTSR - Historical Wholesale'!H83 -> 0 | I84: 0 | J84: 0 | L84: ='16. RTSR - Historical Wholesale'!L83 -> 0 | M84: 0 | N84: 0 | P84: 0
B85: September | D85: ='16. RTSR - Historical Wholesale'!D84 -> 0 | E85: 0 | F85: 0 | H85: ='16. RTSR - Historical Wholesale'!H84 -> 0 | I85: 0 | J85: 0 | L85: ='16. RTSR - Historical Wholesale'!L84 -> 0 | M85: 0 | N85: 0 | P85: 0
B86: October | D86: ='16. RTSR - Historical Wholesale'!D85 -> 0 | E86: 0 | F86: 0 | H86: ='16. RTSR - Historical Wholesale'!H85 -> 0 | I86: 0 | J86: 0 | L86: ='16. RTSR - Historical Wholesale'!L85 -> 0 | M86: 0 | N86: 0 | P86: 0
B87: November | D87: ='16. RTSR - Historical Wholesale'!D86 -> 0 | E87: 0 | F87: 0 | H87: ='16. RTSR - Historical Wholesale'!H86 -> 0 | I87: 0 | J87: 0 | L87: ='16. RTSR - Historical Wholesale'!L86 -> 0 | M87: 0 | N87: 0 | P87: 0
B88: December | D88: ='16. RTSR - Historical Wholesale'!D87 -> 0 | E88: 0 | F88: 0 | H88: ='16. RTSR - Historical Wholesale'!H87 -> 0 | I88: 0 | J88: 0 | L88: ='16. RTSR - Historical Wholesale'!L87 -> 0 | M88: 0 | N88: 0 | P88: 0
B90: Total | D90: =SUM(D77:D88) -> 0 | E90: =IF(D90<>0,F90/D90,0) -> 0 | F90: =SUM(F77:F88) -> 0 | H90: =SUM(H77:H88) -> 0 | I90: =IF(H90<>0,J90/H90,0) -> 0 | J90: =SUM(J77:J88) -> 0 | L90: =SUM(L77:L88) -> 0 | M90: =IF(L90<>0,N90/L90,0) -> 0 | N90: =SUM(N77:N88) -> 0 | P90: =SUM(P77:P88) -> 0
B92: Total | D92: Network | H92: Line Connection | L92: Transformation Connection | P92: Total Line
B94: Month | D94: Units Billed | E94: Rate | F94: Amount | H94: Units Billed | I94: Rate | J94: Amount | L94: Units Billed | M94: Rate | N94: Amount | P94: Amount
B96: January | D96: =D20+D39 -> 115067 | E96: =IF(D96<>0,F96/D96,0) -> 3.6546053 | F96: =F20+F39 -> 420524.468 | H96: =H20+H39 -> 122144 | I96: =IF(H96<>0,J96/H96,0) -> 0.7836880338 | J96: =J20+J39 -> 95722.7912 | L96: =L20+L39 -> 111005 | M96: =IF(L96<>0,N96/L96,0) -> 1.87687924 | N96: =N20+N39 -> 208342.98 | P96: =J96+N96 -> 304065.7712
B97: February | D97: 105236 | E97: 3.647283814 | F97: 383825.5595 | H97: 108628 | I97: 0.7810271394 | J97: 84841.4161 | L97: 97313 | M97: 1.870246113 | N97: 181999.26 | P97: 266840.6761
B98: March | D98: 101068 | E98: 3.646874921 | F98: 368582.3545 | H98: 104769 | I98: 0.7807353711 | J98: 81796.8641 | L98: 93683 | M98: 1.869571 | N98: 175147.02 | P98: 256943.8841
B99: April | D99: 94505.77 | E99: 3.647980514 | F99: 344755.2074 | H99: 100388.02 | I99: 0.7820409311 | J99: 78507.54063 | L99: 89963.59 | M99: 1.874098797 | N99: 168600.6558 | P99: 247108.1964
B100: May | D100: 117516.46 | E100: 3.663368457 | F100: 430506.0927 | H100: 122372.9 | I100: 0.7849437468 | J100: 96055.84263 | L100: 110302.14 | M100: 1.883855624 | N100: 207793.3068 | P100: 303849.1494
B101: June | D101: 139539.06 | E101: 3.662869949 | F101: 511113.4296 | H101: 143224.11 | I101: 0.7843277514 | J101: 112334.6441 | L101: 129849.99 | M101: 1.879956893 | N101: 244112.3838 | P101: 356447.0279
B102: July | D102: 154108.42 | E102: 3.663118878 | F102: 564517.4626 | H102: 159321.34 | I102: 0.7844156538 | J102: 124974.1531 | L102: 145423.83 | M102: 1.878541121 | N102: 273184.6446 | P102: 398158.7977
B103: August | D103: 143552.61 | E103: 3.66341812 | F103: 525893.2327 | H103: 145521.9 | I103: 0.7838015318 | J103: 114060.2881 | L103: 132125.52 | M103: 1.877558721 | N103: 248073.4224 | P103: 362133.7105
B104: September | D104: 152844.71 | E104: 3.658988956 | F104: 559257.1058 | H104: 157642.02 | I104: 0.7834437622 | J104: 123503.6572 | L104: 142752.09 | M104: 1.87686349 | N104: 267926.1858 | P104: 391429.843
B105: October | D105: 101006.03 | E105: 3.650000221 | F105: 368672.0318 | H105: 112080.98 | I105: 0.7842398029 | J105: 87898.36567 | L105: 100501.84 | M105: 1.882494299 | N105: 189194.1408 | P105: 277092.5065
B106: November | D106: 105244.8 | E106: 3.647484514 | F106: 383878.7782 | H106: 108480.27 | I106: 0.7810138029 | J106: 84724.58821 | L106: 97490.27 | M106: 1.869399658 | N106: 182248.2774 | P106: 266972.8656
B107: December | D107: 118939.3 | E107: 3.656547251 | F107: 434907.1705 | H107: 120898.3 | I107: 0.7825454908 | J107: 94608.41951 | L107: 109289.38 | M107: 1.873846074 | N107: 204791.4756 | P107: 299399.8951
B109: Total | D109: =SUM(D96:D107) -> 1448628.16 | E109: =IF(D109<>0,F109/D109,0) -> 3.656171431 | F109: =SUM(F96:F107) -> 5296432.893 | H109: =SUM(H96:H107) -> 1505470.84 | I109: =IF(H109<>0,J109/H109,0) -> 0.7831626753 | J109: =SUM(J96:J107) -> 1179028.571 | L109: =SUM(L96:L107) -> 1359699.65 | M109: =IF(L109<>0,N109/L109,0) -> 1.876453931 | N109: =SUM(N96:N107) -> 2551413.753 | P109: =SUM(P96:P107) -> 3730442.324
N111: Transformer Allowance Credit (if applicable) | P111: ='15. RTSR - UTRs & Sub-Tx'!I95 -> 0
N113: Total including deduction for Transformer Allowance Credit | P113: =P109+P111 -> 3730442.324

Sheet 19. RTSR Ntwrk to Curren WS
A13: The purpose of this sheet is to re-align the current RTS Network Rates to recover current wholesale network costs.
A16: Rate Class | B16: Rate Description | C16: Unit | E16: Current RTSR-Network | G16: Loss Adjusted Billed kWh | I16: Loss Adjusted Billed kW | K16: Billed Amount | M16: Billed Amount % | O16: Current Wholesale Billing | Q16: Proposed RTSR Network
A19: RESIDENTIAL | B19: Retail Transmission Rate - Network Service Rate | C19: $/kWh | E19: 0.0073 | G19: 225612192 | I19: 0 | K19: =IF(E19="", "", IF(C19="$/kWh", E19*G19, E19*I19)) -> 1646969.002 | M19: =IF(ISERROR(K19/SUM(K19:K100)),"",K19/SUM(K19:K100)) -> 0.3169097389 | O19: =IF(ISERROR('17. RTSR - Current Wholesale'!$F$109*M19), "", '17. RTSR - Current Wholesale'!$F$109*M19) -> 1678491.165 | Q19: =IF(C19="","",IF(C19="$/kWh",IF(G19<>0,O19/G19,),IF(I19<>0,O19/I19,0))) -> 0.007439718353
A20: GENERAL SERVICE LESS THAN 50 KW | B20: Retail Transmission Rate - Network Service Rate | C20: $/kWh | E20: 0.0064 | G20: 88456164.88 | I20: 0 | K20: =IF(E20="", "", IF(C20="$/kWh", E20*G20, E20*I20)) -> 566119.4552 | M20: =IF(ISERROR(K20/SUM(K19:K100)),"",K20/SUM(K19:K100)) -> 0.1089326931 | O20: =IF(ISERROR('17. RTSR - Current Wholesale'!$F$109*M20), "", '17. RTSR - Current Wholesale'!$F$109*M20) -> 576954.6988 | Q20: =IF(C20="","",IF(C20="$/kWh",IF(G20<>0,O20/G20,),IF(I20<>0,O20/I20,0))) -> 0.006522492803
A21: GENERAL SERVICE 50 TO 999 KW | B21: Retail Transmission Rate - Network Service Rate | C21: $/kW | E21: 2.6952 | G21: 0 | I21: 546511 | K21: =IF(E21="", "", IF(C21="$/kWh", E21*G21, E21*I21)) -> 1472956.447 | M21: =IF(ISERROR(K21/SUM(K19:K100)),"",K21/SUM(K19:K100)) -> 0.2834262471 | O21: =IF(ISERROR('17. RTSR - Current Wholesale'!$F$109*M21), "", '17. RTSR - Current Wholesale'!$F$109*M21) -> 1501148.098 | Q21: =IF(C21="","",IF(C21="$/kWh",IF(G21<>0,O21/G21,),IF(I21<>0,O21/I21,0))) -> 2.746784781
A22: GENERAL SERVICE 50 TO 999 KW | B22: Retail Transmission Rate - Network Service Rate - Interval Metered | C22: $/kW | E22: 2.8582 | G22: 0 | I22: 144879 | K22: =IF(E22="", "", IF(C22="$/kWh", E22*G22, E22*I22)) -> 414093.1578 | M22: =IF(ISERROR(K22/SUM(K19:K100)),"",K22/SUM(K19:K100)) -> 0.07967979628 | O22: =IF(ISERROR('17. RTSR - Current Wholesale'!$F$109*M22), "", '17. RTSR - Current Wholesale'!$F$109*M22) -> 422018.694 | Q22: =IF(C22="","",IF(C22="$/kWh",IF(G22<>0,O22/G22,),IF(I22<>0,O22/I22,0))) -> 2.91290452
A23: GENERAL SERVICE INTERMEDIATE 1,000 TO 4,999 KW | B23: Retail Transmission Rate - Network Service Rate | C23: $/kW | E23: 2.872 | G23: 0 | I23: 278345 | K23: =IF(E23="", "", IF(C23="$/kWh", E23*G23, E23*I23)) -> 799406.84 | M23: =IF(ISERROR(K23/SUM(K19:K100)),"",K23/SUM(K19:K100)) -> 0.1538218465 | O23: =IF(ISERROR('17. RTSR - Current Wholesale'!$F$109*M23), "", '17. RTSR - Current Wholesale'!$F$109*M23) -> 814707.0875 | Q23: =IF(C23="","",IF(C23="$/kWh",IF(G23<>0,O23/G23,),IF(I23<>0,O23/I23,0))) -> 2.926968645
A24: INTERMEDIATE WITH SELF GENERATION | B24: Retail Transmission Rate - Network Service Rate | C24: $/kW | E24: 2.872 | G24: 0 | I24: 87871 | K24: =IF(E24="", "", IF(C24="$/kWh", E24*G24, E24*I24)) -> 252365.512 | M24: =IF(ISERROR(K24/SUM(K19:K100)),"",K24/SUM(K19:K100)) -> 0.04856016625 | O24: =IF(ISERROR('17. RTSR - Current Wholesale'!$F$109*M24), "", '17. RTSR - Current Wholesale'!$F$109*M24) -> 257195.6618 | Q24: =IF(C24="","",IF(C24="$/kWh",IF(G24<>0,O24/G24,),IF(I24<>0,O24/I24,0))) -> 2.926968645
A25: UNMETERED SCATTERED LOAD | B25: Retail Transmission Rate - Network Service Rate | C25: $/kWh | E25: 0.0064 | G25: 943546.296 | I25: 0 | K25: =IF(E25="", "", IF(C25="$/kWh", E25*G25, E25*I25)) -> 6038.696294 | M25: =IF(ISERROR(K25/SUM(K19:K100)),"",K25/SUM(K19:K100)) -> 0.001161965808 | O25: =IF(ISERROR('17. RTSR - Current Wholesale'!$F$109*M25), "", '17. RTSR - Current Wholesale'!$F$109*M25) -> 6154.273925 | Q25: =IF(C25="","",IF(C25="$/kWh",IF(G25<>0,O25/G25,),IF(I25<>0,O25/I25,0))) -> 0.006522492803
A26: SENTINEL LIGHTING | B26: Retail Transmission Rate - Network Service Rate | C26: $/kW | E26: 2.0475 | G26: 0 | I26: 1002 | K26: =IF(E26="", "", IF(C26="$/kWh", E26*G26, E26*I26)) -> 2051.595 | M26: =IF(ISERROR(K26/SUM(K19:K100)),"",K26/SUM(K19:K100)) -> 0.0003947678646 | O26: =IF(ISERROR('17. RTSR - Current Wholesale'!$F$109*M26), "", '17. RTSR - Current Wholesale'!$F$109*M26) -> 2090.861503 | Q26: =IF(C26="","",IF(C26="$/kWh",IF(G26<>0,O26/G26,),IF(I26<>0,O26/I26,0))) -> 2.086688127
A27: STREET LIGHTING | B27: Retail Transmission Rate - Network Service Rate | C27: $/kW | E27: 2.0326 | G27: 0 | I27: 18186 | K27: =IF(E27="", "", IF(C27="$/kWh", E27*G27, E27*I27)) -> 36964.8636 | M27: =IF(ISERROR(K27/SUM(K19:K100)),"",K27/SUM(K19:K100)) -> 0.007112778238 | O27: =IF(ISERROR('17. RTSR - Current Wholesale'!$F$109*M27), "", '17. RTSR - Current Wholesale'!$F$109*M27) -> 37672.35262 | Q27: =IF(C27="","",IF(C27="$/kWh",IF(G27<>0,O27/G27,),IF(I27<>0,O27/I27,0))) -> 2.071502949

Sheet 20. RTSR Adj Conn to Current WS
A13: The purpose of this sheet is to re-align the current RTS Connection Rates to recover current wholesale connection costs.
A16: Rate Class | B16: Rate Description | C16: Unit | E16: Current RTSR-Connection | G16: Loss Adjusted Billed kWh | I16: Loss Adjusted Billed kW | K16: Billed Amount | M16: Billed Amount % | O16: Current Wholesale Billing | Q16: Proposed RTSR Connection
A19: RESIDENTIAL | B19: Retail Transmission Rate - Line and Transformation Connection Service Rate | C19: $/kWh | E19: 0.0051 | G19: 225612192 | I19: 0 | K19: =IF(E19="", "", IF(C19="$/kWh", E19*G19, E19*I19)) -> 1150622.179 | M19: =IF(ISERROR(K19/SUM(K19:K100)),"",K19/SUM(K19:K100)) -> 0.3204009128 | O19: =IF(ISERROR('17. RTSR - Current Wholesale'!$P$113*M19), "", '17. RTSR - Current Wholesale'!$P$113*M19) -> 1195237.126 | Q19: =IF(C19="","",IF(C19="$/kWh",IF(G19<>0,O19/G19,),IF(I19<>0,O19/I19,0))) -> 0.0052977506
A20: GENERAL SERVICE LESS THAN 50 KW | B20: Retail Transmission Rate - Line and Transformation Connection Service Rate | C20: $/kWh | E20: 0.0045 | G20: 88456164.88 | I20: 0 | K20: =IF(E20="", "", IF(C20="$/kWh", E20*G20, E20*I20)) -> 398052.742 | M20: =IF(ISERROR(K20/SUM(K19:K100)),"",K20/SUM(K19:K100)) -> 0.1108413032 | O20: =IF(ISERROR('17. RTSR - Current Wholesale'!$P$113*M20), "", '17. RTSR - Current Wholesale'!$P$113*M20) -> 413487.0888 | Q20: =IF(C20="","",IF(C20="$/kWh",IF(G20<>0,O20/G20,),IF(I20<>0,O20/I20,0))) -> 0.004674485824
A21: GENERAL SERVICE 50 TO 999 KW | B21: Retail Transmission Rate - Line and Transformation Connection Service Rate | C21: $/kW | E21: 1.8182 | G21: 0 | I21: 546511 | K21: =IF(E21="", "", IF(C21="$/kWh", E21*G21, E21*I21)) -> 993666.3002 | M21: =IF(ISERROR(K21/SUM(K19:K100)),"",K21/SUM(K19:K100)) -> 0.2766951614 | O21: =IF(ISERROR('17. RTSR - Current Wholesale'!$P$113*M21), "", '17. RTSR - Current Wholesale'!$P$113*M21) -> 1032195.341 | Q21: =IF(C21="","",IF(C21="$/kWh",IF(G21<>0,O21/G21,),IF(I21<>0,O21/I21,0))) -> 1.888700028
A22: GENERAL SERVICE 50 TO 999 KW | B22: Retail Transmission Rate - Line and Transformation Connection Service Rate - Interval Metered | C22: $/kW | E22: 1.9905 | G22: 0 | I22: 144879 | K22: =IF(E22="", "", IF(C22="$/kWh", E22*G22, E22*I22)) -> 288381.6495 | M22: =IF(ISERROR(K22/SUM(K19:K100)),"",K22/SUM(K19:K100)) -> 0.08030241847 | O22: =IF(ISERROR('17. RTSR - Current Wholesale'!$P$113*M22), "", '17. RTSR - Current Wholesale'!$P$113*M22) -> 299563.5405 | Q22: =IF(C22="","",IF(C22="$/kWh",IF(G22<>0,O22/G22,),IF(I22<>0,O22/I22,0))) -> 2.067680896
A23: GENERAL SERVICE INTERMEDIATE 1,000 TO 4,999 KW | B23: Retail Transmission Rate - Line and Transformation Connection Service Rate | C23: $/kW | E23: 1.9913 | G23: 0 | I23: 278345 | K23: =IF(E23="", "", IF(C23="$/kWh", E23*G23, E23*I23)) -> 554268.3985 | M23: =IF(ISERROR(K23/SUM(K19:K100)),"",K23/SUM(K19:K100)) -> 0.1543409331 | O23: =IF(ISERROR('17. RTSR - Current Wholesale'!$P$113*M23), "", '17. RTSR - Current Wholesale'!$P$113*M23) -> 575759.9492 | Q23: =IF(C23="","",IF(C23="$/kWh",IF(G23<>0,O23/G23,),IF(I23<>0,O23/I23,0))) -> 2.068511916
A24: INTERMEDIATE WITH SELF GENERATION | B24: Retail Transmission Rate - Line and Transformation Connection Service Rate | C24: $/kW | E24: 1.9913 | G24: 0 | I24: 87871 | K24: =IF(E24="", "", IF(C24="$/kWh", E24*G24, E24*I24)) -> 174977.5223 | M24: =IF(ISERROR(K24/SUM(K19:K100)),"",K24/SUM(K19:K100)) -> 0.0487240372 | O24: =IF(ISERROR('17. RTSR - Current Wholesale'!$P$113*M24), "", '17. RTSR - Current Wholesale'!$P$113*M24) -> 181762.2106 | Q24: =IF(C24="","",IF(C24="$/kWh",IF(G24<>0,O24/G24,),IF(I24<>0,O24/I24,0))) -> 2.068511916
A25: UNMETERED SCATTERED LOAD | B25: Retail Transmission Rate - Line and Transformation Connection Service Rate | C25: $/kWh | E25: 0.0045 | G25: 943546.296 | I25: 0 | K25: =IF(E25="", "", IF(C25="$/kWh", E25*G25, E25*I25)) -> 4245.958332 | M25: =IF(ISERROR(K25/SUM(K19:K100)),"",K25/SUM(K19:K100)) -> 0.001182324615 | O25: =IF(ISERROR('17. RTSR - Current Wholesale'!$P$113*M25), "", '17. RTSR - Current Wholesale'!$P$113*M25) -> 4410.593785 | Q25: =IF(C25="","",IF(C25="$/kWh",IF(G25<>0,O25/G25,),IF(I25<>0,O25/I25,0))) -> 0.004674485824
A26: SENTINEL LIGHTING | B26: Retail Transmission Rate - Line and Transformation Connection Service Rate | C26: $/kW | E26: 1.4334 | G26: 0 | I26: 1002 | K26: =IF(E26="", "", IF(C26="$/kWh", E26*G26, E26*I26)) -> 1436.2668 | M26: =IF(ISERROR(K26/SUM(K19:K100)),"",K26/SUM(K19:K100)) -> 0.0003999411814 | O26: =IF(ISERROR('17. RTSR - Current Wholesale'!$P$113*M26), "", '17. RTSR - Current Wholesale'!$P$113*M26) -> 1491.95751 | Q26: =IF(C26="","",IF(C26="$/kWh",IF(G26<>0,O26/G26,),IF(I26<>0,O26/I26,0))) -> 1.488979551
A27: STREET LIGHTING | B27: Retail Transmission Rate - Line and Transformation Connection Service Rate | C27: $/kW | E27: 1.4046 | G27: 0 | I27: 18186 | K27: =IF(E27="", "", IF(C27="$/kWh", E27*G27, E27*I27)) -> 25544.0556 | M27: =IF(ISERROR(K27/SUM(K19:K100)),"",K27/SUM(K19:K100)) -> 0.007112967991 | O27: =IF(ISERROR('17. RTSR - Current Wholesale'!$P$113*M27), "", '17. RTSR - Current Wholesale'!$P$113*M27) -> 26534.51684 | Q27: =IF(C27="","",IF(C27="$/kWh",IF(G27<>0,O27/G27,),IF(I27<>0,O27/I27,0))) -> 1.459062842

Sheet 21. RTSR Adj Ntwk to Forcast WS
A13: The purpose of this sheet is to update the re-align RTS Network Rates to recover forecast wholesale network costs.
A16: Rate Class | B16: Rate Description | C16: Unit | E16: Adjusted RTSR-Network | G16: Loss Adjusted Billed kWh | I16: Loss Adjusted Billed kW | K16: Billed Amount | M16: Billed Amount % | O16: Forecast Wholesale Billing | Q16: Proposed RTSR Network
A19: RESIDENTIAL | B19: Retail Transmission Rate - Network Service Rate | C19: $/kWh | E19: 0.007439718353 | G19: 225612192 | I19: 0 | K19: =IF(E19="", "", IF(C19="$/kWh", E19*G19, E19*I19)) -> 1678491.165 | M19: =IF(ISERROR(K19/SUM(K19:K100)),"",K19/SUM(K19:K100)) -> 0.3169097389 | O19: =IF(ISERROR('18. RTSR - Forecast Wholesale'!$F$109*M19), "", '18. RTSR - Forecast Wholesale'!$F$109*M19) -> 1678491.165 | Q19: =IF(C19="","",IF(C19="$/kWh",IF(G19<>0,O19/G19,),IF(I19<>0,O19/I19,0))) -> 0.007439718353
A20: GENERAL SERVICE LESS THAN 50 KW | B20: Retail Transmission Rate - Network Service Rate | C20: $/kWh | E20: 0.006522492803 | G20: 88456164.88 | I20: 0 | K20: =IF(E20="", "", IF(C20="$/kWh", E20*G20, E20*I20)) -> 576954.6988 | M20: =IF(ISERROR(K20/SUM(K19:K100)),"",K20/SUM(K19:K100)) -> 0.1089326931 | O20: =IF(ISERROR('18. RTSR - Forecast Wholesale'!$F$109*M20), "", '18. RTSR - Forecast Wholesale'!$F$109*M20) -> 576954.6988 | Q20: =IF(C20="","",IF(C20="$/kWh",IF(G20<>0,O20/G20,),IF(I20<>0,O20/I20,0))) -> 0.006522492803
A21: GENERAL SERVICE 50 TO 999 KW | B21: Retail Transmission Rate - Network Service Rate | C21: $/kW | E21: 2.746784781 | G21: 0 | I21: 546511 | K21: =IF(E21="", "", IF(C21="$/kWh", E21*G21, E21*I21)) -> 1501148.098 | M21: =IF(ISERROR(K21/SUM(K19:K100)),"",K21/SUM(K19:K100)) -> 0.2834262471 | O21: =IF(ISERROR('18. RTSR - Forecast Wholesale'!$F$109*M21), "", '18. RTSR - Forecast Wholesale'!$F$109*M21) -> 1501148.098 | Q21: =IF(C21="","",IF(C21="$/kWh",IF(G21<>0,O21/G21,),IF(I21<>0,O21/I21,0))) -> 2.746784781
A22: GENERAL SERVICE 50 TO 999 KW | B22: Retail Transmission Rate - Network Service Rate - Interval Metered | C22: $/kW | E22: 2.91290452 | G22: 0 | I22: 144879 | K22: =IF(E22="", "", IF(C22="$/kWh", E22*G22, E22*I22)) -> 422018.694 | M22: =IF(ISERROR(K22/SUM(K19:K100)),"",K22/SUM(K19:K100)) -> 0.07967979628 | O22: =IF(ISERROR('18. RTSR - Forecast Wholesale'!$F$109*M22), "", '18. RTSR - Forecast Wholesale'!$F$109*M22) -> 422018.694 | Q22: =IF(C22="","",IF(C22="$/kWh",IF(G22<>0,O22/G22,),IF(I22<>0,O22/I22,0))) -> 2.91290452
A23: GENERAL SERVICE INTERMEDIATE 1,000 TO 4,999 KW | B23: Retail Transmission Rate - Network Service Rate | C23: $/kW | E23: 2.926968645 | G23: 0 | I23: 278345 | K23: =IF(E23="", "", IF(C23="$/kWh", E23*G23, E23*I23)) -> 814707.0875 | M23: =IF(ISERROR(K23/SUM(K19:K100)),"",K23/SUM(K19:K100)) -> 0.1538218465 | O23: =IF(ISERROR('18. RTSR - Forecast Wholesale'!$F$109*M23), "", '18. RTSR - Forecast Wholesale'!$F$109*M23) -> 814707.0875 | Q23: =IF(C23="","",IF(C23="$/kWh",IF(G23<>0,O23/G23,),IF(I23<>0,O23/I23,0))) -> 2.926968645
A24: INTERMEDIATE WITH SELF GENERATION | B24: Retail Transmission Rate - Network Service Rate | C24: $/kW | E24: 2.926968645 | G24: 0 | I24: 87871 | K24: =IF(E24="", "", IF(C24="$/kWh", E24*G24, E24*I24)) -> 257195.6618 | M24: =IF(ISERROR(K24/SUM(K19:K100)),"",K24/SUM(K19:K100)) -> 0.04856016625 | O24: =IF(ISERROR('18. RTSR - Forecast Wholesale'!$F$109*M24), "", '18. RTSR - Forecast Wholesale'!$F$109*M24) -> 257195.6618 | Q24: =IF(C24="","",IF(C24="$/kWh",IF(G24<>0,O24/G24,),IF(I24<>0,O24/I24,0))) -> 2.926968645
A25: UNMETERED SCATTERED LOAD | B25: Retail Transmission Rate - Network Service Rate | C25: $/kWh | E25: 0.006522492803 | G25: 943546.296 | I25: 0 | K25: =IF(E25="", "", IF(C25="$/kWh", E25*G25, E25*I25)) -> 6154.273925 | M25: =IF(ISERROR(K25/SUM(K19:K100)),"",K25/SUM(K19:K100)) -> 0.001161965808 | O25: =IF(ISERROR('18. RTSR - Forecast Wholesale'!$F$109*M25), "", '18. RTSR - Forecast Wholesale'!$F$109*M25) -> 6154.273925 | Q25: =IF(C25="","",IF(C25="$/kWh",IF(G25<>0,O25/G25,),IF(I25<>0,O25/I25,0))) -> 0.006522492803
A26: SENTINEL LIGHTING | B26: Retail Transmission Rate - Network Service Rate | C26: $/kW | E26: 2.086688127 | G26: 0 | I26: 1002 | K26: =IF(E26="", "", IF(C26="$/kWh", E26*G26, E26*I26)) -> 2090.861503 | M26: =IF(ISERROR(K26/SUM(K19:K100)),"",K26/SUM(K19:K100)) -> 0.0003947678646 | O26: =IF(ISERROR('18. RTSR - Forecast Wholesale'!$F$109*M26), "", '18. RTSR - Forecast Wholesale'!$F$109*M26) -> 2090.861503 | Q26: =IF(C26="","",IF(C26="$/kWh",IF(G26<>0,O26/G26,),IF(I26<>0,O26/I26,0))) -> 2.086688127
A27: STREET LIGHTING | B27: Retail Transmission Rate - Network Service Rate | C27: $/kW | E27: 2.071502949 | G27: 0 | I27: 18186 | K27: =IF(E27="", "", IF(C27="$/kWh", E27*G27, E27*I27)) -> 37672.35262 | M27: =IF(ISERROR(K27/SUM(K19:K100)),"",K27/SUM(K19:K100)) -> 0.007112778238 | O27: =IF(ISERROR('18. RTSR - Forecast Wholesale'!$F$109*M27), "", '18. RTSR - Forecast Wholesale'!$F$109*M27) -> 37672.35262 | Q27: =IF(C27="","",IF(C27="$/kWh",IF(G27<>0,O27/G27,),IF(I27<>0,O27/I27,0))) -> 2.071502949

Sheet 22. RTSR Adj Conn. to Forcst WS
A13: The purpose of this sheet is to update the re-aligned RTS Connection Rates to recover forecast wholesale connection costs.
A16: Rate Class | B16: Rate Description | C16: Unit | E16: Adjusted RTSR-Connection | G16: Loss Adjusted Billed kWh | I16: Loss Adjusted Billed kW | K16: Billed Amount | M16: Billed Amount % | O16: Forecast Wholesale Billing | Q16: Proposed RTSR Connection
A19: RESIDENTIAL | B19: Retail Transmission Rate - Line and Transformation Connection Service Rate | C19: $/kWh | E19: 0.0052977506 | G19: 225612192 | I19: 0 | K19: =IF(E19="", "", IF(C19="$/kWh", E19*G19, E19*I19)) -> 1195237.126 | M19: =IF(ISERROR(K19/SUM(K19:K100)),"",K19/SUM(K19:K100)) -> 0.3204009128 | O19: =IF(ISERROR('18. RTSR - Forecast Wholesale'!$P$113*M19), "", '18. RTSR - Forecast Wholesale'!$P$113*M19) -> 1195237.126 | Q19: =IF(C19="","",IF(C19="$/kWh",IF(G19<>0,O19/G19,),IF(I19<>0,O19/I19,0))) -> 0.0052977506
A20: GENERAL SERVICE LESS THAN 50 KW | B20: Retail Transmission Rate - Line and Transformation Connection Service Rate | C20: $/kWh | E20: 0.004674485824 | G20: 88456164.88 | I20: 0 | K20: =IF(E20="", "", IF(C20="$/kWh", E20*G20, E20*I20)) -> 413487.0888 | M20: =IF(ISERROR(K20/SUM(K19:K100)),"",K20/SUM(K19:K100)) -> 0.1108413032 | O20: =IF(ISERROR('18. RTSR - Forecast Wholesale'!$P$113*M20), "", '18. RTSR - Forecast Wholesale'!$P$113*M20) -> 413487.0888 | Q20: =IF(C20="","",IF(C20="$/kWh",IF(G20<>0,O20/G20,),IF(I20<>0,O20/I20,0))) -> 0.004674485824
A21: GENERAL SERVICE 50 TO 999 KW | B21: Retail Transmission Rate - Line and Transformation Connection Service Rate | C21: $/kW | E21: 1.888700028 | G21: 0 | I21: 546511 | K21: =IF(E21="", "", IF(C21="$/kWh", E21*G21, E21*I21)) -> 1032195.341 | M21: =IF(ISERROR(K21/SUM(K19:K100)),"",K21/SUM(K19:K100)) -> 0.2766951614 | O21: =IF(ISERROR('18. RTSR - Forecast Wholesale'!$P$113*M21), "", '18. RTSR - Forecast Wholesale'!$P$113*M21) -> 1032195.341 | Q21: =IF(C21="","",IF(C21="$/kWh",IF(G21<>0,O21/G21,),IF(I21<>0,O21/I21,0))) -> 1.888700028
A22: GENERAL SERVICE 50 TO 999 KW | B22: Retail Transmission Rate - Line and Transformation Connection Service Rate - Interval Metered | C22: $/kW | E22: 2.067680896 | G22: 0 | I22: 144879 | K22: =IF(E22="", "", IF(C22="$/kWh", E22*G22, E22*I22)) -> 299563.5405 | M22: =IF(ISERROR(K22/SUM(K19:K100)),"",K22/SUM(K19:K100)) -> 0.08030241847 | O22: =IF(ISERROR('18. RTSR - Forecast Wholesale'!$P$113*M22), "", '18. RTSR - Forecast Wholesale'!$P$113*M22) -> 299563.5405 | Q22: =IF(C22="","",IF(C22="$/kWh",IF(G22<>0,O22/G22,),IF(I22<>0,O22/I22,0))) -> 2.067680896
A23: GENERAL SERVICE INTERMEDIATE 1,000 TO 4,999 KW | B23: Retail Transmission Rate - Line and Transformation Connection Service Rate | C23: $/kW | E23: 2.068511916 | G23: 0 | I23: 278345 | K23: =IF(E23="", "", IF(C23="$/kWh", E23*G23, E23*I23)) -> 575759.9492 | M23: =IF(ISERROR(K23/SUM(K19:K100)),"",K23/SUM(K19:K100)) -> 0.1543409331 | O23: =IF(ISERROR('18. RTSR - Forecast Wholesale'!$P$113*M23), "", '18. RTSR - Forecast Wholesale'!$P$113*M23) -> 575759.9492 | Q23: =IF(C23="","",IF(C23="$/kWh",IF(G23<>0,O23/G23,),IF(I23<>0,O23/I23,0))) -> 2.068511916
A24: INTERMEDIATE WITH SELF GENERATION | B24: Retail Transmission Rate - Line and Transformation Connection Service Rate | C24: $/kW | E24: 2.068511916 | G24: 0 | I24: 87871 | K24: =IF(E24="", "", IF(C24="$/kWh", E24*G24, E24*I24)) -> 181762.2106 | M24: =IF(ISERROR(K24/SUM(K19:K100)),"",K24/SUM(K19:K100)) -> 0.0487240372 | O24: =IF(ISERROR('18. RTSR - Forecast Wholesale'!$P$113*M24), "", '18. RTSR - Forecast Wholesale'!$P$113*M24) -> 181762.2106 | Q24: =IF(C24="","",IF(C24="$/kWh",IF(G24<>0,O24/G24,),IF(I24<>0,O24/I24,0))) -> 2.068511916
A25: UNMETERED SCATTERED LOAD | B25: Retail Transmission Rate - Line and Transformation Connection Service Rate | C25: $/kWh | E25: 0.004674485824 | G25: 943546.296 | I25: 0 | K25: =IF(E25="", "", IF(C25="$/kWh", E25*G25, E25*I25)) -> 4410.593785 | M25: =IF(ISERROR(K25/SUM(K19:K100)),"",K25/SUM(K19:K100)) -> 0.001182324615 | O25: =IF(ISERROR('18. RTSR - Forecast Wholesale'!$P$113*M25), "", '18. RTSR - Forecast Wholesale'!$P$113*M25) -> 4410.593785 | Q25: =IF(C25="","",IF(C25="$/kWh",IF(G25<>0,O25/G25,),IF(I25<>0,O25/I25,0))) -> 0.004674485824
A26: SENTINEL LIGHTING | B26: Retail Transmission Rate - Line and Transformation Connection Service Rate | C26: $/kW | E26: 1.488979551 | G26: 0 | I26: 1002 | K26: =IF(E26="", "", IF(C26="$/kWh", E26*G26, E26*I26)) -> 1491.95751 | M26: =IF(ISERROR(K26/SUM(K19:K100)),"",K26/SUM(K19:K100)) -> 0.0003999411814 | O26: =IF(ISERROR('18. RTSR - Forecast Wholesale'!$P$113*M26), "", '18. RTSR - Forecast Wholesale'!$P$113*M26) -> 1491.95751 | Q26: =IF(C26="","",IF(C26="$/kWh",IF(G26<>0,O26/G26,),IF(I26<>0,O26/I26,0))) -> 1.488979551
A27: STREET LIGHTING | B27: Retail Transmission Rate - Line and Transformation Connection Service Rate | C27: $/kW | E27: 1.459062842 | G27: 0 | I27: 18186 | K27: =IF(E27="", "", IF(C27="$/kWh", E27*G27, E27*I27)) -> 26534.51684 | M27: =IF(ISERROR(K27/SUM(K19:K100)),"",K27/SUM(K19:K100)) -> 0.007112967991 | O27: =IF(ISERROR('18. RTSR - Forecast Wholesale'!$P$113*M27), "", '18. RTSR - Forecast Wholesale'!$P$113*M27) -> 26534.51684 | Q27: =IF(C27="","",IF(C27="$/kWh",IF(G27<>0,O27/G27,),IF(I27<>0,O27/I27,0))) -> 1.459062842

Sheet 23. RTSR Final 2015 RTS Rates
A13: This sheet lists proposed RTSRs for all classes. No input required.
A16: Rate Class | B16: Rate Description | C16: Unit | E16: Proposed Retail Transmission Rate
A19: RESIDENTIAL | B19: Retail Transmission Rate - Network Service Rate | C19: $/kWh | E19: 0.007439718353
A20: RESIDENTIAL | B20: Retail Transmission Rate - Line and Transformation Connection Service Rate | C20: $/kWh | E20: 0.0052977506
A21: GENERAL SERVICE LESS THAN 50 KW | B21: Retail Transmission Rate - Network Service Rate | C21: $/kWh | E21: 0.006522492803
A22: GENERAL SERVICE LESS THAN 50 KW | B22: Retail Transmission Rate - Line and Transformation Connection Service Rate | C22: $/kWh | E22: 0.004674485824
A23: GENERAL SERVICE 50 TO 999 KW | B23: Retail Transmission Rate - Network Service Rate | C23: $/kW | E23: 2.746784781
A24: GENERAL SERVICE 50 TO 999 KW | B24: Retail Transmission Rate - Line and Transformation Connection Service Rate | C24: $/kW | E24: 1.888700028
A25: GENERAL SERVICE 50 TO 999 KW | B25: Retail Transmission Rate - Network Service Rate - Interval Metered | C25: $/kW | E25: 2.91290452
A26: GENERAL SERVICE 50 TO 999 KW | B26: Retail Transmission Rate - Line and Transformation Connection Service Rate - Interval Metered | C26: $/kW | E26: 2.067680896
A27: GENERAL SERVICE INTERMEDIATE 1,000 TO 4,999 KW | B27: Retail Transmission Rate - Network Service Rate | C27: $/kW | E27: 2.926968645
A28: GENERAL SERVICE INTERMEDIATE 1,000 TO 4,999 KW | B28: Retail Transmission Rate - Line and Transformation Connection Service Rate | C28: $/kW | E28: 2.068511916
A29: INTERMEDIATE WITH SELF GENERATION | B29: Retail Transmission Rate - Network Service Rate | C29: $/kW | E29: 2.926968645
A30: INTERMEDIATE WITH SELF GENERATION | B30: Retail Transmission Rate - Line and Transformation Connection Service Rate | C30: $/kW | E30: 2.068511916
A31: UNMETERED SCATTERED LOAD | B31: Retail Transmission Rate - Network Service Rate | C31: $/kWh | E31: 0.006522492803
A32: UNMETERED SCATTERED LOAD | B32: Retail Transmission Rate - Line and Transformation Connection Service Rate | C32: $/kWh | E32: 0.004674485824
A33: SENTINEL LIGHTING | B33: Retail Transmission Rate - Network Service Rate | C33: $/kW | E33: 2.086688127
A34: SENTINEL LIGHTING | B34: Retail Transmission Rate - Line and Transformation Connection Service Rate | C34: $/kW | E34: 1.488979551
A35: STREET LIGHTING | B35: Retail Transmission Rate - Network Service Rate | C35: $/kW | E35: 2.071502949
A36: STREET LIGHTING | B36: Retail Transmission Rate - Line and Transformation Connection Service Rate | C36: $/kW | E36: 1.459062842

Sheet 24. Rev2Cost_GDPIPI
Y1: FALSE | Z1: 0 | AC1: NO
Y2: TRUE
A12: If applicable, please enter any adjustments related to the revenue to cost ratio model into columns C and E. The Price Escalator and Stretch Factor have been set at the 2014 values and will be updated by Board staff at a later date.
A15: Price Escalator | B15: 0.017 | C15: Choose Stretch Factor Group | E15: II
A16: Productivity Factor | B16: 0 | C16: Associated Stretch Factor Value | E16: =IF(E15="I", 0%, IF(E15="II", 0.15%, IF(E15="III", 0.3%, IF(E15="IV", 0.45%, 0.6%)))) -> 0.0015
A17: Price Cap Index | B17: =B15-B16-E16 -> 0.0155
B19: Current MFC | C19: MFC Adjustment from R/C Model | D19: Current Volumetric Charge | E19: DVR Adjustment from R/C Model | F19: Price Cap Index to be Applied to MFC and DVR | G19: Proposed MFC | H19: Proposed Volumetric Charge
A20: Rate Class
A22: RESIDENTIAL | B22: 18.71 | D22: 0.0087 | F22: =$B$17 -> 0.0155 | G22: =ROUND(SUM(B22,C22)*(1+F22),2) -> 19 | H22: =ROUND(SUM(D22,E22)*(1+F22),4) -> 0.0088
A23: GENERAL SERVICE LESS THAN 50 KW | B23: 34.34 | D23: 0.0116 | F23: =$B$17 -> 0.0155 | G23: =ROUND(SUM(B23,C23)*(1+F23),2) -> 34.87 | H23: =ROUND(SUM(D23,E23)*(1+F23),4) -> 0.0118
A24: GENERAL SERVICE 50 TO 999 KW | B24: 121.1 | D24: 3.4329 | F24: =$B$17 -> 0.0155 | G24: =ROUND(SUM(B24,C24)*(1+F24),2) -> 122.98 | H24: =ROUND(SUM(D24,E24)*(1+F24),4) -> 3.4861
A25: GENERAL SERVICE INTERMEDIATE 1,000 TO 4,999 KW | B25: 98.31 | D25: 4.6622 | F25: =$B$17 -> 0.0155 | G25: =ROUND(SUM(B25,C25)*(1+F25),2) -> 99.83 | H25: =ROUND(SUM(D25,E25)*(1+F25),4) -> 4.7345
A26: INTERMEDIATE WITH SELF GENERATION | B26: 1365.59 | D26: 3.4454 | F26: =$B$17 -> 0.0155 | G26: =ROUND(SUM(B26,C26)*(1+F26),2) -> 1386.76 | H26: =ROUND(SUM(D26,E26)*(1+F26),4) -> 3.4988
A27: UNMETERED SCATTERED LOAD | B27: 10.9 | D27: 0.0008 | F27: =$B$17 -> 0.0155 | G27: =ROUND(SUM(B27,C27)*(1+F27),2) -> 11.07 | H27: =ROUND(SUM(D27,E27)*(1+F27),4) -> 0.0008
A28: STANDBY POWER | D28: 1.7284 | F28: =$B$17 -> 0.0155 | G28: =ROUND(SUM(B28,C28)*(1+F28),2) -> 0 | H28: =ROUND(SUM(D28,E28)*(1+F28),4) -> 1.7552
A29: SENTINEL LIGHTING | B29: 8.59 | D29: 0.6097 | F29: =$B$17 -> 0.0155 | G29: =ROUND(SUM(B29,C29)*(1+F29),2) -> 8.72 | H29: =ROUND(SUM(D29,E29)*(1+F29),4) -> 0.6192
A30: STREET LIGHTING | B30: 1.71 | D30: 1.2675 | F30: =$B$17 -> 0.0155 | G30: =ROUND(SUM(B30,C30)*(1+F30),2) -> 1.74 | H30: =ROUND(SUM(D30,E30)*(1+F30),4) -> 1.2871
A31: microFIT | B31: 5.4 | G31: =ROUND(SUM(B31,C31)*(1+F31),2) -> 5.4

Sheet 24. hidden (hidden)
A1: Rate Class | B1: MFC Adjustment from R/C Model | C1: DVR Adjustment from R/C Model
A2: RESIDENTIAL | B2: 18.71 | D2: 0.0087
A3: GENERAL SERVICE LESS THAN 50 KW | B3: 34.34 | D3: 0.0116
A4: GENERAL SERVICE 50 TO 999 KW | B4: 121.1 | D4: 3.4329
A5: GENERAL SERVICE INTERMEDIATE 1,000 TO 4,999 KW | B5: 98.31 | D5: 4.6622
A6: INTERMEDIATE WITH SELF GENERATION | B6: 1365.59 | D6: 3.4454
A7: UNMETERED SCATTERED LOAD | B7: 10.9 | D7: 0.0008
A8: STANDBY POWER | D8: 1.7284
A9: SENTINEL LIGHTING | B9: 8.59 | D9: 0.6097
A10: STREET LIGHTING | B10: 1.71 | D10: 1.2675

Sheet 25. Other Charges & LF
A11: Please enter the following charges as found on your most recent Board-Approved Tariff Schedule. The standard Allowance rates have been included as default entries. If you have different rates, please make the appropriate corrections in the applicable cells below. As well, please enter the current Specific Service Charges below. The standard Retail Service Charges have been entered below. If you have different rates, please make the appropriate corrections in columns A, C or D as applicable (cells are unlocked).
C13: UNIT | D13: RATE
A15: ALLOWANCES
A17: Transformer Allowance for Ownership - per kW of billing demand/month | C17: $/kW | D17: -0.6
A20: Primary Metering Allowance for transformer losses – applied to measured demand and energy | C20: % | D20: -1
A22: SPECIFIC SERVICE CHARGES
A24: APPLICATION
A26: The application of these rates and charges shall be in accordance with the Licence of the Distributor and any Code or Order of the Board, and amendments thereto as approved by the Board, which may be applicable to the administration of this schedule.
A27: No charges to meet the costs of any work or service done or furnished for the purpose of the distribution of electricity shall be made except as permitted by this schedule, unless required by the Distributor’s Licence or a Code or Order of the Board, and amendments thereto as approved by the Board, or as specified herein.
A28: It should be noted that this schedule does not list any charges, assessments or credits that are required by law to be invoiced by a distributor and that are not subject to Board approval, such as the Debt Retirement Charge, the Global Adjustment, the Ontario Clean Energy Benefit and the HST.
A30: Customer Administration
A31: Arrears certificate | C31: $ | D31: 15
A32: Statement of Account | C32: $ | D32: 15
A33: Easement Letter | C33: $ | D33: 15
A34: Credit Reference/credit check (plus credit agency costs) | C34: $ | D34: 15
A35: Returned cheque (plus bank charges) | C35: $ | D35: 15
A36: Account set up charge/change of occupancy charge | C36: $ | D36: 30
A37: Meter dispute charge plus Measurement Canada fees (if meter found correct) | C37: $ | D37: 30
A67: Non-Payment of Account
A68: Late Payment – per month | C68: % | D68: 1.5
A69: Late Payment – per annum | C69: % | D69: 19.56
A70: Disconnect/Reconnect at meter – during regular hours | C70: $ | D70: 65
A71: Temporary Service – Install & remove – overhead – no transformer | C71: $ | D71: 500
A72: Temporary Service – Install & remove – overhead – with transformer | C72: $ | D72: 1000
A73: Specific Charge for Access to the Power Poles - $/pole/year | C73: $ | D73: 22.35
A74: Switching for company maintenance – Charge based on Time and Materials | C74: $ | D74: Time & Materials
A116: RETAIL SERVICE CHARGES (if applicable)
A118: The application of these rates and charges shall be in accordance with the Licence of the Distributor and any Code or Order of the Board, and amendments thereto as approved by the Board, which may be applicable to the administration of this schedule.
A120: No rates and charges for the distribution of electricity and charges to meet the costs of any work or service done or furnished for the purpose of the distribution of electricity shall be made except as permitted by this schedule, unless required by the Distributor’s Licence or a Code or Order of the Board, and amendments thereto as approved by the Board, or as specified herein.
A122: Unless specifically noted, this schedule does not contain any charges for the electricity commodity, be it under the Regulated Price Plan, a contract with a retailer or the wholesale market price, as applicable.
A124: It should be noted that this schedule does not list any charges, assessments, or credits that are required by law to be invoiced by a distributor and that are not subject to Board approval, such as the Debt Retirement Charge, the Global Adjustment, the Ontario Clean Energy Benefit and the HST.
A126: Retail Service Charges refer to services provided by a distributor to retailers or customers related to the supply of competitive electricity.
A128: One-time charge, per retailer, to establish the service agreement between the distributor and the retailer | C128: $ | D128: 100
A129: Monthly Fixed Charge, per retailer | C129: $ | D129: 20
A130: Monthly Variable Charge, per customer, per retailer | C130: $/cust. | D130: 0.5
A131: Distributor-consolidated billing monthly charge, per customer, per retailer | C131: $/cust. | D131: 0.3
A132: Retailer-consolidated billing monthly credit, per customer, per retailer | C132: $/cust. | D132: -0.3
A133: Service Transaction Requests (STR)
A134: Request fee, per request, applied to the requesting party | C134: $ | D134: 0.25
A135: Processing fee, per request, applied to the requesting party | C135: $ | D135: 0.5
A136: Request for customer information as outlined in Section 10.6.3 and Chapter 11 of the Retail
A137: Settlement Code directly to retailers and customers, if not delivered electronically through the
A138: Electronic Business Transaction (EBT) system, applied to the requesting party
A139: Up to twice a year | C139: $ | D139: no charge
A140: More than twice a year, per request (plus incremental delivery costs) | C140: $ | D140: 2
A143: LOSS FACTORS
A145: If the distributor is not capable of prorating changed loss factors jointly with distribution rates, the revised loss factors will be implemented upon the first subsequent billing for each billing cycle.
A148: Total Loss Factor – Secondary Metered Customer < 5,000 kW | D148: 1.0428 | H148: TLF_Secondary_LT_5000kW
A149: Total Loss Factor – Secondary Metered Customer > 5,000 kW | D149: 1.043 | H149: TLF_Primary_LT_5000kW
A150: Distribution Loss Factor - Primary Metered Customer < 5,000 kW | D150: 1.0324
A151: Distribution Loss Factor - Primary Metered Customer > 5,000 kW | D151: 1.0141

Sheet 26. Proposed Rates
Z1: 3
L5: =ROUND(LEN(B5), -2) / 100 -> 0
L9: =ROUND(LEN(B9), -2) / 100 -> 0
B12: In the Green Cells below, enter any proposed rate riders that are not already included in this model (e.g: ICM rate riders). In column B, the rate rider descriptions must begin with "Rate Rider for". In column C, choose the associated unit from the drop-down menu. In column D, enter the rate. All rate riders with a "$" unit will be rounded to 2 decimal places and all others will be rounded to 4 decimal places.
A20: RESIDENTIAL | B20: RESIDENTIAL SERVICE CLASSIFICATION | C20: Unit | D20: Rate
A21: RESIDENTIAL | B21: Rate Rider for Recovery of Lost Revenue Adjustment Mechanism Variance Account (LRAMVA) - Effective until April 30, 2016 | C21: $/kWh | D21: 0.0001
A22: RESIDENTIAL | B22: Rate Rider for Application of Tax Change - effective until April 30, 2016 | C22: $/kWh | D22: -0.0002
A23: RESIDENTIAL | B23: Rate Rider for Disposition of Deferral/Variance Accounts (2015) - effective until April 30, 2016 | C23: $/kWh | D23: 0.0022
A24: RESIDENTIAL | B24: Rate Rider for Disposition of Global Adjustment Accounts (2015) - Effective until April 30, 2016 Applicable only for Non-RPP Customers Excluding Class A Customers | C24: $/kWh | D24: 0.0015
A25: RESIDENTIAL | B25: Rate Rider for Disposition of Historic Global Adjustment (2015) - Effective until April 30, 2016 Applicable only for Non-RPP Customers Excluding MUSH Customers | C25: $/kWh | D25: 0.0017
A26: RESIDENTIAL
A27: RESIDENTIAL
A28: RESIDENTIAL
A29: RESIDENTIAL
A30: RESIDENTIAL
A32: GENERAL SERVICE LESS THAN 50 KW | B32: GENERAL SERVICE LESS THAN 50 KW SERVICE CLASSIFICATION | C32: Unit | D32: Rate
A33: GENERAL SERVICE LESS THAN 50 KW | B33: Rate Rider for Recovery of Lost Revenue Adjustment Mechanism Variance Account (LRAMVA) - Effective until April 30, 2016 | C33: $/kWh | D33: 0.0006
A34: GENERAL SERVICE LESS THAN 50 KW | B34: Rate Rider for Application of Tax Change - effective until April 30, 2016 | C34: $/kWh | D34: -0.0001
A35: GENERAL SERVICE LESS THAN 50 KW | B35: Rate Rider for Disposition of Deferral/Variance Accounts (2015) - effective until April 30, 2016 | C35: $/kWh | D35: 0.0022
A36: GENERAL SERVICE LESS THAN 50 KW | B36: Rate Rider for Disposition of Global Adjustment Accounts (2015) - Effective until April 30, 2016 Applicable only for Non-RPP Customers Excluding Class A Customers | C36: $/kWh | D36: 0.0015
A37: GENERAL SERVICE LESS THAN 50 KW | B37: Rate Rider for Disposition of Historic Global Adjustment (2015) - Effective until April 30, 2016 Applicable only for Non-RPP Customers Excluding MUSH Customers | C37: $/kWh | D37: 0.0032
A38: GENERAL SERVICE LESS THAN 50 KW
A39: GENERAL SERVICE LESS THAN 50 KW
A40: GENERAL SERVICE LESS THAN 50 KW
A41: GENERAL SERVICE LESS THAN 50 KW
A42: GENERAL SERVICE LESS THAN 50 KW
A44: GENERAL SERVICE 50 TO 999 KW | B44: GENERAL SERVICE 50 TO 999 KW SERVICE CLASSIFICATION | C44: Unit | D44: Rate
A45: GENERAL SERVICE 50 TO 999 KW | B45: Rate Rider for Recovery of Lost Revenue Adjustment Mechanism Variance Account (LRAMVA) - Effective until April 30, 2016 | C45: $/kW | D45: 0.0329
A46: GENERAL SERVICE 50 TO 999 KW | B46: Rate Rider for Application of Tax Change - effective until April 30, 2016 | C46: $/kW | D46: -0.0236
A47: GENERAL SERVICE 50 TO 999 KW | B47: Rate Rider for Disposition of Deferral/Variance Accounts (2015) - effective until April 30, 2016 | C47: $/kW | D47: 0.789
A48: GENERAL SERVICE 50 TO 999 KW | B48: Rate Rider for Disposition of Global Adjustment Accounts (2015) - Effective until April 30, 2016 Applicable only for Non-RPP Customers Excluding Class A Customers | C48: $/kW | D48: 0.5205
A49: GENERAL SERVICE 50 TO 999 KW | B49: Rate Rider for Disposition of Historic Global Adjustment (2015) - Effective until April 30, 2016 Applicable only for Non-RPP Customers Excluding MUSH Customers | C49: $/kW | D49: -1.5178
A50: GENERAL SERVICE 50 TO 999 KW
A51: GENERAL SERVICE 50 TO 999 KW
A52: GENERAL SERVICE 50 TO 999 KW
A53: GENERAL SERVICE 50 TO 999 KW
A54: GENERAL SERVICE 50 TO 999 KW
A56: GENERAL SERVICE INTERMEDIATE 1,000 TO 4,999 KW | B56: GENERAL SERVICE INTERMEDIATE 1,000 TO 4,999 KW SERVICE CLASSIFICATION | C56: Unit | D56: Rate
A57: GENERAL SERVICE INTERMEDIATE 1,000 TO 4,999 KW | B57: Rate Rider for Recovery of Lost Revenue Adjustment Mechanism Variance Account (LRAMVA) - Effective until April 30, 2016 | C57: $/kW | D57: 0.0301
A58: GENERAL SERVICE INTERMEDIATE 1,000 TO 4,999 KW | B58: Rate Rider for Application of Tax Change - effective until April 30, 2016 | C58: $/kW | D58: -0.0263
A59: GENERAL SERVICE INTERMEDIATE 1,000 TO 4,999 KW | B59: Rate Rider for Disposition of Deferral/Variance Accounts (2015) - effective until April 30, 2016 | C59: $/kW | D59: 0.8762
A60: GENERAL SERVICE INTERMEDIATE 1,000 TO 4,999 KW | B60: Rate Rider for Disposition of Global Adjustment Accounts (2015) - Effective until April 30, 2016 Applicable only for Non-RPP Customers Excluding Class A Customers | C60: $/kW | D60: 0.6052
A61: GENERAL SERVICE INTERMEDIATE 1,000 TO 4,999 KW | B61: Rate Rider for Disposition of Historic Global Adjustment (2015) - Effective until April 30, 2016 Applicable only for Non-RPP Customers Excluding MUSH Customers | C61: $/kW | D61: 0.6809
A62: GENERAL SERVICE INTERMEDIATE 1,000 TO 4,999 KW
A63: GENERAL SERVICE INTERMEDIATE 1,000 TO 4,999 KW
A64: GENERAL SERVICE INTERMEDIATE 1,000 TO 4,999 KW
A65: GENERAL SERVICE INTERMEDIATE 1,000 TO 4,999 KW
A66: GENERAL SERVICE INTERMEDIATE 1,000 TO 4,999 KW
A68: INTERMEDIATE WITH SELF GENERATION | B68: INTERMEDIATE WITH SELF GENERATION SERVICE CLASSIFICATION | C68: Unit | D68: Rate
A69: INTERMEDIATE WITH SELF GENERATION | B69: Rate Rider for Recovery of Lost Revenue Adjustment Mechanism Variance Account (LRAMVA) - Effective until April 30, 2016 | C69: $/kW | D69: 0.0381
A70: INTERMEDIATE WITH SELF GENERATION | B70: Rate Rider for Application of Tax Change - effective until April 30, 2016 | C70: $/kW | D70: -0.0202
A71: INTERMEDIATE WITH SELF GENERATION | B71: Rate Rider for Disposition of Deferral/Variance Accounts (2015) - effective until April 30, 2016 | C71: $/kW | D71: 0.9626
A72: INTERMEDIATE WITH SELF GENERATION | B72: Rate Rider for Disposition of Historic Global Adjustment (2015) - Effective until April 30, 2016 Applicable only for Non-RPP Customers Excluding MUSH Customers | C72: $/kW | D72: 0.3777
A73: INTERMEDIATE WITH SELF GENERATION
A74: INTERMEDIATE WITH SELF GENERATION
A75: INTERMEDIATE WITH SELF GENERATION
A76: INTERMEDIATE WITH SELF GENERATION
A77: INTERMEDIATE WITH SELF GENERATION
A78: INTERMEDIATE WITH SELF GENERATION
A80: UNMETERED SCATTERED LOAD | B80: UNMETERED SCATTERED LOAD SERVICE CLASSIFICATION | C80: Unit | D80: Rate
A81: UNMETERED SCATTERED LOAD | B81: Rate Rider for Application of Tax Change - effective until April 30, 2016 | C81: $/kWh | D81: -0.0002
A82: UNMETERED SCATTERED LOAD | B82: Rate Rider for Disposition of Deferral/Variance Accounts (2015) - effective until April 30, 2016 | C82: $/kWh | D82: 0.0022
A83: UNMETERED SCATTERED LOAD
A84: UNMETERED SCATTERED LOAD
A85: UNMETERED SCATTERED LOAD
A86: UNMETERED SCATTERED LOAD
A87: UNMETERED SCATTERED LOAD
A88: UNMETERED SCATTERED LOAD
A89: UNMETERED SCATTERED LOAD
A90: UNMETERED SCATTERED LOAD
A92: STANDBY POWER | B92: STANDBY POWER SERVICE CLASSIFICATION | C92: Unit | D92: Rate
A93: STANDBY POWER
A94: STANDBY POWER
A95: STANDBY POWER
A96: STANDBY POWER
A97: STANDBY POWER
A98: STANDBY POWER
A99: STANDBY POWER
A100: STANDBY POWER
A101: STANDBY POWER
A102: STANDBY POWER
A104: SENTINEL LIGHTING | B104: SENTINEL LIGHTING SERVICE CLASSIFICATION | C104: Unit | D104: Rate
A105: SENTINEL LIGHTING | B105: Rate Rider for Application of Tax Change - effective until April 30, 2016 | C105: $/kW | D105: -0.2555
A106: SENTINEL LIGHTING | B106: Rate Rider for Disposition of Deferral/Variance Accounts (2015) - effective until April 30, 2016 | C106: $/kW | D106: 0.7785
A107: SENTINEL LIGHTING | B107: Rate Rider for Disposition of Global Adjustment Accounts (2015) - Effective until April 30, 2016 Applicable only for Non-RPP Customers Excluding Class A Customers | C107: $/kW | D107: 0.5803
A108: SENTINEL LIGHTING | B108: Rate Rider for Disposition of Historic Global Adjustment (2015) - Effective until April 30, 2016 Applicable only for Non-RPP Customers Excluding MUSH Customers | C108: $/kW | D108: -0.0859
A109: SENTINEL LIGHTING
A110: SENTINEL LIGHTING
A111: SENTINEL LIGHTING
A112: SENTINEL LIGHTING
A113: SENTINEL LIGHTING
A114: SENTINEL LIGHTING
A116: STREET LIGHTING | B116: STREET LIGHTING SERVICE CLASSIFICATION | C116: Unit | D116: Rate
A117: STREET LIGHTING | B117: Rate Rider for Application of Tax Change - effective until April 30, 2016 | C117: $/kW | D117: -0.0738
A118: STREET LIGHTING | B118: Rate Rider for Disposition of Deferral/Variance Accounts (2015) - effective until April 30, 2016 | C118: $/kW | D118: 0.7282
A119: STREET LIGHTING | B119: Rate Rider for Disposition of Global Adjustment Accounts (2015) - Effective until April 30, 2016 Applicable only for Non-RPP Customers Excluding Class A Customers | C119: $/kW | D119: 0.5078
A120: STREET LIGHTING | B120: Rate Rider for Disposition of Historic Global Adjustment (2015) - Effective until April 30, 2016 Applicable only for Non-RPP Customers Excluding MUSH Customers | C120: $/kW | D120: 0.6555
A121: STREET LIGHTING
A122: STREET LIGHTING
A123: STREET LIGHTING
A124: STREET LIGHTING
A125: STREET LIGHTING
A126: STREET LIGHTING
A128: microFIT | B128: microFIT SERVICE CLASSIFICATION | C128: Unit | D128: Rate
A129: microFIT
A130: microFIT
A131: microFIT
A132: microFIT
A133: microFIT
A134: microFIT
A135: microFIT
A136: microFIT
A137: microFIT
A138: microFIT
B142: PROPOSED MONTHLY RATES AND CHARGES - Regulatory Component
A144: Wholesale Market Service Rate | B144: Wholesale Market Service Rate | C144: $/kWh | D144: 0.0044
A145: Rural or Remote Electricity Rate Protection Charge (RRRP) | B145: Rural or Remote Electricity Rate Protection Charge (RRRP) | C145: $/kWh | D145: 0.0013
A146: Standard Supply Service - Administrative Charge (if applicable) | B146: Standard Supply Service - Administrative Charge (if applicable) | C146: $ | D146: 0.25

Sheet 26. Hidden (hidden)
A1: RESIDENTIAL | B1: RESIDENTIAL SERVICE CLASSIFICATION | C1: Unit | D1: Rate
A2: RESIDENTIAL | B2: Rate Rider for Recovery of Lost Revenue Adjustment Mechanism Variance Account (LRAMVA) - Effective until April 30, 2016 | C2: $/kWh | D2: 0.0001
A3: RESIDENTIAL | B3: Rate Rider for Application of Tax Change - effective until April 30, 2016 | C3: $/kWh | D3: -0.0002
A4: RESIDENTIAL | B4: Rate Rider for Disposition of Deferral/Variance Accounts (2015) - effective until April 30, 2016 | C4: $/kWh | D4: 0.0022
A5: RESIDENTIAL | B5: Rate Rider for Disposition of Global Adjustment Accounts (2015) - Effective until April 30, 2016 Applicable only for Non-RPP Customers Excluding Class A Customers | C5: $/kWh | D5: 0.0015
A6: RESIDENTIAL | B6: Rate Rider for Disposition of Historic Global Adjustment (2015) - Effective until April 30, 2016 Applicable only for Non-RPP Customers Excluding MUSH Customers | C6: $/kWh | D6: 0.0017
A7: RESIDENTIAL
A8: RESIDENTIAL
A9: RESIDENTIAL
A10: RESIDENTIAL
A11: RESIDENTIAL
A13: GENERAL SERVICE LESS THAN 50 KW | B13: GENERAL SERVICE LESS THAN 50 KW SERVICE CLASSIFICATION | C13: Unit | D13: Rate
A14: GENERAL SERVICE LESS THAN 50 KW | B14: Rate Rider for Recovery of Lost Revenue Adjustment Mechanism Variance Account (LRAMVA) - Effective until April 30, 2016 | C14: $/kWh | D14: 0.0006
A15: GENERAL SERVICE LESS THAN 50 KW | B15: Rate Rider for Application of Tax Change - effective until April 30, 2016 | C15: $/kWh | D15: -0.0001
A16: GENERAL SERVICE LESS THAN 50 KW | B16: Rate Rider for Disposition of Deferral/Variance Accounts (2015) - effective until April 30, 2016 | C16: $/kWh | D16: 0.0022
A17: GENERAL SERVICE LESS THAN 50 KW | B17: Rate Rider for Disposition of Global Adjustment Accounts (2015) - Effective until April 30, 2016 Applicable only for Non-RPP Customers Excluding Class A Customers | C17: $/kWh | D17: 0.0015
A18: GENERAL SERVICE LESS THAN 50 KW | B18: Rate Rider for Disposition of Historic Global Adjustment (2015) - Effective until April 30, 2016 Applicable only for Non-RPP Customers Excluding MUSH Customers | C18: $/kWh | D18: 0.0032
A19: GENERAL SERVICE LESS THAN 50 KW
A20: GENERAL SERVICE LESS THAN 50 KW
A21: GENERAL SERVICE LESS THAN 50 KW
A22: GENERAL SERVICE LESS THAN 50 KW
A23: GENERAL SERVICE LESS THAN 50 KW
A25: GENERAL SERVICE 50 TO 999 KW | B25: GENERAL SERVICE 50 TO 999 KW SERVICE CLASSIFICATION | C25: Unit | D25: Rate
A26: GENERAL SERVICE 50 TO 999 KW | B26: Rate Rider for Recovery of Lost Revenue Adjustment Mechanism Variance Account (LRAMVA) - Effective until April 30, 2016 | C26: $/kW | D26: 0.0329
A27: GENERAL SERVICE 50 TO 999 KW | B27: Rate Rider for Application of Tax Change - effective until April 30, 2016 | C27: $/kW | D27: -0.0236
A28: GENERAL SERVICE 50 TO 999 KW | B28: Rate Rider for Disposition of Deferral/Variance Accounts (2015) - effective until April 30, 2016 | C28: $/kW | D28: 0.789
A29: GENERAL SERVICE 50 TO 999 KW | B29: Rate Rider for Disposition of Global Adjustment Accounts (2015) - Effective until April 30, 2016 Applicable only for Non-RPP Customers Excluding Class A Customers | C29: $/kW | D29: 0.5205
A30: GENERAL SERVICE 50 TO 999 KW | B30: Rate Rider for Disposition of Historic Global Adjustment (2015) - Effective until April 30, 2016 Applicable only for Non-RPP Customers Excluding MUSH Customers | C30: $/kW | D30: -1.5178
A31: GENERAL SERVICE 50 TO 999 KW
A32: GENERAL SERVICE 50 TO 999 KW
A33: GENERAL SERVICE 50 TO 999 KW
A34: GENERAL SERVICE 50 TO 999 KW
A35: GENERAL SERVICE 50 TO 999 KW
A37: GENERAL SERVICE INTERMEDIATE 1,000 TO 4,999 KW | B37: GENERAL SERVICE INTERMEDIATE 1,000 TO 4,999 KW SERVICE CLASSIFICATION | C37: Unit | D37: Rate
A38: GENERAL SERVICE INTERMEDIATE 1,000 TO 4,999 KW | B38: Rate Rider for Recovery of Lost Revenue Adjustment Mechanism Variance Account (LRAMVA) - Effective until April 30, 2016 | C38: $/kW | D38: 0.0301
A39: GENERAL SERVICE INTERMEDIATE 1,000 TO 4,999 KW | B39: Rate Rider for Application of Tax Change - effective until April 30, 2016 | C39: $/kW | D39: -0.0263
A40: GENERAL SERVICE INTERMEDIATE 1,000 TO 4,999 KW | B40: Rate Rider for Disposition of Deferral/Variance Accounts (2015) - effective until April 30, 2016 | C40: $/kW | D40: 0.8762
A41: GENERAL SERVICE INTERMEDIATE 1,000 TO 4,999 KW | B41: Rate Rider for Disposition of Global Adjustment Accounts (2015) - Effective until April 30, 2016 Applicable only for Non-RPP Customers Excluding Class A Customers | C41: $/kW | D41: 0.6052
A42: GENERAL SERVICE INTERMEDIATE 1,000 TO 4,999 KW | B42: Rate Rider for Disposition of Historic Global Adjustment (2015) - Effective until April 30, 2016 Applicable only for Non-RPP Customers Excluding MUSH Customers | C42: $/kW | D42: 0.6809
A43: GENERAL SERVICE INTERMEDIATE 1,000 TO 4,999 KW
A44: GENERAL SERVICE INTERMEDIATE 1,000 TO 4,999 KW
A45: GENERAL SERVICE INTERMEDIATE 1,000 TO 4,999 KW
A46: GENERAL SERVICE INTERMEDIATE 1,000 TO 4,999 KW
A47: GENERAL SERVICE INTERMEDIATE 1,000 TO 4,999 KW
A49: INTERMEDIATE WITH SELF GENERATION | B49: INTERMEDIATE WITH SELF GENERATION SERVICE CLASSIFICATION | C49: Unit | D49: Rate
A50: INTERMEDIATE WITH SELF GENERATION | B50: Rate Rider for Recovery of Lost Revenue Adjustment Mechanism Variance Account (LRAMVA) - Effective until April 30, 2016 | C50: $/kW | D50: 0.0381
A51: INTERMEDIATE WITH SELF GENERATION | B51: Rate Rider for Application of Tax Change - effective until April 30, 2016 | C51: $/kW | D51: -0.0202
A52: INTERMEDIATE WITH SELF GENERATION | B52: Rate Rider for Disposition of Deferral/Variance Accounts (2015) - effective until April 30, 2016 | C52: $/kW | D52: 0.9626
A53: INTERMEDIATE WITH SELF GENERATION | B53: Rate Rider for Disposition of Historic Global Adjustment (2015) - Effective until April 30, 2016 Applicable only for Non-RPP Customers Excluding MUSH Customers | C53: $/kW | D53: 0.3777
A54: INTERMEDIATE WITH SELF GENERATION
A55: INTERMEDIATE WITH SELF GENERATION
A56: INTERMEDIATE WITH SELF GENERATION
A57: INTERMEDIATE WITH SELF GENERATION
A58: INTERMEDIATE WITH SELF GENERATION
A59: INTERMEDIATE WITH SELF GENERATION
A61: UNMETERED SCATTERED LOAD | B61: UNMETERED SCATTERED LOAD SERVICE CLASSIFICATION | C61: Unit | D61: Rate
A62: UNMETERED SCATTERED LOAD | B62: Rate Rider for Application of Tax Change - effective until April 30, 2016 | C62: $/kWh | D62: -0.0002
A63: UNMETERED SCATTERED LOAD | B63: Rate Rider for Disposition of Deferral/Variance Accounts (2015) - effective until April 30, 2016 | C63: $/kWh | D63: 0.0022
A64: UNMETERED SCATTERED LOAD
A65: UNMETERED SCATTERED LOAD
A66: UNMETERED SCATTERED LOAD
A67: UNMETERED SCATTERED LOAD
A68: UNMETERED SCATTERED LOAD
A69: UNMETERED SCATTERED LOAD
A70: UNMETERED SCATTERED LOAD
A71: UNMETERED SCATTERED LOAD
A73: STANDBY POWER | B73: STANDBY POWER SERVICE CLASSIFICATION | C73: Unit | D73: Rate
A74: STANDBY POWER
A75: STANDBY POWER
A76: STANDBY POWER
A77: STANDBY POWER
A78: STANDBY POWER
A79: STANDBY POWER
A80: STANDBY POWER
A81: STANDBY POWER
A82: STANDBY POWER
A83: STANDBY POWER
A85: SENTINEL LIGHTING | B85: SENTINEL LIGHTING SERVICE CLASSIFICATION | C85: Unit | D85: Rate
A86: SENTINEL LIGHTING | B86: Rate Rider for Application of Tax Change - effective until April 30, 2016 | C86: $/kW | D86: -0.2555
A87: SENTINEL LIGHTING | B87: Rate Rider for Disposition of Deferral/Variance Accounts (2015) - effective until April 30, 2016 | C87: $/kW | D87: 0.7785
A88: SENTINEL LIGHTING | B88: Rate Rider for Disposition of Global Adjustment Accounts (2015) - Effective until April 30, 2016 Applicable only for Non-RPP Customers Excluding Class A Customers | C88: $/kW | D88: 0.5803
A89: SENTINEL LIGHTING | B89: Rate Rider for Disposition of Historic Global Adjustment (2015) - Effective until April 30, 2016 Applicable only for Non-RPP Customers Excluding MUSH Customers | C89: $/kW | D89: -0.0859
A90: SENTINEL LIGHTING
A91: SENTINEL LIGHTING
A92: SENTINEL LIGHTING
A93: SENTINEL LIGHTING
A94: SENTINEL LIGHTING
A95: SENTINEL LIGHTING
A97: STREET LIGHTING | B97: STREET LIGHTING SERVICE CLASSIFICATION | C97: Unit | D97: Rate
A98: STREET LIGHTING | B98: Rate Rider for Application of Tax Change - effective until April 30, 2016 | C98: $/kW | D98: -0.0738
A99: STREET LIGHTING | B99: Rate Rider for Disposition of Deferral/Variance Accounts (2015) - effective until April 30, 2016 | C99: $/kW | D99: 0.7282
A100: STREET LIGHTING | B100: Rate Rider for Disposition of Global Adjustment Accounts (2015) - Effective until April 30, 2016 Applicable only for Non-RPP Customers Excluding Class A Customers | C100: $/kW | D100: 0.5078
A101: STREET LIGHTING | B101: Rate Rider for Disposition of Historic Global Adjustment (2015) - Effective until April 30, 2016 Applicable only for Non-RPP Customers Excluding MUSH Customers | C101: $/kW | D101: 0.6555
A102: STREET LIGHTING
A103: STREET LIGHTING
A104: STREET LIGHTING
A105: STREET LIGHTING
A106: STREET LIGHTING
A107: STREET LIGHTING
A109: microFIT | B109: microFIT SERVICE CLASSIFICATION | C109: Unit | D109: Rate
A110: microFIT
A111: microFIT
A112: microFIT
A113: microFIT
A114: microFIT
A115: microFIT
A116: microFIT
A117: microFIT
A118: microFIT
A119: microFIT
B123: PROPOSED MONTHLY RATES AND CHARGES - Regulatory Component
A125: Wholesale Market Service Rate | B125: Wholesale Market Service Rate | C125: $/kWh | D125: 0.0044
A126: Rural or Remote Electricity Rate Protection Charge (RRRP) | B126: Rural or Remote Electricity Rate Protection Charge (RRRP) | C126: $/kWh | D126: 0.0013
A127: Standard Supply Service - Administrative Charge (if applicable) | B127: Standard Supply Service - Administrative Charge (if applicable) | C127: $ | D127: 0.25

Sheet 27. Final Tariff Schedule
A1: hidden column | B1: ='1. Information Sheet'!F14 -> Entegrus Powerlines Inc. - former Chatham-Kent Hydro Service Area | F1: hidden column | Z1: 3
A2: for rate classes | B2: TARIFF OF RATES AND CHARGES | F2: for proposed
B3: ="Effective and Implementation Date " & TEXT('1. Information Sheet'!F26, "mmmm dd, yyyy") -> Effective and Implementation Date May 01, 2015 | F3: labeliing
B5: This schedule supersedes and replaces all previously
B6: approved schedules of Rates, Charges and Loss Factors | L6: =ROUND(LEN(B6), -2) / 100 -> 1
B7: =IF(LEN('1. Information Sheet'!F18)=0, "Please enter your assigned EB# on Sheet 1", '1. Information Sheet'!F18) -> EB-2014-0064
B9: RESIDENTIAL SERVICE CLASSIFICATION
B11: This classification applies to an account taking electricity at 750 volts or less and includes: 1) All services supplied to single-family dwelling units for domestic or household purposes, 2) All multi-unit residential establishments such as apartments of 6 or less units. 3) If a service supplies a combination of residential and commercial load and wiring does not permit separate metering, the classification of this customer will be determined individually by the distributor. Further servicing details are available in the distributor’s Conditions of Service. | L11: =ROUND(LEN(B11), -2) / 100 -> 6
B13: APPLICATION
B15: The application of these rates and charges shall be in accordance with the Licence of the Distributor and any Code or Order of the Board, and amendments thereto as approved by the Board, which may be applicable to the administration of this schedule. | L15: =ROUND(LEN(B15), -2) / 100 -> 3
B17: No rates and charges for the distribution of electricity and charges to meet the costs of any work or service done or furnished for the purpose of the distribution of electricity shall be made except as permitted by this schedule, unless required by the Distributor’s Licence or a Code or Order of the Board, and amendments thereto as approved by the Board, or as specified herein. | L17: =ROUND(LEN(B17), -2) / 100 -> 4
B19: Unless specifically noted, this schedule does not contain any charges for the electricity commodity, be it under the Regulated Price Plan, a contract with a retailer or the wholesale market price, as applicable. In addition, the charges in the MONTHLY RATES AND CHARGES – Regulatory Component of this schedule do not apply to a customer that is an embedded wholesale market participant. | L19: =ROUND(LEN(B19), -2) / 100 -> 4
B21: It should be noted that this schedule does not list any charges, assessments or credits that are required by law to be invoiced by a distributor and that are not subject to Board approval, such as the Debt Retirement Charge, the Global Adjustment, the Ontario Clean Energy Benefit and the HST. | L21: =ROUND(LEN(B21), -2) / 100 -> 3
B23: MONTHLY RATES AND CHARGES - Delivery Component
A25: RESIDENTIAL | B25: Service Charge | D25: $ | E25: 19 | K25: 1_P_MSC
A26: RESIDENTIAL | B26: Rate Rider for Recovery of Smart Meter Incremental Revenue Requirement - effective until the date of the next cost of service-based rate order | D26: $ | E26: 0.28 | K26: 1_P_MSC_Rate_Rider_1
A27: RESIDENTIAL | B27: Rate Rider for Smart Metering Entity Charge - effective until October 31, 2018 | D27: $ | E27: 0.79 | K27: 1_P_SMEC
A28: RESIDENTIAL | B28: Distribution Volumetric Rate | D28: $/kWh | E28: 0.0088 | K28: 1_P_VC_1
A29: RESIDENTIAL | B29: Low Voltage Service Rate | D29: $/kWh | E29: 0.0003 | K29: 1_P_LVrate
A30: RESIDENTIAL | B30: Rate Rider for Recovery of Lost Revenue Adjustment Mechanism Variance Account (LRAMVA) - Effective until April 30, 2016 | D30: $/kWh | E30: 0.0001 | K30: 1_P_VC_Rate_Rider_kWh_1
A31: RESIDENTIAL | B31: Rate Rider for Application of Tax Change - effective until April 30, 2016 | D31: $/kWh | E31: -0.0002 | K31: 1_P_VC_Rate_Rider_kWh_2
A32: RESIDENTIAL | B32: Rate Rider for Disposition of Deferral/Variance Accounts (2015) - effective until April 30, 2016 | D32: $/kWh | E32: 0.0022 | K32: 1_P_VC_DEFVAR_kWh_1
A33: RESIDENTIAL | B33: Rate Rider for Disposition of Global Adjustment Accounts (2015) - Effective until April 30, 2016 Applicable only for Non-RPP Customers Excluding Class A Customers | D33: $/kWh | E33: 0.0015 | K33: 1_P_VC_GA_Rate_Rider_kWh_1
A34: RESIDENTIAL | B34: Rate Rider for Disposition of Historic Global Adjustment (2015) - Effective until April 30, 2016 Applicable only for Non-RPP Customers Excluding MUSH Customers | D34: $/kWh | E34: 0.0017 | K34: 1_P_VC_GA_Rate_Rider_kWh_2
A35: RESIDENTIAL | B35: Retail Transmission Rate - Network Service Rate | D35: $/kWh | E35: 0.007439718353 | K35: 1_P_RTSR_Network
A36: RESIDENTIAL | B36: Retail Transmission Rate - Line and Transformation Connection Service Rate | D36: $/kWh | E36: 0.0052977506 | K36: 1_P_RTSR_Connection
A37: RESIDENTIAL
A38: RESIDENTIAL | B38: MONTHLY RATES AND CHARGES - Regulatory Component
A39: RESIDENTIAL
A40: RESIDENTIAL | B40: Wholesale Market Service Rate | D40: $/kWh | E40: 0.0044 | K40: 1_P_WMSR
A41: RESIDENTIAL | B41: Rural or Remote Electricity Rate Protection Charge (RRRP) | D41: $/kWh | E41: 0.0013 | K41: 1_P_RRPC
A42: RESIDENTIAL | B42: Standard Supply Service - Administrative Charge (if applicable) | D42: $ | E42: 0.25 | K42: 1_P_SSS
B44: GENERAL SERVICE LESS THAN 50 KW SERVICE CLASSIFICATION
B46: This classification applies to a non residential account taking electricity at 750 volts or less whose average monthly maximum demand is less than, or is forecast to be less than, 50 kW and includes multi-unit residential establishments such as apartment buildings supplied through one service (bulk-metered). Further servicing details are available in the distributor’s Conditions of Service. | L46: =ROUND(LEN(B46), -2) / 100 -> 4
B48: APPLICATION
B50: The application of these rates and charges shall be in accordance with the Licence of the Distributor and any Code or Order of the Board, and amendments thereto as approved by the Board, which may be applicable to the administration of this schedule. | L50: =ROUND(LEN(B50), -2) / 100 -> 3
B52: No rates and charges for the distribution of electricity and charges to meet the costs of any work or service done or furnished for the purpose of the distribution of electricity shall be made except as permitted by this schedule, unless required by the Distributor’s Licence or a Code or Order of the Board, and amendments thereto as approved by the Board, or as specified herein. | L52: =ROUND(LEN(B52), -2) / 100 -> 4
B54: Unless specifically noted, this schedule does not contain any charges for the electricity commodity, be it under the Regulated Price Plan, a contract with a retailer or the wholesale market price, as applicable. In addition, the charges in the MONTHLY RATES AND CHARGES – Regulatory Component of this schedule do not apply to a customer that is an embedded wholesale market participant. | L54: =ROUND(LEN(B54), -2) / 100 -> 4
B56: It should be noted that this schedule does not list any charges, assessments or credits that are required by law to be invoiced by a distributor and that are not subject to Board approval, such as the Debt Retirement Charge, the Global Adjustment, the Ontario Clean Energy Benefit and the HST. | L56: =ROUND(LEN(B56), -2) / 100 -> 3
B58: MONTHLY RATES AND CHARGES - Delivery Component
A60: GENERAL SERVICE LESS THAN 50 KW | B60: Service Charge | D60: $ | E60: 34.87 | K60: 2_P_MSC
A61: GENERAL SERVICE LESS THAN 50 KW | B61: Rate Rider for Disposition of Residual Historical Smart Meter Costs - effective until April 30, 2016 | D61: $ | E61: 3.01 | K61: 2_P_MSC_Rate_Rider_1
A62: GENERAL SERVICE LESS THAN 50 KW | B62: Rate Rider for Recovery of Smart Meter Incremental Revenue Requirement - effective until the date of the next cost of service-based rate order | D62: $ | E62: 5.6 | K62: 2_P_MSC_Rate_Rider_2
A63: GENERAL SERVICE LESS THAN 50 KW | B63: Rate Rider for Smart Metering Entity Charge - effective until October 31, 2018 | D63: $ | E63: 0.79 | K63: 2_P_SMEC
A64: GENERAL SERVICE LESS THAN 50 KW | B64: Distribution Volumetric Rate | D64: $/kWh | E64: 0.0118 | K64: 2_P_VC_1
A65: GENERAL SERVICE LESS THAN 50 KW | B65: Low Voltage Service Rate | D65: $/kWh | E65: 0.0003 | K65: 2_P_LVrate
A66: GENERAL SERVICE LESS THAN 50 KW | B66: Rate Rider for Recovery of Lost Revenue Adjustment Mechanism Variance Account (LRAMVA) - Effective until April 30, 2016 | D66: $/kWh | E66: 0.0006 | K66: 2_P_VC_Rate_Rider_kWh_1
A67: GENERAL SERVICE LESS THAN 50 KW | B67: Rate Rider for Application of Tax Change - effective until April 30, 2016 | D67: $/kWh | E67: -0.0001 | K67: 2_P_VC_Rate_Rider_kWh_2
A68: GENERAL SERVICE LESS THAN 50 KW | B68: Rate Rider for Disposition of Deferral/Variance Accounts (2015) - effective until April 30, 2016 | D68: $/kWh | E68: 0.0022 | K68: 2_P_VC_DEFVAR_kWh_1
A69: GENERAL SERVICE LESS THAN 50 KW | B69: Rate Rider for Disposition of Global Adjustment Accounts (2015) - Effective until April 30, 2016 Applicable only for Non-RPP Customers Excluding Class A Customers | D69: $/kWh | E69: 0.0015 | K69: 2_P_VC_GA_Rate_Rider_kWh_1
A70: GENERAL SERVICE LESS THAN 50 KW | B70: Rate Rider for Disposition of Historic Global Adjustment (2015) - Effective until April 30, 2016 Applicable only for Non-RPP Customers Excluding MUSH Customers | D70: $/kWh | E70: 0.0032 | K70: 2_P_VC_GA_Rate_Rider_kWh_2
A71: GENERAL SERVICE LESS THAN 50 KW | B71: Retail Transmission Rate - Network Service Rate | D71: $/kWh | E71: 0.006522492803 | K71: 2_P_RTSR_Network
A72: GENERAL SERVICE LESS THAN 50 KW | B72: Retail Transmission Rate - Line and Transformation Connection Service Rate | D72: $/kWh | E72: 0.004674485824 | K72: 2_P_RTSR_Connection
A73: GENERAL SERVICE LESS THAN 50 KW
A74: GENERAL SERVICE LESS THAN 50 KW | B74: MONTHLY RATES AND CHARGES - Regulatory Component
A75: GENERAL SERVICE LESS THAN 50 KW
A76: GENERAL SERVICE LESS THAN 50 KW | B76: Wholesale Market Service Rate | D76: $/kWh | E76: 0.0044 | K76: 2_P_WMSR
A77: GENERAL SERVICE LESS THAN 50 KW | B77: Rural or Remote Electricity Rate Protection Charge (RRRP) | D77: $/kWh | E77: 0.0013 | K77: 2_P_RRPC
A78: GENERAL SERVICE LESS THAN 50 KW | B78: Standard Supply Service - Administrative Charge (if applicable) | D78: $ | E78: 0.25 | K78: 2_P_SSS
B80: GENERAL SERVICE 50 TO 999 KW SERVICE CLASSIFICATION
B82: This classification applies to a non residential account whose average monthly maximum demand used for billing purposes is equal to or greater than, or is forecast to be equal to or greater than, 50 kW but less than 1,000 kW. Note that for the application of the Retail Transmission Rate – Network Service Rate and the Retail Transmission Rate – Line and Transformation Connection Service Rate the following sub-classifications apply: General Service 50 to 999 kW non-interval metered General Service 50 to 999 kW interval metered Further servicing details are available in the distributor’s Conditions of Service. | L82: =ROUND(LEN(B82), -2) / 100 -> 6
B84: APPLICATION
B86: The application of these rates and charges shall be in accordance with the Licence of the Distributor and any Code or Order of the Board, and amendments thereto as approved by the Board, which may be applicable to the administration of this schedule. | L86: =ROUND(LEN(B86), -2) / 100 -> 3
B88: No rates and charges for the distribution of electricity and charges to meet the costs of any work or service done or furnished for the purpose of the distribution of electricity shall be made except as permitted by this schedule, unless required by the Distributor’s Licence or a Code or Order of the Board, and amendments thereto as approved by the Board, or as specified herein. | L88: =ROUND(LEN(B88), -2) / 100 -> 4
B90: Unless specifically noted, this schedule does not contain any charges for the electricity commodity, be it under the Regulated Price Plan, a contract with a retailer or the wholesale market price, as applicable. In addition, the charges in the MONTHLY RATES AND CHARGES – Regulatory Component of this schedule do not apply to a customer that is an embedded wholesale market participant. | L90: =ROUND(LEN(B90), -2) / 100 -> 4
B92: It should be noted that this schedule does not list any charges, assessments or credits that are required by law to be invoiced by a distributor and that are not subject to Board approval, such as the Debt Retirement Charge, the Global Adjustment, the Ontario Clean Energy Benefit and the HST. | L92: =ROUND(LEN(B92), -2) / 100 -> 3
B94: MONTHLY RATES AND CHARGES - Delivery Component
A96: GENERAL SERVICE 50 TO 999 KW | B96: Service Charge | D96: $ | E96: 122.98 | K96: 3_P_MSC
A97: GENERAL SERVICE 50 TO 999 KW | B97: Rate Rider for Recovery of Smart Meter Incremental Revenue Requirement - in effect until the effective date of the next cost of service-based rate order | D97: $ | E97: 11.31 | K97: 3_P_MSC_Rate_Rider_1
A98: GENERAL SERVICE 50 TO 999 KW | B98: Distribution Volumetric Rate | D98: $/kW | E98: 3.4861 | K98: 3_P_VC_1
A99: GENERAL SERVICE 50 TO 999 KW | B99: Low Voltage Service Rate | D99: $/kW | E99: 0.1295 | K99: 3_P_LVrate
A100: GENERAL SERVICE 50 TO 999 KW | B100: Rate Rider for Recovery of Lost Revenue Adjustment Mechanism Variance Account (LRAMVA) - Effective until April 30, 2016 | D100: $/kW | E100: 0.0329 | K100: 3_P_VC_Rate_Rider_kW_1
A101: GENERAL SERVICE 50 TO 999 KW | B101: Rate Rider for Application of Tax Change - effective until April 30, 2016 | D101: $/kW | E101: -0.0236 | K101: 3_P_VC_Rate_Rider_kW_2
A102: GENERAL SERVICE 50 TO 999 KW | B102: Rate Rider for Disposition of Deferral/Variance Accounts (2015) - effective until April 30, 2016 | D102: $/kW | E102: 0.789 | K102: 3_P_VC_DEFVAR_kW_1
A103: GENERAL SERVICE 50 TO 999 KW | B103: Rate Rider for Disposition of Global Adjustment Accounts (2015) - Effective until April 30, 2016 Applicable only for Non-RPP Customers Excluding Class A Customers | D103: $/kW | E103: 0.5205 | K103: 3_P_VC_GA_Rate_Rider_kW_1
A104: GENERAL SERVICE 50 TO 999 KW | B104: Rate Rider for Disposition of Historic Global Adjustment (2015) - Effective until April 30, 2016 Applicable only for Non-RPP Customers Excluding MUSH Customers | D104: $/kW | E104: -1.5178 | K104: 3_P_VC_GA_Rate_Rider_kW_2
A105: GENERAL SERVICE 50 TO 999 KW | B105: Retail Transmission Rate - Network Service Rate | D105: $/kW | E105: 2.746784781 | K105: 3_P_RTSR_Network
A106: GENERAL SERVICE 50 TO 999 KW | B106: Retail Transmission Rate - Line and Transformation Connection Service Rate | D106: $/kW | E106: 1.888700028 | K106: 3_P_RTSR_Connection
A107: GENERAL SERVICE 50 TO 999 KW | B107: Retail Transmission Rate - Network Service Rate - Interval Metered | D107: $/kW | E107: 2.91290452 | K107: 3_P_RTSR_Network_Interval
A108: GENERAL SERVICE 50 TO 999 KW | B108: Retail Transmission Rate - Line and Transformation Connection Service Rate - Interval Metered | D108: $/kW | E108: 2.067680896 | K108: 3_P_RTSR_Connection_Interval
A109: GENERAL SERVICE 50 TO 999 KW
A110: GENERAL SERVICE 50 TO 999 KW | B110: MONTHLY RATES AND CHARGES - Regulatory Component
A111: GENERAL SERVICE 50 TO 999 KW
A112: GENERAL SERVICE 50 TO 999 KW | B112: Wholesale Market Service Rate | D112: $/kWh | E112: 0.0044 | K112: 3_P_WMSR
A113: GENERAL SERVICE 50 TO 999 KW | B113: Rural or Remote Electricity Rate Protection Charge (RRRP) | D113: $/kWh | E113: 0.0013 | K113: 3_P_RRPC
A114: GENERAL SERVICE 50 TO 999 KW | B114: Standard Supply Service - Administrative Charge (if applicable) | D114: $ | E114: 0.25 | K114: 3_P_SSS
B116: GENERAL SERVICE INTERMEDIATE 1,000 TO 4,999 KW SERVICE CLASSIFICATION
B118: This classification applies to a non residential account whose average monthly maximum demand used for billing purposes is equal to or greater than, or is forecast to be equal to or greater than, 1,000 kW but less than 5,000 kW. This classification includes the former Time-of-Use Chatham classification customers, the former Large Use classification customers and the former General Service > 50 kW classification customers with loads between 1,000 and 4,999 kW. Further servicing details are available in the distributor’s Conditions of Service. | L118: =ROUND(LEN(B118), -2) / 100 -> 5
B120: APPLICATION
B122: The application of these rates and charges shall be in accordance with the Licence of the Distributor and any Code or Order of the Board, and amendments thereto as approved by the Board, which may be applicable to the administration of this schedule. | L122: =ROUND(LEN(B122), -2) / 100 -> 3
B124: No rates and charges for the distribution of electricity and charges to meet the costs of any work or service done or furnished for the purpose of the distribution of electricity shall be made except as permitted by this schedule, unless required by the Distributor’s Licence or a Code or Order of the Board, and amendments thereto as approved by the Board, or as specified herein. | L124: =ROUND(LEN(B124), -2) / 100 -> 4
B126: Unless specifically noted, this schedule does not contain any charges for the electricity commodity, be it under the Regulated Price Plan, a contract with a retailer or the wholesale market price, as applicable. In addition, the charges in the MONTHLY RATES AND CHARGES – Regulatory Component of this schedule do not apply to a customer that is an embedded wholesale market participant. | L126: =ROUND(LEN(B126), -2) / 100 -> 4
B128: It should be noted that this schedule does not list any charges, assessments or credits that are required by law to be invoiced by a distributor and that are not subject to Board approval, such as the Debt Retirement Charge, the Global Adjustment, the Ontario Clean Energy Benefit and the HST. | L128: =ROUND(LEN(B128), -2) / 100 -> 3
B130: MONTHLY RATES AND CHARGES - Delivery Component
A132: GENERAL SERVICE INTERMEDIATE 1,000 TO 4,999 KW | B132: Service Charge | D132: $ | E132: 99.83 | K132: 4_P_MSC
A133: GENERAL SERVICE INTERMEDIATE 1,000 TO 4,999 KW | B133: Distribution Volumetric Rate | D133: $/kW | E133: 4.7345 | K133: 4_P_VC_1
A134: GENERAL SERVICE INTERMEDIATE 1,000 TO 4,999 KW | B134: Low Voltage Service Rate | D134: $/kW | E134: 0.1416 | K134: 4_P_LVrate
A135: GENERAL SERVICE INTERMEDIATE 1,000 TO 4,999 KW | B135: Rate Rider for Recovery of Lost Revenue Adjustment Mechanism Variance Account (LRAMVA) - Effective until April 30, 2016 | D135: $/kW | E135: 0.0301 | K135: 4_P_VC_Rate_Rider_kW_1
A136: GENERAL SERVICE INTERMEDIATE 1,000 TO 4,999 KW | B136: Rate Rider for Application of Tax Change - effective until April 30, 2016 | D136: $/kW | E136: -0.0263 | K136: 4_P_VC_Rate_Rider_kW_2
A137: GENERAL SERVICE INTERMEDIATE 1,000 TO 4,999 KW | B137: Rate Rider for Disposition of Deferral/Variance Accounts (2015) - effective until April 30, 2016 | D137: $/kW | E137: 0.8762 | K137: 4_P_VC_DEFVAR_kW_1
A138: GENERAL SERVICE INTERMEDIATE 1,000 TO 4,999 KW | B138: Rate Rider for Disposition of Global Adjustment Accounts (2015) - Effective until April 30, 2016 Applicable only for Non-RPP Customers Excluding Class A Customers | D138: $/kW | E138: 0.6052 | K138: 4_P_VC_GA_Rate_Rider_kW_1
A139: GENERAL SERVICE INTERMEDIATE 1,000 TO 4,999 KW | B139: Rate Rider for Disposition of Historic Global Adjustment (2015) - Effective until April 30, 2016 Applicable only for Non-RPP Customers Excluding MUSH Customers | D139: $/kW | E139: 0.6809 | K139: 4_P_VC_GA_Rate_Rider_kW_2
A140: GENERAL SERVICE INTERMEDIATE 1,000 TO 4,999 KW | B140: Retail Transmission Rate - Network Service Rate | D140: $/kW | E140: 2.926968645 | K140: 4_P_RTSR_Network
A141: GENERAL SERVICE INTERMEDIATE 1,000 TO 4,999 KW | B141: Retail Transmission Rate - Line and Transformation Connection Service Rate | D141: $/kW | E141: 2.068511916 | K141: 4_P_RTSR_Connection
A142: GENERAL SERVICE INTERMEDIATE 1,000 TO 4,999 KW
A143: GENERAL SERVICE INTERMEDIATE 1,000 TO 4,999 KW | B143: MONTHLY RATES AND CHARGES - Regulatory Component
A144: GENERAL SERVICE INTERMEDIATE 1,000 TO 4,999 KW
A145: GENERAL SERVICE INTERMEDIATE 1,000 TO 4,999 KW | B145: Wholesale Market Service Rate | D145: $/kWh | E145: 0.0044 | K145: 4_P_WMSR
A146: GENERAL SERVICE INTERMEDIATE 1,000 TO 4,999 KW | B146: Rural or Remote Electricity Rate Protection Charge (RRRP) | D146: $/kWh | E146: 0.0013 | K146: 4_P_RRPC
A147: GENERAL SERVICE INTERMEDIATE 1,000 TO 4,999 KW | B147: Standard Supply Service - Administrative Charge (if applicable) | D147: $ | E147: 0.25 | K147: 4_P_SSS
B149: INTERMEDIATE WITH SELF GENERATION SERVICE CLASSIFICATION
B151: This classification refers to an account that has Load Displacement Generation and requires the distributor to provide backup service. Further servicing details are available in the distributor’s Conditions of Service. | L151: =ROUND(LEN(B151), -2) / 100 -> 2
B153: APPLICATION
B155: The application of these rates and charges shall be in accordance with the Licence of the Distributor and any Code or Order of the Board, and amendments thereto as approved by the Board, which may be applicable to the administration of this schedule. | L155: =ROUND(LEN(B155), -2) / 100 -> 3
B157: No rates and charges for the distribution of electricity and charges to meet the costs of any work or service done or furnished for the purpose of the distribution of electricity shall be made except as permitted by this schedule, unless required by the Distributor’s Licence or a Code or Order of the Board, and amendments thereto as approved by the Board, or as specified herein. | L157: =ROUND(LEN(B157), -2) / 100 -> 4
B159: Unless specifically noted, this schedule does not contain any charges for the electricity commodity, be it under the Regulated Price Plan, a contract with a retailer or the wholesale market price, as applicable. In addition, the charges in the MONTHLY RATES AND CHARGES – Regulatory Component of this schedule do not apply to a customer that is an embedded wholesale market participant. | L159: =ROUND(LEN(B159), -2) / 100 -> 4
B161: It should be noted that this schedule does not list any charges, assessments or credits that are required by law to be invoiced by a distributor and that are not subject to Board approval, such as the Debt Retirement Charge, the Global Adjustment, the Ontario Clean Energy Benefit and the HST. | L161: =ROUND(LEN(B161), -2) / 100 -> 3
B163: MONTHLY RATES AND CHARGES - Delivery Component
A165: INTERMEDIATE WITH SELF GENERATION | B165: Service Charge | D165: $ | E165: 1386.76 | K165: 5_P_MSC
A166: INTERMEDIATE WITH SELF GENERATION | B166: Distribution Volumetric Rate | D166: $/kW | E166: 3.4988 | K166: 5_P_VC_1
A167: INTERMEDIATE WITH SELF GENERATION | B167: Low Voltage Service Rate | D167: $/kW | E167: 0.1416 | K167: 5_P_LVrate
A168: INTERMEDIATE WITH SELF GENERATION | B168: Rate Rider for Recovery of Lost Revenue Adjustment Mechanism Variance Account (LRAMVA) - Effective until April 30, 2016 | D168: $/kW | E168: 0.0381 | K168: 5_P_VC_Rate_Rider_kW_1
A169: INTERMEDIATE WITH SELF GENERATION | B169: Rate Rider for Application of Tax Change - effective until April 30, 2016 | D169: $/kW | E169: -0.0202 | K169: 5_P_VC_Rate_Rider_kW_2
A170: INTERMEDIATE WITH SELF GENERATION | B170: Rate Rider for Disposition of Deferral/Variance Accounts (2015) - effective until April 30, 2016 | D170: $/kW | E170: 0.9626 | K170: 5_P_VC_DEFVAR_kW_1
A171: INTERMEDIATE WITH SELF GENERATION | B171: Rate Rider for Disposition of Historic Global Adjustment (2015) - Effective until April 30, 2016 Applicable only for Non-RPP Customers Excluding MUSH Customers | D171: $/kW | E171: 0.3777 | K171: 5_P_VC_GA_Rate_Rider_kW_1
A172: INTERMEDIATE WITH SELF GENERATION | B172: Retail Transmission Rate - Network Service Rate | D172: $/kW | E172: 2.926968645 | K172: 5_P_RTSR_Network
A173: INTERMEDIATE WITH SELF GENERATION | B173: Retail Transmission Rate - Line and Transformation Connection Service Rate | D173: $/kW | E173: 2.068511916 | K173: 5_P_RTSR_Connection
A174: INTERMEDIATE WITH SELF GENERATION
A175: INTERMEDIATE WITH SELF GENERATION | B175: MONTHLY RATES AND CHARGES - Regulatory Component
A176: INTERMEDIATE WITH SELF GENERATION
A177: INTERMEDIATE WITH SELF GENERATION | B177: Wholesale Market Service Rate | D177: $/kWh | E177: 0.0044 | K177: 5_P_WMSR
A178: INTERMEDIATE WITH SELF GENERATION | B178: Rural or Remote Electricity Rate Protection Charge (RRRP) | D178: $/kWh | E178: 0.0013 | K178: 5_P_RRPC
A179: INTERMEDIATE WITH SELF GENERATION | B179: Standard Supply Service - Administrative Charge (if applicable) | D179: $ | E179: 0.25 | K179: 5_P_SSS
B181: UNMETERED SCATTERED LOAD SERVICE CLASSIFICATION
B183: This classification applies to an account taking electricity at 750 volts or less whose average monthly maximum demand is less than, or is forecast to be less than, 50 kW and the consumption is unmetered. Such connections include cable TV power packs, bus shelters, telephone booths, traffic lights, railway crossings, etc. The level of the consumption will be agreed to by the distributor and the customer, based on detailed manufacturer information/ documentation with regard to electrical consumption of the unmetered load or periodic monitoring of actual consumption. Further servicing details are available in the distributor’s Conditions of Service. | L183: =ROUND(LEN(B183), -2) / 100 -> 7
B185: APPLICATION
B187: The application of these rates and charges shall be in accordance with the Licence of the Distributor and any Code or Order of the Board, and amendments thereto as approved by the Board, which may be applicable to the administration of this schedule. | L187: =ROUND(LEN(B187), -2) / 100 -> 3
B189: No rates and charges for the distribution of electricity and charges to meet the costs of any work or service done or furnished for the purpose of the distribution of electricity shall be made except as permitted by this schedule, unless required by the Distributor’s Licence or a Code or Order of the Board, and amendments thereto as approved by the Board, or as specified herein. | L189: =ROUND(LEN(B189), -2) / 100 -> 4
B191: Unless specifically noted, this schedule does not contain any charges for the electricity commodity, be it under the Regulated Price Plan, a contract with a retailer or the wholesale market price, as applicable. In addition, the charges in the MONTHLY RATES AND CHARGES – Regulatory Component of this schedule do not apply to a customer that is an embedded wholesale market participant. | L191: =ROUND(LEN(B191), -2) / 100 -> 4
B193: It should be noted that this schedule does not list any charges, assessments or credits that are required by law to be invoiced by a distributor and that are not subject to Board approval, such as the Debt Retirement Charge, the Global Adjustment, the Ontario Clean Energy Benefit and the HST. | L193: =ROUND(LEN(B193), -2) / 100 -> 3
B195: MONTHLY RATES AND CHARGES - Delivery Component
A197: UNMETERED SCATTERED LOAD | B197: Service Charge (per connection) | D197: $ | E197: 11.07 | K197: 6_P_MSC
A198: UNMETERED SCATTERED LOAD | B198: Distribution Volumetric Rate | D198: $/kWh | E198: 0.0008 | K198: 6_P_VC_1
A199: UNMETERED SCATTERED LOAD | B199: Low Voltage Service Rate | D199: $/kWh | E199: 0.0003 | K199: 6_P_LVrate
A200: UNMETERED SCATTERED LOAD | B200: Rate Rider for Application of Tax Change - effective until April 30, 2016 | D200: $/kWh | E200: -0.0002 | K200: 6_P_VC_Rate_Rider_kWh_1
A201: UNMETERED SCATTERED LOAD | B201: Rate Rider for Disposition of Deferral/Variance Accounts (2015) - effective until April 30, 2016 | D201: $/kWh | E201: 0.0022 | K201: 6_P_VC_DEFVAR_kWh_1
A202: UNMETERED SCATTERED LOAD | B202: Retail Transmission Rate - Network Service Rate | D202: $/kWh | E202: 0.006522492803 | K202: 6_P_RTSR_Network
A203: UNMETERED SCATTERED LOAD | B203: Retail Transmission Rate - Line and Transformation Connection Service Rate | D203: $/kWh | E203: 0.004674485824 | K203: 6_P_RTSR_Connection
A204: UNMETERED SCATTERED LOAD
A205: UNMETERED SCATTERED LOAD | B205: MONTHLY RATES AND CHARGES - Regulatory Component
A206: UNMETERED SCATTERED LOAD
A207: UNMETERED SCATTERED LOAD | B207: Wholesale Market Service Rate | D207: $/kWh | E207: 0.0044 | K207: 6_P_WMSR
A208: UNMETERED SCATTERED LOAD | B208: Rural or Remote Electricity Rate Protection Charge (RRRP) | D208: $/kWh | E208: 0.0013 | K208: 6_P_RRPC
A209: UNMETERED SCATTERED LOAD | B209: Standard Supply Service - Administrative Charge (if applicable) | D209: $ | E209: 0.25 | K209: 6_P_SSS
B211: STANDBY POWER SERVICE CLASSIFICATION
B213: This classification refers to an account that has Load Displacement Generation and requires the distributor to provide backup service. Further servicing details are available in the distributor’s Conditions of Service. | L213: =ROUND(LEN(B213), -2) / 100 -> 2
B215: APPLICATION
B217: The application of these rates and charges shall be in accordance with the Licence of the Distributor and any Code or Order of the Board, and amendments thereto as approved by the Board, which may be applicable to the administration of this schedule. | L217: =ROUND(LEN(B217), -2) / 100 -> 3
B219: No rates and charges for the distribution of electricity and charges to meet the costs of any work or service done or furnished for the purpose of the distribution of electricity shall be made except as permitted by this schedule, unless required by the Distributor’s Licence or a Code or Order of the Board, and amendments thereto as approved by the Board, or as specified herein. | L219: =ROUND(LEN(B219), -2) / 100 -> 4
B221: Unless specifically noted, this schedule does not contain any charges for the electricity commodity, be it under the Regulated Price Plan, a contract with a retailer or the wholesale market price, as applicable. | L221: =ROUND(LEN(B221), -2) / 100 -> 2
B223: It should be noted that this schedule does not list any charges, assessments or credits that are required by law to be invoiced by a distributor and that are not subject to Board approval, such as the Debt Retirement Charge, the Global Adjustment, the Ontario Clean Energy Benefit and the HST. | L223: =ROUND(LEN(B223), -2) / 100 -> 3
B225: MONTHLY RATES AND CHARGES - Delivery Component
A227: STANDBY POWER | B227: Distribution Volumetric Rate | D227: $/kW | E227: 1.7552 | K227: 7_P_VC_1
A228: STANDBY POWER
A229: STANDBY POWER | B229: MONTHLY RATES AND CHARGES - Regulatory Component
A230: STANDBY POWER
A231: STANDBY POWER | B231: Wholesale Market Service Rate | D231: $/kWh | E231: 0.0044 | K231: 7_P_WMSR
A232: STANDBY POWER | B232: Rural or Remote Electricity Rate Protection Charge (RRRP) | D232: $/kWh | E232: 0.0013 | K232: 7_P_RRPC
A233: STANDBY POWER | B233: Standard Supply Service - Administrative Charge (if applicable) | D233: $ | E233: 0.25 | K233: 7_P_SSS
B235: SENTINEL LIGHTING SERVICE CLASSIFICATION
B237: This classification refers to accounts that are an unmetered lighting load supplied to a sentinel light. Further servicing details are available in the distributor’s Conditions of Service. | L237: =ROUND(LEN(B237), -2) / 100 -> 2
B239: APPLICATION
B241: The application of these rates and charges shall be in accordance with the Licence of the Distributor and any Code or Order of the Board, and amendments thereto as approved by the Board, which may be applicable to the administration of this schedule. | L241: =ROUND(LEN(B241), -2) / 100 -> 3
B243: No rates and charges for the distribution of electricity and charges to meet the costs of any work or service done or furnished for the purpose of the distribution of electricity shall be made except as permitted by this schedule, unless required by the Distributor’s Licence or a Code or Order of the Board, and amendments thereto as approved by the Board, or as specified herein. | L243: =ROUND(LEN(B243), -2) / 100 -> 4
B245: Unless specifically noted, this schedule does not contain any charges for the electricity commodity, be it under the Regulated Price Plan, a contract with a retailer or the wholesale market price, as applicable. In addition, the charges in the MONTHLY RATES AND CHARGES – Regulatory Component of this schedule do not apply to a customer that is an embedded wholesale market participant. | L245: =ROUND(LEN(B245), -2) / 100 -> 4
B247: It should be noted that this schedule does not list any charges, assessments or credits that are required by law to be invoiced by a distributor and that are not subject to Board approval, such as the Debt Retirement Charge, the Global Adjustment, the Ontario Clean Energy Benefit and the HST. | L247: =ROUND(LEN(B247), -2) / 100 -> 3
B249: MONTHLY RATES AND CHARGES - Delivery Component
A251: SENTINEL LIGHTING | B251: Service Charge | D251: $ | E251: 8.72 | K251: 8_P_MSC
A252: SENTINEL LIGHTING | B252: Distribution Volumetric Rate | D252: $/kW | E252: 0.6192 | K252: 8_P_VC_1
A253: SENTINEL LIGHTING | B253: Low Voltage Service Charge | D253: $/kW | E253: 0.0924 | K253: 8_P_LVrate
A254: SENTINEL LIGHTING | B254: Rate Rider for Application of Tax Change - effective until April 30, 2016 | D254: $/kW | E254: -0.2555 | K254: 8_P_VC_Rate_Rider_kW_1
A255: SENTINEL LIGHTING | B255: Rate Rider for Disposition of Deferral/Variance Accounts (2015) - effective until April 30, 2016 | D255: $/kW | E255: 0.7785 | K255: 8_P_VC_DEFVAR_kW_1
A256: SENTINEL LIGHTING | B256: Rate Rider for Disposition of Global Adjustment Accounts (2015) - Effective until April 30, 2016 Applicable only for Non-RPP Customers Excluding Class A Customers | D256: $/kW | E256: 0.5803 | K256: 8_P_VC_GA_Rate_Rider_kW_1
A257: SENTINEL LIGHTING | B257: Rate Rider for Disposition of Historic Global Adjustment (2015) - Effective until April 30, 2016 Applicable only for Non-RPP Customers Excluding MUSH Customers | D257: $/kW | E257: -0.0859 | K257: 8_P_VC_GA_Rate_Rider_kW_2
A258: SENTINEL LIGHTING | B258: Retail Transmission Rate - Network Service Rate | D258: $/kW | E258: 2.086688127 | K258: 8_P_RTSR_Network
A259: SENTINEL LIGHTING | B259: Retail Transmission Rate - Line and Transformation Connection Service Rate | D259: $/kW | E259: 1.488979551 | K259: 8_P_RTSR_Connection
A260: SENTINEL LIGHTING
A261: SENTINEL LIGHTING | B261: MONTHLY RATES AND CHARGES - Regulatory Component
A262: SENTINEL LIGHTING
A263: SENTINEL LIGHTING | B263: Wholesale Market Service Rate | D263: $/kWh | E263: 0.0044 | K263: 8_P_WMSR
A264: SENTINEL LIGHTING | B264: Rural or Remote Electricity Rate Protection Charge (RRRP) | D264: $/kWh | E264: 0.0013 | K264: 8_P_RRPC
A265: SENTINEL LIGHTING | B265: Standard Supply Service - Administrative Charge (if applicable) | D265: $ | E265: 0.25 | K265: 8_P_SSS
B267: STREET LIGHTING SERVICE CLASSIFICATION
B269: This classification applies to an account for roadway lighting with a Municipality, Regional Municipality, Ministry of Transportation and private roadway lighting, controlled by photo cells. The consumption for these customers will be based on the calculated connected load times the required lighting times established in the approved OEB street lighting load shape template. Further servicing details are available in the distributor’s Conditions of Service. | L269: =ROUND(LEN(B269), -2) / 100 -> 5
B271: APPLICATION
B273: The application of these rates and charges shall be in accordance with the Licence of the Distributor and any Code or Order of the Board, and amendments thereto as approved by the Board, which may be applicable to the administration of this schedule. | L273: =ROUND(LEN(B273), -2) / 100 -> 3
B275: No rates and charges for the distribution of electricity and charges to meet the costs of any work or service done or furnished for the purpose of the distribution of electricity shall be made except as permitted by this schedule, unless required by the Distributor’s Licence or a Code or Order of the Board, and amendments thereto as approved by the Board, or as specified herein. | L275: =ROUND(LEN(B275), -2) / 100 -> 4
B277: Unless specifically noted, this schedule does not contain any charges for the electricity commodity, be it under the Regulated Price Plan, a contract with a retailer or the wholesale market price, as applicable. In addition, the charges in the MONTHLY RATES AND CHARGES – Regulatory Component of this schedule do not apply to a customer that is an embedded wholesale market participant. | L277: =ROUND(LEN(B277), -2) / 100 -> 4
B279: It should be noted that this schedule does not list any charges, assessments or credits that are required by law to be invoiced by a distributor and that are not subject to Board approval, such as the Debt Retirement Charge, the Global Adjustment, the Ontario Clean Energy Benefit and the HST. | L279: =ROUND(LEN(B279), -2) / 100 -> 3
B281: MONTHLY RATES AND CHARGES - Delivery Component
... 74 more rows

Sheet 14. Bill Impacts (hidden)
Z1: =MATCH(A13, '3. Rate Class Selection'!B19:B40,0) -> 1 | AA1: =VLOOKUP(A13, lists!AO:AP,2,0) -> kWh
A11: Choose a Rate Class from the drop-down menu below and click UPDATE. For Street Lighting and USL classes, please ensure that the number of customers is manually entered into cells B30 and B31. Click the UPDATE button to refresh the sheet.
A13: RESIDENTIAL | F13: =IF(ISERROR(SEARCH("MicroFit",A13,1))=FALSE,"Bill impact presentation for this class does not exist.", "") -> 
A15: Consumption | B15: =730*D15*B17 -> 3650000 | C15: kWh | D15: 10000 | E15: =IF(AA1 = "kWh", "", "kW") -> 
A16: RPP Tier One | B16: 600 | C16: kWh | E16: 1
A17: Load Factor | B17: 0.5
A18: Loss Factor | B18: 1
B21: CURRENT ESTIMATED BILL | E21: PROPOSED ESTIMATED BILL
B22: Volume | C22: Current Rate ($) | D22: Current Charge ($) | E22: Volume | F22: Proposed Rate ($) | G22: Proposed Charge ($) | I22: Change ($) | J22: Change (%) | K22: % of Total RPP Bill | L22: % of Total TOU Bill
A23: Energy First Tier (kWh) | B23: 3650000 | C23: 0.075 | D23: =B23*C23 -> 273750 | E23: =B23 -> 3650000 | F23: =C23 -> 0.075 | G23: =E23*F23 -> 273750 | I23: =G23-D23 -> 0 | J23: =I23/D23 -> 0 | K23: =G23/G48 -> 0.8646078577
A24: Energy Second Tier (kWh) | B24: 0 | C24: 0.088 | D24: =B24*C24 -> 0 | E24: =B24 -> 0 | F24: =C24 -> 0.088 | G24: =E24*F24 -> 0 | I24: =G24-D24 -> 0 | J24: 0 | K24: =G24/G48 -> 0
A26: TOU - Off Peak | B26: =0.64*$B$15*$B$18 -> 2336000 | C26: 0.065 | D26: =C26*B26 -> 151840 | E26: =B26 -> 2336000 | F26: =C26 -> 0.065 | G26: =F26*E26 -> 151840 | I26: =G26-D26 -> 0 | J26: =I26/D26 -> 0 | L26: =G26/G54 -> 0.449726096
A27: TOU - Mid Peak | B27: =0.18*$B$15*$B$18 -> 657000 | C27: 0.1 | D27: =C27*B27 -> 65700 | E27: =B27 -> 657000 | F27: =C27 -> 0.1 | G27: =F27*E27 -> 65700 | H27: =G27*F27 -> 6570 | I27: =G27-D27 -> 0 | J27: =I27/D27 -> 0 | L27: =G27/G54 -> 0.1945930223
A28: TOU - On Peak | B28: =0.18*$B$15*$B$18 -> 657000 | C28: 0.117 | D28: 76869 | F28: =C28 -> 0.117 | G28: =F28*E28 -> 0 | H28: =G28*F28 -> 0 | J28: =I28/D28 -> 0 | L28: =G28/G54 -> 0
A30: Service Charge | B30: 1 | D30: 0 | G30: =F30*E30 -> 0 | H30: 0 | J30: 0 | K30: 0 | L30: 0
A31: Service Charge Rate Rider(s) | B31: 1 | C31: 0 | D31: 0 | F31: 0 | G31: 0 | H31: 0 | J31: 0 | K31: 0 | L31: 0
A32: Distribution Volumetric Rate | B32: 10000 | D32: 0 | E32: =B32 -> 10000 | G32: 0 | H32: 0 | I32: =G32-D32 -> 0 | J32: 0 | K32: 0 | L32: 0
A33: Low Voltage Volumetric Rate | B33: 10000 | D33: 0 | G33: 0 | H33: 0 | J33: 0 | K33: 0 | L33: 0
A34: Distribution Volumetric Rate Rider(s) | B34: 10000 | C34: 0 | D34: 0 | F34: 1.2025 | G34: 0 | H34: 0 | J34: 0 | K34: =G34/G48 -> 0 | L34: =G34/G54 -> 0
A35: Total: Distribution | D35: =ROUND(SUM(D30:D34),2) -> 0 | G35: =ROUND(SUM(G30:G34),2) -> 0 | J35: 0 | K35: =G35/G48 -> 0 | L35: =G35/G54 -> 0
A36: Total: Retail Transmission
A37: Sub-Total: Delivery (Distribution and Retail Transmission) | D37: =SUM(D36,D35) -> 0 | G37: =SUM(G36,G35) -> 0 | J37: 0 | K37: =G37/G48 -> 0 | L37: =G37/G54 -> 0
A38: Wholesale Market Service Rate | B38: 3650000 | C38: 0 | D38: =B38*C38 -> 0 | F38: =C38 -> 0 | G38: =E38*F38 -> 0 | J38: 0 | K38: 0 | L38: 0
A39: Rural Rate Protection Charge | B39: 3650000 | C39: 0 | D39: =B39*C39 -> 0 | E39: 3650000 | F39: 0 | G39: =E39*F39 -> 0 | I39: =G39-D39 -> 0 | J39: 0 | K39: 0 | L39: 0
A40: Standard Supply Service – Administration Charge (if applicable) | B40: 1 | C40: 0 | D40: =B40*C40 -> 0 | E40: 1 | F40: 0 | G40: =E40*F40 -> 0 | I40: =G40-D40 -> 0 | J40: 0 | K40: 0 | L40: 0
A41: Sub-Total: Regulatory | D41: =SUM(D38:D40) -> 0 | G41: =SUM(G38:H40) -> 0 | I41: =G41-D41 -> 0 | J41: 0 | K41: 0 | L41: 0
A42: Debt Retirement Charge (DRC) | B42: 3650000 | C42: 0.007 | D42: =B42*C42 -> 25550 | E42: =B42 -> 3650000 | F42: =C42 -> 0.007 | G42: =E42*F42 -> 25550 | I42: =G42-D42 -> 0 | J42: =I42/D42 -> 0 | K42: =G42/G48 -> 0.08069673339 | L42: =G42/G54 -> 0.07567506422
A44: Total Bill on RPP (before taxes) | D44: 299300 | G44: 311325 | I44: =G44-D44 -> 12025 | J44: =I44/D44 -> 0.04017707985 | K44: =G44/G48 -> 0.9832841691
A45: HST | C45: 0.13 | D45: =C45*D44 -> 38909 | F45: =C45 -> 0.13 | G45: =F45*G44 -> 40472.25 | I45: =G45-D45 -> 1563.25 | J45: =I45/D45 -> 0.04017707985 | K45: =G45/G48 -> 0.127826942
A46: Total Bill (including HST) | D46: =D45+D44 -> 338209 | G46: =G45+G44 -> 351797.25 | I46: =G46-D46 -> 13588.25 | J46: =I46/D46 -> 0.04017707985 | K46: =G46/G48 -> 1.111111111
A47: Ontario Clean Energy Benefit (OCEB) | C47: -0.1 | D47: =-0.1*D46 -> -33820.9 | F47: =C47 -> -0.1 | G47: =-0.1*G46 -> -35179.725 | I47: =G47-D47 -> -1358.825 | J47: =I47/D47 -> 0.04017707985 | K47: =G47/G48 -> -0.1111111111
A48: Total Bill on RPP (including OCEB) | D48: =D46+D47 -> 304388.1 | G48: =G46+G47 -> 316617.525 | I48: =G48-D48 -> 12229.425 | J48: =I48/D48 -> 0.04017707985 | K48: =G48/G48 -> 1
A50: Total Bill on TOU (before taxes) | D50: 319959 | G50: 331984 | I50: =G50-D50 -> 12025 | J50: =I50/D50 -> 0.03758294031 | L50: =G50/G54 -> 0.9832841691
A51: HST | C51: 0.13 | D51: =C51*D50 -> 41594.67 | F51: =C51 -> 0.13 | G51: =F51*G50 -> 43157.92 | I51: =G51-D51 -> 1563.25 | J51: =I51/D51 -> 0.03758294031 | L51: =G51/G54 -> 0.127826942
A52: Total Bill (including HST) | D52: =D51+D50 -> 361553.67 | G52: =G51+G50 -> 375141.92 | I52: =G52-D52 -> 13588.25 | J52: =I52/D52 -> 0.03758294031 | L52: =G52/G54 -> 1.111111111
A53: Ontario Clean Energy Benefit (OCEB) | C53: -0.1 | D53: =-0.1*D52 -> -36155.367 | F53: =C53 -> -0.1 | G53: =-0.1*G52 -> -37514.192 | I53: =G53-D53 -> -1358.825 | J53: =I53/D53 -> 0.03758294031 | L53: =G53/G54 -> -0.1111111111
A54: Total Bill on TOU (including OCEB) | D54: =D52+D53 -> 325398.303 | G54: =G52+G53 -> 337627.728 | I54: =G54-D54 -> 12229.425 | J54: =I54/D54 -> 0.03758294031 | L54: =G54/G54 -> 1
A57: Applicants must provide bill impacts for residential at 800 kWh and GS<50kW at 2000 kWh. In addition, their filing should cover the range that is relevant to their service territory, class by class. A general guideline of consumption levels follows: Residential (kWh) - 100, 250, 500, 800, 1000, 1500, 2000 GS<50kW (kWh) - 1000, 2000, 5000, 10000, 15000 GS>50kW (kW) 100, 500, 1000 Large User - range appropriate for utility Street/Sentinel Lighting Classes and USL - 150 kWh and 1 kW, range appropriate for utility.

Sheet 28. Bill Impacts
S1: 1 | Z1: =MATCH(C14, '3. Rate Class Selection'!B19:B40,0) -> 4 | AA1: =VLOOKUP(C14, lists!AO:AP,2,0) -> kW
A14: Rate Class | C14: GENERAL SERVICE INTERMEDIATE 1,000 TO 4,999 KW
A16: Loss Factor | E16: 1.0428
A18: Consumption | C18: kWh | E18: 1825000
A20: If Billed on a kW basis:
A21: Demand | C21: kW | E21: 2500
E25: Current Board-Approved | I25: Proposed | M25: Impact
E26: Rate | F26: Volume | G26: Charge | I26: Rate | J26: Volume | K26: Charge | M26: $ Change | N26: % Change
E27: ($) | G27: ($) | I27: ($) | K27: ($)
A28: Monthly Service Charge | E28: 98.31 | F28: 1 | G28: =F28*E28 -> 98.31 | I28: 99.83 | J28: 1 | K28: =J28*I28 -> 99.83 | M28: =K28-G28 -> 1.52 | N28: =IF((G28)=0,"",(M28/G28)) -> 0.0154612959
A29: Distribution Volumetric Rate | E29: 4.6622 | F29: 2500 | G29: =F29*E29 -> 11655.5 | I29: 4.7345 | J29: =F29 -> 2500 | K29: =J29*I29 -> 11836.25 | M29: 180.75 | N29: 0.01550770023
A30: Fixed Rate Riders | E30: 0 | F30: 1 | G30: =F30*E30 -> 0 | I30: 0 | J30: 1 | K30: =J30*I30 -> 0 | M30: 0
A31: Volumetric Rate Riders | E31: -0.0025 | F31: 2500 | G31: =F31*E31 -> -6.25 | I31: 0.0038 | J31: =F31 -> 2500 | K31: =J31*I31 -> 9.5 | M31: 15.75 | N31: -2.52
A32: Sub-Total A (excluding pass through) | G32: =SUM(G28:G31) -> 11747.56 | K32: =SUM(K28:K31) -> 11945.58 | M32: 198.02 | N32: 0.01685626632
A33: Line Losses on Cost of Power | E33: =E45*0.64+E46*0.18+E47*0.18 -> 0.08392 | F33: =E18*(E16-1) -> 78110 | G33: =E33*F33 -> 6554.9912 | I33: =I45*0.64+I46*0.18+I47*0.18 -> 0.08392 | J33: =F33 -> 78110 | K33: =I33*J33 -> 6554.9912 | M33: 0 | N33: 0
A34: Total Deferral/Variance Account Rate Riders | E34: 0 | F34: 2500 | G34: =F34*E34 -> 0 | I34: 2.1623 | J34: =F34 -> 2500 | K34: =J34*I34 -> 5405.75 | M34: 5405.75
A35: Low Voltage Service Charge | E35: 0.1416 | F35: 2500 | G35: =F35*E35 -> 354 | I35: 0.1416 | J35: =F35 -> 2500 | K35: =J35*I35 -> 354 | M35: 0 | N35: 0
A36: Smart Meter Entity Charge | F36: 1 | G36: =F36*E36 -> 0 | J36: =F36 -> 1 | K36: =J36*I36 -> 0 | M36: 0
A37: Sub-Total B - Distribution (includes Sub-Total A) | G37: =SUM(G32:G36) -> 18656.5512 | K37: =SUM(K32:K36) -> 24260.3212 | M37: =K37-G37 -> 5603.77 | N37: =IF((G37)=0,"",(M37/G37)) -> 0.3003647319
A38: RTSR - Network | E38: 2.872 | F38: 2500 | G38: =F38*E38 -> 7180 | I38: 2.927 | J38: =F38 -> 2500 | K38: =J38*I38 -> 7317.5 | M38: 137.5 | N38: 0.01915041783
A39: RTSR - Connection and/or Line and Transformation Connection | E39: 1.9913 | F39: 2500 | G39: =F39*E39 -> 4978.25 | I39: 2.0685 | J39: =F39 -> 2500 | K39: =J39*I39 -> 5171.25 | M39: 193 | N39: 0.0387686436
A40: Sub-Total C - Delivery (including Sub-Total B) | G40: =SUM(G37:G39) -> 30814.8012 | K40: =SUM(K37:K39) -> 36749.0712 | M40: 5934.27 | N40: 0.1925785586
A41: Wholesale Market Service Charge (WMSC) | E41: 0.0044 | F41: =E18*E16 -> 1903110 | G41: =F41*E41 -> 8373.684 | I41: 0.0044 | J41: =E18*E16 -> 1903110 | K41: =J41*I41 -> 8373.684 | M41: 0 | N41: 0
A42: Rural and Remote Rate Protection (RRRP) | E42: 0.0013 | F42: =E18*E16 -> 1903110 | G42: 2474.043 | I42: 0.0013 | J42: =E18*E16 -> 1903110 | K42: 2474.043 | M42: 0 | N42: 0
A43: Standard Supply Service Charge | E43: 0.25 | F43: 1 | G43: 0.25 | I43: 0.25 | J43: 1 | K43: 0.25 | M43: 0 | N43: 0
A44: Debt Retirement Charge (DRC) | E44: 0.007 | F44: =E18 -> 1825000 | G44: 12775 | I44: 0.007 | J44: =E18 -> 1825000 | K44: 12775 | M44: 0 | N44: 0
A45: TOU - Off Peak | E45: 0.067 | F45: 1168000 | G45: 78256 | I45: 0.067 | J45: =F45 -> 1168000 | K45: 78256 | M45: 0 | N45: 0
A46: TOU - Mid Peak | E46: 0.104 | F46: 328500 | G46: 34164 | I46: 0.104 | J46: =F46 -> 328500 | K46: 34164 | M46: 0 | N46: 0
A47: TOU - On Peak | E47: 0.124 | F47: 328500 | G47: 40734 | I47: 0.124 | J47: =F47 -> 328500 | K47: 40734 | M47: 0 | N47: 0
A49: Total Bill on TOU (before Taxes) | G49: =SUM(G40:G44,G45:G47) -> 207591.7782 | K49: =SUM(K40:K44,K45:K47) -> 213526.0482 | M49: =K49-G49 -> 5934.27 | N49: =IF((G49)=0,"",(M49/G49)) -> 0.02858624774
A50: HST | E50: 0.13 | G50: =G49*E50 -> 26986.93117 | I50: 0.13 | K50: =K49*I50 -> 27758.38627 | M50: 771.4551 | N50: 0.02858624774
A51: Total Bill (including HST) | G51: =G49+G50 -> 234578.7094 | K51: =K49+K50 -> 241284.4345 | M51: 6705.7251 | N51: 0.02858624774
A52: Ontario Clean Energy Benefit 1 | G52: =ROUND(-G51*10%,2) -> -23457.87 | K52: =ROUND(-K51*10%,2) -> -24128.44 | M52: -670.57 | N52: 0.02858614188
A53: Total Bill on TOU (including OCEB) | G53: =G51+G52 -> 211120.8394 | K53: =K51+K52 -> 217155.9945 | M53: 6035.1551 | N53: 0.0285862595
A58: Note: For distributors who have a majority of customers on Tiered pricing, please provide a separate bill impact for such customers.

Sheet lists (hidden)
A1: DISTRIBUTED GENERATION [DGEN] | B1: Embedded Distributor | C1: =COUNTA(B1:B17) -> 4 | I1: A Standby Service Charge will be applied for a month where standby power is not provided. The applicable rate is the approved Distribution Volumetric Rate of the applicable service class and is applied to gross metered demand or contracted amount, whichever is greater. A monthly administration charge of $200, for simple metering arrangements, or $500, for complex metering arrangements, will also be applied. | L1: Loss Factors | N1: Units | O1: Units1 | P1: Units2 | Z1: Account History | AA1: Account set up charge/change of occupancy charge (plus credit agency costs if applicable) | AB1: Total Loss Factor – Embedded Distributor – Hydro One Networks Inc. | AL1: Algoma Power Inc. | AM1: Algoma Power Inc. | AO1: DISTRIBUTED GENERATION [DGEN] | AP1: kW | AT1: Sub-Total: Delivery (Distribution and Retail Transmission)
A2: EMBEDDED DISTRIBUTOR | B2: General Service 3,000 to 4,999 kW | I2: Distribution Volumetric Rate | L2: Total Loss Factor – Primary Metered Customer | N2: $ | O2: $/kWh | P2: $ | Z2: Account set up charge/change of occupancy charge | AA2: Administrative Billing Charge | AB2: Total Loss Factor – Primary Metered Customer | AL2: Atikokan Hydro Inc. | AM2: Atikokan Hydro Inc. | AO2: EMBEDDED DISTRIBUTOR | AP2: kW | AT2: Wholesale Market Service Rate | AW2: =AU2*AV2 -> 0 | AX2: =AU2 -> 0 | AY2: 0 | AZ2: =AX2*AY2 -> 0 | BB2: =AZ2-AW2 -> 0 | BC2: =BB2/AW2 -> 
A3: EMBEDDED DISTRIBUTOR | B3: General Service 1,000 to 4,999 kW | I3: Distribution Volumetric Rate - $/kW of contracted amount | L3: Total Loss Factor – Primary Metered Customer < 5,000 kW | N3: $/kWh | O3: $/kW | P3: % | W3: MSC | Z3: Account set up charge/change of occupancy charge (plus credit agency costs if applicable – Residential) | AA3: Bell Canada Pole Rentals | AB3: Total Loss Factor – Primary Metered Customer < 5,000 kW | AL3: Bluewater Power Distribution Corporation | AM3: Bluewater Power Distribution Corporation | AO3: EMBEDDED DISTRIBUTOR | AP3: kW | AT3: Rural or Remote Electricity Rate Protection Charge (RRRP) | AW3: =AU3*AV3 -> 0 | AX3: 0 | AY3: 0 | AZ3: =AX3*AY3 -> 0 | BB3: =AZ3-AW3 -> 0 | BC3: =BB3/AW3 -> 
A4: FARMS - SINGLE PHASE ENERGY-BILLED [F1] | B4: General Service Equal To Or Greater Than 1,500 kW - Interval Metered | I4: Distribution Wheeling Service Rate | L4: Total Loss Factor – Primary Metered Customer > 5,000 kW | N4: $/kW | O4: $/kVA | W4: SM_Rate_Adder | Z4: Account set up charge/change of occupancy charge (plus credit agency costs if applicable) | AA4: Clearance Pole Attachment charge $/pole/year | AB4: Total Loss Factor – Primary Metered Customer > 5,000 kW | AL4: Brant County Power Inc. | AM4: Brant County Power Inc. | AO4: FARMS - SINGLE PHASE ENERGY-BILLED [F1] | AP4: kWh | AT4: Standard Supply Service – Administration Charge (if applicable) | AW4: =AU4*AV4 -> 0 | AX4: 0 | AY4: 0 | AZ4: =AX4*AY4 -> 0 | BB4: =AZ4-AW4 -> 0 | BC4: =BB4/AW4 -> 
A5: FARMS - THREE PHASE ENERGY-BILLED [F3] | I5: Electricity Rate | L5: Total Loss Factor – Secondary Metered Customer | N5: $/kVA | W5: MSC_Rate_Rider_ | Z5: Arrears certificate | AA5: Collection of account charge – no disconnection | AB5: Total Loss Factor – Secondary Metered Customer | AL5: Brantford Power Inc. | AM5: Brantford Power Inc. | AO5: FARMS - THREE PHASE ENERGY-BILLED [F3] | AP5: kWh | AT5: Sub-Total: Regulatory | AW5: =SUM(AW2:AW4) -> 0 | AZ5: =SUM(AZ2:BA4) -> 0 | BB5: =AZ5-AW5 -> 0 | BC5: =BB5/AW5 -> 
A6: GENERAL SERVICE - COMMERCIAL | I6: Electricity Rate - All Additional kWh | L6: Total Loss Factor – Secondary Metered Customer < 5,000 kW | W6: VC | Z6: Arrears certificate (credit reference) | AA6: Collection of account charge – no disconnection – after regular hours | AB6: Total Loss Factor – Secondary Metered Customer < 5,000 kW | AL6: Burlington Hydro Inc. | AM6: Burlington Hydro Inc. | AO6: GENERAL SERVICE - COMMERCIAL | AP6: kW | AT6: Debt Retirement Charge (DRC) | AW6: =AU6*AV6 -> 0 | AX6: =AU6 -> 0 | AY6: =AV6 -> 0 | AZ6: =AX6*AY6 -> 0 | BB6: =AZ6-AW6 -> 0 | BC6: =BB6/AW6 -> 
A7: GENERAL SERVICE - INSTITUTIONAL | I7: Electricity Rate - First 250 kWh | AL7: Cambridge and North Dumfries Hydro Inc. | AM7: Cambridge and North Dumfries Hydro Inc. | AO7: GENERAL SERVICE - INSTITUTIONAL | AP7: kW
A8: GENERAL SERVICE 1,000 TO 2,999 KW | I8: Electricity Rate -All Additional kWh | L8: Total Loss Factor – Secondary Metered Customer > 5,000 kW | W8: VC_Rate_Rider_ | Z8: Charge to certify cheque | AA8: Collection of account charge – no disconnection - during regular business hours | AB8: Total Loss Factor – Secondary Metered Customer > 5,000 kW | AL8: Canadian Niagara Power Inc. | AM8: Canadian Niagara Power Inc. | AO8: GENERAL SERVICE 1,000 TO 2,999 KW | AP8: kW | AT8: Total Bill on RPP (before taxes) | BB8: =AZ8-AW8 -> 0
A9: GENERAL SERVICE 1,000 TO 4,999 KW | I9: Electricity Rate First 1,000 kWh | L9: Distribution Loss Factor - Secondary Metered Customer < 5,000 kW | W9: VC_GA_Rate_Rider_kW_ | Z9: Collection of Account Charge – No Disconnection | AA9: Collection of account charge – no disconnection – during regular hours | AL9: Centre Wellington Hydro Ltd. | AM9: Centre Wellington Hydro Ltd. | AO9: GENERAL SERVICE 1,000 TO 4,999 KW | AP9: kW | AT9: HST | AW9: =AV9*AW8 -> 0 | AY9: =AV9 -> 0 | AZ9: =AY9*AZ8 -> 0 | BB9: =AZ9-AW9 -> 0 | BC9: =BB9/AW9 -> 
A10: GENERAL SERVICE 1,000 TO 4,999 KW - INTERVAL METERS | I10: Electricity Rate First 25,000 kWh | L10: Distribution Loss Factor - Secondary Metered Customer > 5,000 kW | W10: VC_LV_Rate | Z10: Credit Card Convenience Charge | AA10: Collection/Disconnection/Load Limiter/Reconnection – if in Community | AL10: Chapleau Public Utilities Corporation | AM10: Chapleau Public Utilities Corporation | AO10: GENERAL SERVICE 1,000 TO 4,999 KW - INTERVAL METERS | AP10: kW | AT10: Total Bill (including HST) | AW10: =AW9+AW8 -> 0 | AZ10: =AZ9+AZ8 -> 0 | BB10: =AZ10-AW10 -> 0 | BC10: =BB10/AW10 -> 
A11: GENERAL SERVICE 1,000 TO 4,999 KW (CO-GENERATION) | I11: Electricity Rate First 6,000 kWh | L11: Distribution Loss Factor - Primary Metered Customer < 5,000 kW | W11: RTSR_Network | Z11: Credit check (plus credit agency costs) | AA11: Credit Card Convenience Charge | AL11: Collus PowerStream Corporation | AM11: Collus PowerStream Corporation | AO11: GENERAL SERVICE 1,000 TO 4,999 KW (CO-GENERATION) | AP11: kW | AT11: Ontario Clean Energy Benefit (OCEB) | AW11: =-0.1*AW10 -> 0 | AY11: =AV11 -> 0 | AZ11: =-0.1*AZ10 -> 0 | BB11: =AZ11-AW11 -> 0 | BC11: =BB11/AW11 -> 
A12: GENERAL SERVICE 1,500 TO 4,999 KW | I12: Electricity Rate Next 1,500 kWh | L12: Distribution Loss Factor - Primary Metered Customer > 5,000 kW | W12: RTSR_Connection | Z12: Credit reference Letter | AA12: Disconnect/Reconnect at meter – after regular hours | AL12: Cooperative Hydro Embrun Inc. | AM12: Cooperative Hydro Embrun Inc. | AO12: GENERAL SERVICE 1,500 TO 4,999 KW | AP12: kW | AT12: Total Bill on RPP (including OCEB) | AW12: =AW10+AW11 -> 0 | AZ12: =AZ10+AZ11 -> 0 | BB12: =AZ12-AW12 -> 0 | BC12: =BB12/AW12 -> 
A13: GENERAL SERVICE 2,500 TO 4,999 KW | I13: General Service 1,500 to 4,999 kW customer | AL13: E.L.K. Energy Inc. | AM13: E.L.K. Energy Inc. | AO13: GENERAL SERVICE 2,500 TO 4,999 KW | AP13: kW
A14: GENERAL SERVICE 3,000 TO 4,999 KW | I14: General Service 50 to 1,499 kW customer | L14: Total Loss Factor - Embedded Distributor | W14: RTSR_Network_Interval | Z14: Credit reference/credit check (plus credit agency costs – General Service) | AA14: Disconnect/Reconnect at meter – during regular hours | AL14: Enersource Hydro Mississauga Inc. | AM14: Enersource Hydro Mississauga Inc. | AO14: GENERAL SERVICE 3,000 TO 4,999 KW | AP14: kW | AT14: Total Bill on TOU (before taxes) | BB14: =AZ14-AW14 -> 0
A15: GENERAL SERVICE 3,000 TO 4,999 KW - INTERMEDIATE USE | I15: General Service Large Use customer | L15: Total Loss Factor – Embedded Distributor – Hydro One Networks Inc. | W15: RTSR_Connection_Interval | Z15: Credit Reference/credit check (plus credit agency costs) | AA15: Disconnect/Reconnect at pole – after regular hours | AL15: Entegrus Powerlines Inc. | AM15: Entegrus Powerlines Inc. | AO15: GENERAL SERVICE 3,000 TO 4,999 KW - INTERMEDIATE USE | AP15: kW | AT15: HST | AW15: =AV15*AW14 -> 0 | AY15: =AV15 -> 0 | AZ15: =AY15*AZ14 -> 0 | BB15: =AZ15-AW15 -> 0 | BC15: =BB15/AW15 -> 
A16: GENERAL SERVICE 3,000 TO 4,999 KW - INTERVAL METERED | I16: Green Energy Act Initiatives Funding Adder - effective until the date of the next cost of service-based rate order | W16: RTSR_Network_Interval_GR1000kW | Z16: Dispute Test – Commercial self contained -- MC | AA16: Disconnect/Reconnect at pole – during regular hours | AL16: Entegrus Powerlines Inc. - Dutton Service Area | AM16: Entegrus Powerlines Inc. - Dutton Service Area | AO16: GENERAL SERVICE 3,000 TO 4,999 KW - INTERVAL METERED | AP16: kW | AT16: Total Bill (including HST) | AW16: =AW15+AW14 -> 0 | AZ16: =AZ15+AZ14 -> 0 | BB16: =AZ16-AW16 -> 0 | BC16: =BB16/AW16 -> 
A17: GENERAL SERVICE 3,000 TO 4,999 KW - TIME OF USE | I17: Green Energy Act Plan Funding Adder | W17: RTSR_Connection_Interval_GR1000kW | Z17: Dispute Test – Commercial TT -- MC | AA17: Disconnect/Reconnect Charge – At Meter – After Hours | AL17: Entegrus Powerlines Inc. - former Chatham-Kent Hydro Service Area | AM17: Entegrus Powerlines Inc. - former Chatham-Kent Hydro Service Area | AO17: GENERAL SERVICE 3,000 TO 4,999 KW - TIME OF USE | AP17: kW | AT17: Ontario Clean Energy Benefit (OCEB) | AW17: =-0.1*AW16 -> 0 | AY17: =AV17 -> 0 | AZ17: =-0.1*AZ16 -> 0 | BB17: =AZ17-AW17 -> 0 | BC17: =BB17/AW17 -> 
A18: GENERAL SERVICE 50 TO 1,000 KW | I18: Green Energy Act Plan Funding Adder - effective April 1, 2013 until March 31, 2014 | W18: RTSR_Line_Connection | Z18: Dispute Test – Residential | AA18: Disconnect/Reconnect Charge – At Meter – During Regular Hours | AL18: Entegrus Powerlines Inc. - Newbury Service Area | AM18: Entegrus Powerlines Inc. - Newbury Service Area | AO18: GENERAL SERVICE 50 TO 1,000 KW | AP18: kW | AT18: Total Bill on TOU (including OCEB) | AW18: =AW16+AW17 -> 0 | AZ18: =AZ16+AZ17 -> 0 | BB18: =AZ18-AW18 -> 0 | BC18: =BB18/AW18 -> 
A19: GENERAL SERVICE 50 TO 1,000 KW - INTERVAL METERS | I19: Green Energy Act Plan Funding Adder - effective April 1, 2014 until March 31, 2015 | W19: RTSR_Transformer_Connection | Z19: Duplicate Invoices for previous billing | AA19: Disconnect/Reconnect Charge – At Pole – After Hours | AL19: Entegrus Powerlines Inc. - Strathroy, Mount Brydges and Parkhill Service Areas | AM19: Entegrus Powerlines Inc. - Strathroy, Mount Brydges and Parkhill Service Areas | AO19: GENERAL SERVICE 50 TO 1,000 KW - INTERVAL METERS | AP19: kW
A20: GENERAL SERVICE 50 TO 1,000 KW - NON INTERVAL METERS | I20: ICM Rate Rider (2014) - in effect until the effective date of the next cost of service rates | W20: WMSR | Z20: Easement Letter | AA20: Disconnect/Reconnect Charge – At Pole – During Regular Hours | AL20: ENWIN Utilities Ltd. | AM20: ENWIN Utilities Ltd. | AO20: GENERAL SERVICE 50 TO 1,000 KW - NON INTERVAL METERS | AP20: kW
A21: GENERAL SERVICE 50 TO 1,499 KW | I21: Low Voltage Service Charge | W21: RRRP | Z21: Income Tax Letter | AA21: Disconnect/Reconnect Charges for non payment of account - At Meter After Hours | AL21: Erie Thames Powerlines Corporation | AM21: Erie Thames Powerlines Corporation | AO21: GENERAL SERVICE 50 TO 1,499 KW | AP21: kW
A22: GENERAL SERVICE 50 TO 1,499 KW - INTERVAL METERED | I22: Low Voltage Service Rate | W22: SPC | Z22: Interval Meter Interrogation | AA22: Disconnect/Reconnect charges for non payment of account – at meter after regular hours | AL22: Espanola Regional Hydro Distribution Corporation | AM22: Espanola Regional Hydro Distribution Corporation | AO22: GENERAL SERVICE 50 TO 1,499 KW - INTERVAL METERED | AP22: kW
A23: GENERAL SERVICE 50 TO 2,499 KW | I23: Low Voltage Volumetric Rate | W23: DRC | Z23: Interval meter request change | AA23: Disconnect/Reconnect Charges for non payment of account - At Meter During Regular Hours | AL23: Essex Powerlines Corporation | AM23: Essex Powerlines Corporation | AO23: GENERAL SERVICE 50 TO 2,499 KW | AP23: kW
A24: GENERAL SERVICE 50 TO 2,999 KW | I24: LRAM Rate Rider - Effective Until April 30, 2015 | W24: SSS | Z24: Legal letter | AA24: Disconnect/Reconnect charges for non payment of account – at meter during regular hours | AL24: Festival Hydro Inc. | AM24: Festival Hydro Inc. | AO24: GENERAL SERVICE 50 TO 2,999 KW | AP24: kW
A25: GENERAL SERVICE 50 TO 2,999 KW - INTERVAL METERED | I25: Minimum Distribution Charge - per KW of maximum billing demand in the previous 11 months | W25: SFLF | Z25: Legal letter charge | AA25: Disconnect/Reconnect charges for non payment of account – at pole after regular hours | AL25: Fort Frances Power Corporation | AM25: Fort Frances Power Corporation | AO25: GENERAL SERVICE 50 TO 2,999 KW - INTERVAL METERED | AP25: kW
A26: GENERAL SERVICE 50 TO 2,999 KW - TIME OF USE | B26: January | I26: Monthly Distribution Wheeling Service Rate - Dedicated LV Line | W26: DLF_Secondary_LT_5000kW | Z26: Meter dispute charge plus Measurement Canada fees (if meter found correct) | AA26: Disconnect/Reconnect charges for non payment of account – at pole during regular hours | AL26: Greater Sudbury Hydro Inc. | AM26: Greater Sudbury Hydro Inc. | AO26: GENERAL SERVICE 50 TO 2,999 KW - TIME OF USE | AP26: kW
A27: GENERAL SERVICE 50 TO 4,999 KW | B27: February | I27: Monthly Distribution Wheeling Service Rate - Hydro One Networks | W27: DLF_Secondary_GT_5000kW | Z27: Notification charge | AA27: Disconnect/Reconnection for >300 volts - after regular hours | AL27: Grimsby Power Inc. | AM27: Grimsby Power Inc. | AO27: GENERAL SERVICE 50 TO 4,999 KW | AP27: kW
A28: GENERAL SERVICE 50 TO 4,999 KW - INTERVAL METERED | B28: March | I28: Monthly Distribution Wheeling Service Rate - Shared LV Line | W28: DLF_Primary_LT_5000kW | Z28: Pulling Post Dated Cheques | AA28: Disconnect/Reconnection for >300 volts - during regular hours | AL28: Guelph Hydro Electric Systems Inc. | AM28: Guelph Hydro Electric Systems Inc. | AO28: GENERAL SERVICE 50 TO 4,999 KW - INTERVAL METERED | AP28: kW
A29: GENERAL SERVICE 50 TO 4,999 KW - TIME OF USE | B29: April | I29: Monthly Distribution Wheeling Service Rate - Waterloo North Hydro | W29: DLF_Primary_GT_5000kW | Z29: Request for other billing information | AA29: Disposal of Concrete Poles | AL29: Haldimand County Hydro Inc. | AM29: Haldimand County Hydro Inc. | AO29: GENERAL SERVICE 50 TO 4,999 KW - TIME OF USE | AP29: kW
A30: GENERAL SERVICE 50 TO 4,999 KW (COGENERATION) | B30: May | I30: Rate Rider for Application of Tax Change - effective until April 30, 2015 | W30: TLF_Secondary_LT_5000kW | Z30: Returned cheque (plus bank charges) | AA30: Dispute Test – Commercial TT -- MC | AL30: Halton Hills Hydro Inc. | AM30: Halton Hills Hydro Inc. | AO30: GENERAL SERVICE 50 TO 4,999 KW (COGENERATION) | AP30: kW
A31: GENERAL SERVICE 50 TO 4,999 KW (FORMERLY TIME OF USE) | B31: June | I31: Rate Rider for Application of Tax Change - effective until December 31, 2014 | W31: TLF_Secondary_GT_5000kW | Z31: Returned cheque charge (plus bank charges) | AA31: Install/Remove load control device – after regular hours | AL31: Hearst Power Distribution Company Limited | AM31: Hearst Power Distribution Company Limited | AO31: GENERAL SERVICE 50 TO 4,999 KW (FORMERLY TIME OF USE) | AP31: kW
A32: GENERAL SERVICE 50 TO 499 KW | B32: July | I32: Rate Rider for Application of Tax Change (2014) - effective until April 30, 2015 | W32: TLF_Primary_LT_5000kW | Z32: Special Billing Service (aggregation) | AA32: Install/Remove load control device – during regular hours | AL32: Horizon Utilities Corporation | AM32: Horizon Utilities Corporation | AO32: GENERAL SERVICE 50 TO 499 KW | AP32: kW
A33: GENERAL SERVICE 50 TO 699 KW | B33: August | I33: Rate Rider for Application of Tax Change (per connection) - effective until April 30, 2015 | W33: TLF_Primary_GT_5000kW | Z33: Special Billing Service (sub-metering charge per meter) | AA33: Interval Meter Interrogation | AL33: Hydro 2000 Inc. | AM33: Hydro 2000 Inc. | AO33: GENERAL SERVICE 50 TO 699 KW | AP33: kW
A34: GENERAL SERVICE 50 TO 999 KW | B34: September | I34: Rate Rider for CGAAP Accounting Changes (2013) - effective until April 30, 2017 | W34: TLF_EmbeddedDistributor | Z34: Special meter reads | AA34: Interval Meter Load Management Tool Charge $/month | AL34: Hydro Hawkesbury Inc. | AM34: Hydro Hawkesbury Inc. | AO34: GENERAL SERVICE 50 TO 999 KW | AP34: kW
A35: GENERAL SERVICE 50 TO 999 KW - INTERVAL METERED | B35: October | I35: Rate Rider for Deferral/Variance Account (2012) - effective unitl April 30, 2016 | Z35: Statement of Account | AA35: Interval meter request change | AL35: Hydro One Brampton Networks Inc. | AM35: Hydro One Brampton Networks Inc. | AO35: GENERAL SERVICE 50 TO 999 KW - INTERVAL METERED | AP35: kW
A36: GENERAL SERVICE 500 TO 4,999 KW | B36: November | I36: Rate Rider for Deferral/Variance Account Disposition – effective until April 30, 2015 | Z36: Unprocessed Payment Charge (plus bank charges) | AA36: Late Payment – per annum | AL36: Hydro One Networks Inc. | AM36: Hydro One Networks Inc. | AO36: GENERAL SERVICE 500 TO 4,999 KW | AP36: kW
A37: GENERAL SERVICE 700 TO 4,999 KW | B37: December | I37: Rate Rider for Deferral/Variance Account Disposition (2012) - effective until April 30, 2016 | AA37: Late Payment – per month | AL37: Hydro Ottawa Limited | AM37: Hydro Ottawa Limited | AO37: GENERAL SERVICE 700 TO 4,999 KW | AP37: kW
A38: GENERAL SERVICE DEMAND BILLED (50 KW AND ABOVE) [GSD] | I38: Rate Rider for Deferral/Variance Account Disposition (2013) - effective until April 30, 2014 | AA38: Layout fees | AL38: Innisfil Hydro Distribution Systems Limited | AM38: Innisfil Hydro Distribution Systems Limited | AO38: GENERAL SERVICE DEMAND BILLED (50 KW AND ABOVE) [GSD] | AP38: kW
A39: GENERAL SERVICE ENERGY BILLED (LESS THAN 50 KW) [GSE-METERED] | I39: Rate Rider for Deferral/Variance Account Disposition (2014) - effective until April 28, 2016 | AA39: Meter dispute charge plus Measurement Canada fees (if meter found correct) | AL39: Kenora Hydro Electric Corporation Ltd. | AM39: Kenora Hydro Electric Corporation Ltd. | AO39: GENERAL SERVICE ENERGY BILLED (LESS THAN 50 KW) [GSE-METERED] | AP39: kWh
A40: GENERAL SERVICE ENERGY BILLED (LESS THAN TO 50 KW) [GSE-UNMETERED] | I40: Rate Rider for Deferral/Variance Account Disposition (2014) - effective until April 30, 2015 | AA40: Meter Interrogation Charge | AL40: Kingston Hydro Corporation | AM40: Kingston Hydro Corporation | AO40: GENERAL SERVICE ENERGY BILLED (LESS THAN TO 50 KW) [GSE-UNMETERED] | AP40: kWh
A41: GENERAL SERVICE EQUAL TO OR GREATER THAN 1,500 KW | I41: Rate Rider for Deferral/Variance Account Disposition (2014) - effective until December 31, 2014 | AA41: Missed Service Appointment | AL41: Kitchener-Wilmot Hydro Inc. | AM41: Kitchener-Wilmot Hydro Inc. | AO41: GENERAL SERVICE EQUAL TO OR GREATER THAN 1,500 KW | AP41: kW
A42: GENERAL SERVICE EQUAL TO OR GREATER THAN 1,500 KW - INTERVAL METERED | I42: Rate Rider for Deferral/Variance Account Disposition (2014) - effective until December 31, 2015 | AA42: Norfolk Pole Rentals – Billed | AL42: Lakefront Utilities Inc. | AM42: Lakefront Utilities Inc. | AO42: GENERAL SERVICE EQUAL TO OR GREATER THAN 1,500 KW - INTERVAL METERED | AP42: kW
A43: GENERAL SERVICE GREATER THAN 1,000 KW | I43: Rate Rider for Deferral/Variance Account Dispositon (2012) - effective until April 30, 2016 | AA43: Optional Interval/TOU Meter charge $/month | AL43: Lakeland Power Distribution Ltd. | AM43: Lakeland Power Distribution Ltd. | AO43: GENERAL SERVICE GREATER THAN 1,000 KW | AP43: kW
A44: GENERAL SERVICE GREATER THAN 50 kW - WMP | I44: Rate Rider for Disposition of Accounting Changes Under CGAAP Account 1576 - effective until April 30, 2016 | AA44: Overtime Locate | AL44: London Hydro Inc. | AM44: London Hydro Inc. | AO44: GENERAL SERVICE GREATER THAN 50 kW - WMP | AP44: kW
A45: GENERAL SERVICE INTERMEDIATE 1,000 TO 4,999 KW | I45: Rate Rider for Disposition of Deferral/Variance Accounts (2010) - effective until December 31, 2014 | AA45: Owner Requested Disconnection/Reconnection – after regular hours | AL45: Midland Power Utility Corporation | AM45: Midland Power Utility Corporation | AO45: GENERAL SERVICE INTERMEDIATE 1,000 TO 4,999 KW | AP45: kW
A46: GENERAL SERVICE INTERMEDIATE RATE CLASS 1,000 TO 4,999 KW (FORMERLY GENERAL SERVICE > 50 KW CUSTOMERS) | I46: Rate Rider for Disposition of Deferral/Variance Accounts (2011) - effective until April 30, 2015 | AA46: Owner Requested Disconnection/Reconnection – during regular hours | AL46: Milton Hydro Distribution Inc. | AM46: Milton Hydro Distribution Inc. | AO46: GENERAL SERVICE INTERMEDIATE RATE CLASS 1,000 TO 4,999 KW (FORMERLY GENERAL SERVICE > 50 KW CUSTOMERS) | AP46: kW
A47: GENERAL SERVICE INTERMEDIATE RATE CLASS 1,000 TO 4,999 KW (FORMERLY LARGE USE CUSTOMERS) | I47: Rate Rider for Disposition of Deferral/Variance Accounts (2011) - effective until April 30, 2016 | AA47: Returned cheque (plus bank charges) | AL47: Newmarket - Tay Power Distribution Ltd. | AM47: Newmarket - Tay Power Distribution Ltd. | AO47: GENERAL SERVICE INTERMEDIATE RATE CLASS 1,000 TO 4,999 KW (FORMERLY LARGE USE CUSTOMERS) | AP47: kW
A48: GENERAL SERVICE LESS THAN 50 KW | I48: Rate Rider for Disposition of Deferral/Variance Accounts (2012) - effective until April 30, 2014 | AA48: Rural system expansion / line connection fee | AL48: Niagara Peninsula Energy Inc. | AM48: Niagara Peninsula Energy Inc. | AO48: GENERAL SERVICE LESS THAN 50 KW | AP48: kWh
A49: GENERAL SERVICE LESS THAN 50 KW - SINGLE PHASE ENERGY-BILLED [G1] | I49: Rate Rider for Disposition of Deferral/Variance Accounts (2012) - effective until April 30, 2015 | AA49: Same Day Open Trench | AL49: Niagara-on-the-Lake Hydro Inc. | AM49: Niagara-on-the-Lake Hydro Inc. | AO49: GENERAL SERVICE LESS THAN 50 KW - SINGLE PHASE ENERGY-BILLED [G1] | AP49: kWh
A50: GENERAL SERVICE LESS THAN 50 KW - THREE PHASE ENERGY-BILLED [G3] | I50: Rate Rider for Disposition of Deferral/Variance Accounts (2012) - effective until April 30, 2016 | AA50: Scheduled Day Open Trench | AL50: Norfolk Power Distribution Inc. | AM50: Norfolk Power Distribution Inc. | AO50: GENERAL SERVICE LESS THAN 50 KW - THREE PHASE ENERGY-BILLED [G3] | AP50: kWh
A51: GENERAL SERVICE LESS THAN 50 KW - TRANSMISSION CLASS ENERGY-BILLED [T] | I51: Rate Rider for Disposition of Deferral/Variance Accounts (2012) - effective until August 31, 2014 | AA51: Service call – after regular hours | AL51: North Bay Hydro Distribution Limited | AM51: North Bay Hydro Distribution Limited | AO51: GENERAL SERVICE LESS THAN 50 KW - TRANSMISSION CLASS ENERGY-BILLED [T] | AP51: kWh
A52: GENERAL SERVICE LESS THAN 50 KW - URBAN ENERGY-BILLED [UG] | I52: Rate Rider for Disposition of Deferral/Variance Accounts (2012) - effective until December 31, 2015 | AA52: Service call – customer owned equipment | AL52: Northern Ontario Wires Inc. | AM52: Northern Ontario Wires Inc. | AO52: GENERAL SERVICE LESS THAN 50 KW - URBAN ENERGY-BILLED [UG] | AP52: kWh
A53: GENERAL SERVICE SINGLE PHASE - G1 | I53: Rate Rider for Disposition of Deferral/Variance Accounts (2012) - effective until December 31, 2016 Applicable only in the former service area of Clinton Power | AA53: Service Call – Customer-owned Equipment – After Regular Hours | AL53: Oakville Hydro Electricity Distribution Inc. | AM53: Oakville Hydro Electricity Distribution Inc. | AO53: GENERAL SERVICE SINGLE PHASE - G1 | AP53: kW
A54: GENERAL SERVICE THREE PHASE - G3 | I54: Rate Rider for Disposition of Deferral/Variance Accounts (2012) – effective until December 31, 2016 Applicable only in the former service area of Clinton Power | AA54: Service Call – Customer-owned Equipment – During Regular Hours | AL54: Orangeville Hydro Limited | AM54: Orangeville Hydro Limited | AO54: GENERAL SERVICE THREE PHASE - G3 | AP54: kW
A55: INTERMEDIATE USERS | I55: Rate Rider for Disposition of Deferral/Variance Accounts (2012) - effective until January 31, 2014 | AA55: Service Charge for onsite interrogation of interval meter due to customer phone line failure - required weekly until line repaired $ 6 | AL55: Orillia Power Distribution Corporation | AM55: Orillia Power Distribution Corporation | AO55: INTERMEDIATE USERS | AP55: kW
A56: INTERMEDIATE WITH SELF GENERATION | I56: Rate Rider for Disposition of Deferral/Variance Accounts (2012) - effective until June 30, 2014 | AA56: Service Layout - Commercial | AL56: Oshawa PUC Networks Inc. | AM56: Oshawa PUC Networks Inc. | AO56: INTERMEDIATE WITH SELF GENERATION | AP56: kW
A57: LARGE USE | I57: Rate Rider for Disposition of Deferral/Variance Accounts (2013) - Applicable only to Wholesale Market Participants - effective until April 30, 2015 | AA57: Service Layout - ResidentiaI | AL57: Ottawa River Power Corporation | AM57: Ottawa River Power Corporation | AO57: LARGE USE | AP57: kW
A58: LARGE USE - 3TS | I58: Rate Rider for Disposition of Deferral/Variance Accounts (2013) - effective until April 30, 2014 | AA58: Special Billing Service (sub-metering charge per meter) | AL58: Parry Sound Power Corporation | AM58: Parry Sound Power Corporation | AO58: LARGE USE - 3TS | AP58: kW
A59: LARGE USE - FORD ANNEX | I59: Rate Rider for Disposition of Deferral/Variance Accounts (2013) - effective until April 30, 2015 | AA59: Special meter reads | AL59: Peterborough Distribution Incorporated | AM59: Peterborough Distribution Incorporated | AO59: LARGE USE - FORD ANNEX | AP59: kW
A60: LARGE USE - REGULAR | I60: Rate Rider for Disposition of Deferral/Variance Accounts (2013) - effective until April 30, 2015 - not applicable to Wholesale Market Participants | AA60: Specific Charge for Access to the Power Poles - $/pole/year | AL60: PowerStream Inc. | AM60: PowerStream Inc. | AO60: LARGE USE - REGULAR | AP60: kW
A61: LARGE USE > 5000 KW | I61: Rate Rider for Disposition of Deferral/Variance Accounts (2013) - effective until April 30, 2017 | AA61: Specific Charge for Bell Canada Access to the Power Poles – per pole/year | AL61: PUC Distribution Inc. | AM61: PUC Distribution Inc. | AO61: LARGE USE > 5000 KW | AP61: kW
A62: microFIT | I62: Rate Rider for Disposition of Deferral/Variance Accounts (2013) - effective until August 31, 2014 | AA62: Switching for company maintenance – Charge based on Time and Materials | AL62: Renfrew Hydro Inc. | AM62: Renfrew Hydro Inc. | AO62: microFIT | AP62: $
A63: RESIDENTIAL | I63: Rate Rider for Disposition of Deferral/Variance Accounts (2013) - effective until December 31, 2014 | AA63: Temporary Service – Install & remove – overhead – no transformer | AL63: Rideau St. Lawrence Distribution Inc. | AM63: Rideau St. Lawrence Distribution Inc. | AO63: RESIDENTIAL | AP63: kWh
A64: RESIDENTIAL - HENSALL | I64: Rate Rider for Disposition of Deferral/Variance Accounts (2013) - effective until May 31, 2014 | AA64: Temporary Service – Install & remove – overhead – with transformer | AL64: Sioux Lookout Hydro Inc. | AM64: Sioux Lookout Hydro Inc. | AO64: RESIDENTIAL - HENSALL | AP64: kWh
A65: RESIDENTIAL - HIGH DENSITY [R1] | I65: Rate Rider for Disposition of Deferral/Variance Accounts (2014) - effective until December 31, 2015 | AA65: Temporary Service – Install & remove – underground – no transformer | AL65: St. Thomas Energy Inc. | AM65: St. Thomas Energy Inc. | AO65: RESIDENTIAL - HIGH DENSITY [R1] | AP65: kWh
A66: RESIDENTIAL - LOW DENSITY [R2] | I66: Rate Rider for Disposition of Deferred PILs Variance Account 1562 - effective until March 31, 2016 | AA66: Temporary service install & remove – overhead – no transformer | AL66: Thunder Bay Hydro Electricity Distribution Inc. | AM66: Thunder Bay Hydro Electricity Distribution Inc. | AO66: RESIDENTIAL - LOW DENSITY [R2] | AP66: kWh
A67: RESIDENTIAL - MEDIUM DENSITY [R1] | I67: Rate Rider for Disposition of Deferred PILs Variance Account 1562 (2012) - effective until April 30, 2015 | AA67: Temporary Service Install & Remove – Overhead – With Transformer | AL67: Tillsonburg Hydro Inc. | AM67: Tillsonburg Hydro Inc. | AO67: RESIDENTIAL - MEDIUM DENSITY [R1] | AP67: kWh
A68: RESIDENTIAL - NORMAL DENSITY [R2] | I68: Rate Rider for Disposition of Deferred PILs Variance Account 1562 (2012) - effective until April 30, 2016 | AA68: Temporary Service Install & Remove – Underground – No Transformer | AL68: Toronto Hydro-Electric System Limited | AM68: Toronto Hydro-Electric System Limited | AO68: RESIDENTIAL - NORMAL DENSITY [R2] | AP68: kWh
A69: RESIDENTIAL - TIME OF USE | I69: Rate Rider for Disposition of Deferred PILs Variance Account 1562 (2nd Installment - 2012) - effective until April 30, 2016 | AA69: Temporary service installation and removal – overhead – no transformer | AL69: Veridian Connections Inc. | AM69: Veridian Connections Inc. | AO69: RESIDENTIAL - TIME OF USE | AP69: kWh
A70: RESIDENTIAL - URBAN [UR] | I70: Rate Rider for Disposition of Deferred PILs Variance Account 1562 (per connection) (2012) - effective until April 30, 2015 | AA70: Temporary service installation and removal – overhead – with transformer | AL70: Wasaga Distribution Inc. | AM70: Wasaga Distribution Inc. | AO70: RESIDENTIAL - URBAN [UR] | AP70: kWh
A71: RESIDENTIAL REGULAR | I71: Rate Rider for Disposition of Deferred PILs Variance Account 1562 (per connection) (2012) - effective until April 30, 2016 | AA71: Temporary service installation and removal – underground – no transformer | AL71: Waterloo North Hydro Inc. | AM71: Waterloo North Hydro Inc. | AO71: RESIDENTIAL REGULAR | AP71: kWh
A72: RESIDENTIAL SUBURBAN | I72: Rate Rider for Disposition of Global Adjustment Sub-Account (2011) - effective until April 30, 2015 Applicable only for Non-RPP Customers | AL72: Welland Hydro-Electric System Corp. | AM72: Welland Hydro-Electric System Corp. | AO72: RESIDENTIAL SUBURBAN | AP72: kWh
A73: RESIDENTIAL SUBURBAN SEASONAL | I73: Rate Rider for Disposition of Global Adjustment Sub-Account (2011) - effective until April 30, 2016 Applicable only for Non-RPP Customers | AL73: Wellington North Power Inc. | AM73: Wellington North Power Inc. | AO73: RESIDENTIAL SUBURBAN SEASONAL | AP73: kWh
A74: RESIDENTIAL SUBURBAN YEAR ROUND | I74: Rate Rider for Disposition of Global Adjustment Sub-Account (2012) - effective until April 30, 2014 Applicable only for Non-RPP Customers | AL74: West Coast Huron Energy Inc. | AM74: West Coast Huron Energy Inc. | AO74: RESIDENTIAL SUBURBAN YEAR ROUND | AP74: kWh
A75: RESIDENTIAL URBAN | I75: Rate Rider for Disposition of Global Adjustment Sub-Account (2012) - effective until April 30, 2015 Applicable only for Non-RPP Customers | AL75: Westario Power Inc. | AM75: Westario Power Inc. | AO75: RESIDENTIAL URBAN | AP75: kWh
A76: RESIDENTIAL URBAN YEAR-ROUND | I76: Rate Rider for Disposition of Global Adjustment Sub-Account (2012) - effective until April 30, 2015 Applicatble only for Non-RPP Customers | AL76: Whitby Hydro Electric Corporation | AM76: Whitby Hydro Electric Corporation | AO76: RESIDENTIAL URBAN YEAR-ROUND | AP76: kWh
A77: SEASONAL RESIDENTIAL | I77: Rate Rider for Disposition of Global Adjustment Sub-Account (2012) - effective until April 30, 2016 Applicable only for Non-RPP Customers | AL77: Woodstock Hydro Services Inc. | AM77: Woodstock Hydro Services Inc. | AO77: SEASONAL RESIDENTIAL | AP77: kWh
A78: SEASONAL RESIDENTIAL - HIGH DENSITY [R3] | I78: Rate Rider for Disposition of Global Adjustment Sub-Account (2012) - effective until January 31, 2014. Applicable only for Non-RPP Customers | AO78: SEASONAL RESIDENTIAL - HIGH DENSITY [R3] | AP78: kWh
A79: SEASONAL RESIDENTIAL - NORMAL DENSITY [R4] | I79: Rate Rider for Disposition of Global Adjustment Sub-Account (2012) - effective until June 30, 2014 Applicable only for Non-RPP Customers | AO79: SEASONAL RESIDENTIAL - NORMAL DENSITY [R4] | AP79: kWh
A80: SENTINEL LIGHTING | I80: Rate Rider for Disposition of Global Adjustment Sub-Account (2012) Applicable only for Non-RPP Customers - effective until August 31, 2014 | AO80: SENTINEL LIGHTING | AP80: kW
A81: SMALL COMMERCIAL AND USL - PER CONNECTION | I81: Rate Rider for Disposition of Global Adjustment Sub-Account (2012) Applicable only to Non-RPP Customers - effective until August 31, 2014 | AO81: SMALL COMMERCIAL AND USL - PER CONNECTION | AP81: kWh
A82: SMALL COMMERCIAL AND USL - PER METER | I82: Rate Rider for Disposition of Global Adjustment Sub-Account (2013) - effective until April 30, 2014 Applicable only for Non-RPP Customers | AO82: SMALL COMMERCIAL AND USL - PER METER | AP82: kWh
A83: STANDARD A GENERAL SERVICE AIR ACCESS | I83: Rate Rider for Disposition of Global Adjustment Sub-Account (2013) - effective until April 30, 2015 Applicable only for Non-RPP Customers | AO83: STANDARD A GENERAL SERVICE AIR ACCESS | AP83: kWh
A84: STANDARD A GENERAL SERVICE ROAD/RAIL | I84: Rate Rider for Disposition of Global Adjustment Sub-Account (2013) - effective until April 30, 2015 Applicable only for Non-RPP Customers and excluding Wholesale Market Participants | AO84: STANDARD A GENERAL SERVICE ROAD/RAIL | AP84: kWh
A85: STANDARD A GRID CONNECTED | I85: Rate Rider for Disposition of Global Adjustment Sub-Account (2013) - effective until April 30, 2017 Applicable only for Non-RPP Customers | AO85: STANDARD A GRID CONNECTED | AP85: kWh
A86: STANDARD A RESIDENTIAL AIR ACCESS | I86: Rate Rider For Disposition of Global Adjustment Sub-Account (2013) - effective until August 31, 2014 Applicable only for Non-RPP Customers | AO86: STANDARD A RESIDENTIAL AIR ACCESS | AP86: kWh
A87: STANDARD A RESIDENTIAL ROAD/RAIL | I87: Rate Rider for Disposition of Global Adjustment Sub-Account (2013) - effective until December 31, 2014 Applicable only for Non-RPP Customers | AO87: STANDARD A RESIDENTIAL ROAD/RAIL | AP87: kWh
A88: STANDBY - GENERAL SERVICE 1,000 - 5,000 KW | I88: Rate Rider for Disposition of Global Adjustment Sub-Account (2013) - effective until May 31, 2014 Applicable only for Non-RPP Customers | AO88: STANDBY - GENERAL SERVICE 1,000 - 5,000 KW | AP88: kW
A89: STANDBY - GENERAL SERVICE 50 - 1,000 KW | I89: Rate Rider for Disposition of Global Adjustment Sub-Account (2014) - effective until December 31, 2014. Applicable only for Non-RPP - Class B Customers | AO89: STANDBY - GENERAL SERVICE 50 - 1,000 KW | AP89: kW
A90: STANDBY - LARGE USE | I90: Rate Rider for Disposition of Global Adjustment Sub-Account (2014) - effective until December 31, 2014. Applicable only for Non-RPP Customers | AO90: STANDBY - LARGE USE | AP90: kW
A91: STANDBY DISTRIBUTION SERVICE | I91: Rate Rider for Disposition of Global Adjustment Sub-Account (2014) - effective until December 31, 2014. Applicable only for Non-RPP Customers - Class A Customers | AO91: STANDBY DISTRIBUTION SERVICE | AP91: kW
A92: STANDBY POWER | I92: Rate Rider for Disposition of Global Adjustment Sub-Account (2014) - effective until December 31, 2014. Applicable only for Non-RPP Customers - Interval Metered | AO92: STANDBY POWER | AP92: kW
A93: STANDBY POWER - APPROVED ON AN INTERIM BASIS | I93: Rate Rider for Disposition of Global Adjustment Sub-Account (2014) - effective until December 31, 2014. Applicable only for Non-RPP Customers - Non Interval Metered | AO93: STANDBY POWER - APPROVED ON AN INTERIM BASIS | AP93: kW
A94: STANDBY POWER GENERAL SERVICE 1,500 TO 4,999 KW | I94: Rate Rider for Disposition of Global Adjustment Sub-Account (2014) - effective until December 31, 2015. Applicable only for Non-RPP Customers. | AO94: STANDBY POWER GENERAL SERVICE 1,500 TO 4,999 KW | AP94: kW
A95: STANDBY POWER GENERAL SERVICE 50 TO 1,499 KW | I95: Rate Rider for Disposition of Post Retirement Actuarial Gain - effective until March 31, 2025 | AO95: STANDBY POWER GENERAL SERVICE 50 TO 1,499 KW | AP95: kW
A96: STANDBY POWER GENERAL SERVICE LARGE USE | I96: Rate Rider for Disposition of Residual Hisotrical Smart Meter Costs - effective until April 30, 2015 | AO96: STANDBY POWER GENERAL SERVICE LARGE USE | AP96: kW
A97: STREET LIGHTING | I97: Rate Rider for Disposition of Residual Hisotrical Smart Meter Costs - effective until April 30, 2017 | AO97: STREET LIGHTING | AP97: kW
A98: SUB TRANSMISSION [ST] | I98: Rate Rider for Disposition of Residual Historical Smart Meter Costs - effective until April 30, 2014 | AO98: SUB TRANSMISSION [ST] | AP98: kW
A99: UNMETERED SCATTERED LOAD | I99: Rate Rider for Disposition of Residual Historical Smart Meter Costs - effective until April 30, 2016 | AO99: UNMETERED SCATTERED LOAD | AP99: kWh
A100: URBAN GENERAL SERVICE DEMAND BILLED (50 KW AND ABOVE) [UGD] | I100: Rate Rider for Disposition of Residual Historical Smart Meter Costs - effective until August 31, 2014 | AO100: URBAN GENERAL SERVICE DEMAND BILLED (50 KW AND ABOVE) [UGD] | AP100: kW
A101: URBAN GENERAL SERVICE ENERGY BILLED (LESS THAN 50 KW) [UGE] | I101: Rate Rider for Disposition of Residual Historical Smart Meter Costs - effective until August 31, 2015 | AO101: URBAN GENERAL SERVICE ENERGY BILLED (LESS THAN 50 KW) [UGE] | AP101: kWh
A102: WESTPORT SEWAGE TREATMENT PLANT | I102: Rate Rider for Disposition of Residual Historical Smart Meter Costs - effective until December 31, 2014 | AO102: WESTPORT SEWAGE TREATMENT PLANT | AP102: kW
A103: YEAR-ROUND RESIDENTIAL - R2 | I103: Rate Rider for Disposition of Residual Historical Smart Meter Costs – effective until December 31, 2014 | AO103: YEAR-ROUND RESIDENTIAL - R2 | AP103: kWh
I104: Rate Rider for Disposition of Residual Historical Smart Meter Costs - effective until December 31, 2015
I105: Rate Rider for Disposition of Residual Historical Smart Meter Costs - effective until December 31, 2016
I106: Rate Rider for Disposition of Residual Historical Smart Meter Costs - effective until October 31, 2014
I107: Rate Rider for Disposition of Residual Historical Smart Meter Costs - effective until September 30, 2014
I108: Rate Rider for Disposition of Residual Historical Smart Meter Costs - Non-Interval Metered - effective until April 30, 2014
I109: Rate Rider for Disposition of Residual Historical Smart Meter Costs 2 - in effect until the effective date of the next cost of service-based rate order
I110: Rate Rider for Disposition of Residual Historical Smart Meter Costs 3 - in effect until the effective date of the next cost of service-based rate order
I111: Rate Rider for Disposition of Residual Incremental Historical Smart Meter Costs - effective until August 31, 2015
I112: Rate Rider for Disposition of Stranded Meter costs - effective until April 30, 2015
I113: Rate Rider for Disposition of Stranded Meter Costs - effective until April 30, 2016
I114: Rate Rider for Disposition of Stranded Meter Costs - effective until April 30, 2017
I115: Rate Rider for Global Adjustment Sub Account Disposition - effective until April 30, 2016 Applicable only for Non RPP Customers
I116: Rate Rider for Global Adjustment Sub-Account Disposition (2014) - effective until April 28, 2016 Applicable only for Non-RPP Customers
I117: Rate Rider for Global Adjustment Sub-Account Disposition (2014) - effective until April 30, 2015 Applicable only for Non-RPP Customers
I118: Rate Rider for Global Adjustment Sub-Account Disposition (2014) - effective until December 30, 2015 Applicable only for Non-RPP Customers
I119: Rate Rider for Global Adjustment Sub-Account Disposition (2014) - effective until December 31, 2014 Applicable only for Non-RPP Customers
I120: Rate Rider for Global Adjustment Sub-Account Disposition (2014) - effective until December 31, 2015 Applicable only for Non-RPP Customers
I121: Rate Rider for Global Adjustment Sub-Account Disposition Applicable only for Non-RPP Customers - effective until April 30, 2015
I122: Rate Rider for Incremental Capital - Distribution Volumetric - effective until April 30, 2016
I123: Rate Rider for Incremental Capital - Service Charge - effective until April 30, 2016
I124: Rate Rider for Incremental Capital (2012) - effective until April 30, 2015
I125: Rate Rider for Lost Revenue Adjustment Mechanism Variance Account (LRAMVA) Recovery (2012 CDM Activities) - effective until April 30, 2015
I126: Rate Rider for Recover of Residual Historical Smart meter Costs - effective until June 30, 2014
I127: Rate Rider for Recovery of CGAAP/CWIP Differential - in effect until December 31, 2016
I128: Rate Rider for Recovery of Foregone Revenue - effective until April 30, 2015
I129: Rate Rider for Recovery of Forgone Revenue - effective until April 30, 2015
I130: Rate Rider for Recovery of Forgone Revenue - effective until December 31, 2014
I131: Rate Rider for Recovery of Green Energy Act related costs - effective until December 31, 2014
I132: Rate Rider for Recovery of Incremental Capital (2013) - in effect until the effective date of the next cost of service-based rate order
I133: Rate Rider for Recovery of Incremental Capital (2013) - in effect until the effective date of the next cost of service-based rate order
I134: Rate Rider for Recovery of Incremental Capital (2013) (per connection) - in effect until the effective date of the next cost of service-based rate order
I135: Rate Rider for Recovery of Incremental Capital (2013) (per connection)- in effect until the effective date of the next cost of service-based rate order
I136: Rate Rider for Recovery of Incremental Capital Costs
I137: Rate Rider for Recovery of Incremental Capital Costs - effective until April 30, 2015
I138: Rate Rider for Recovery of Incremental Capital Module Costs (2014) - in effect until the effective date of the next cost of service-based rate order
I139: Rate Rider for Recovery of Incremental Capital Module Costs (2014) - in effect until the effective date of the next cost of service-based rate order
I140: Rate Rider for Recovery of Lost Revenue Adjustment Mechanism ( LRAM)/Shared Savings Mechanism (SSM) (2012) - effective until August 31, 2014
I141: Rate Rider for Recovery of Lost Revenue Adjustment Mechanism (2013) - effective until December 31, 2014
I142: Rate Rider for Recovery of Lost Revenue Adjustment Mechanism (LRAM) - effective until April 30, 2016
I143: Rate Rider for Recovery of Lost Revenue Adjustment Mechanism (LRAM) (pre-2011 CDM Activities) - effective until April 30, 2015
I144: Rate Rider for Recovery of Lost Revenue Adjustment Mechanism (LRAM) (pre-2011 CDM Activities) (2013) - effective until April 30, 2015
I145: Rate Rider for Recovery of Lost Revenue Adjustment Mechanism (LRAM)/Shared Savings
I146: Rate Rider for Recovery of Lost Revenue Adjustment Mechanism (LRAM)/Shared Savings Mechanism (SSM) - effective until December 31, 2018 and applicable in the service area excluding the former service areas of Clinton Power and West Perth Power
I147: Rate Rider for Recovery of Lost Revenue Adjustment Mechanism (LRAM)/Shared Savings Mechanism (SSM) - effective until December 31, 2014 and applicable in the service area excluding the former service areas of Clinton Power and West Perth Power
I148: Rate Rider for Recovery of Lost Revenue Adjustment Mechanism (LRAM)/Shared Savings Mechanism (SSM) - effective until December 31, 2014 and applicable only in the former service area of Clinton Power
I149: Rate Rider for Recovery of Lost Revenue Adjustment Mechanism (LRAM)/Shared Savings Mechanism (SSM) - effective until December 31, 2014 and applicable only in the former service area of West Perth Power
I150: Rate Rider for Recovery of Lost Revenue Adjustment Mechanism (LRAM)/Shared Savings Mechanism (SSM) - effective until December 31, 2014 and applicable in the service area excluding the former service area of Clinton Power
I151: Rate Rider for Recovery of Lost Revenue Adjustment Mechanism (LRAM)/Shared Savings Mechanism (SSM) - effective until March 31, 2016
I152: Rate Rider for Recovery of Lost Revenue Adjustment Mechanism (LRAM)/Shared Savings Mechanism (SSM) (2012) - effective until August 31, 2014
I153: Rate Rider for Recovery of Lost Revenue Adjustment Mechanism (LRAM)/Shared Savings Mechanism (SSM) Recovery - effective until April 30, 2015
I154: Rate Rider for Recovery of Lost Revenue Adjustment Mechanism Variance Account (LRAMVA) (2014) - effective until April 30, 2015
I155: Rate Rider for Recovery of Residual Historical Smart Meter Costs - effective July 1, 2012 - April 30, 2016
I156: Rate Rider for Recovery of Smart Meter Incremental Revenue Requirement - effective until the date of the next cost of service-based rate order
I157: Rate Rider for Recovery of Smart Meter Incremental Revenue Requirement - effective until the effective date of the next cost of service-based rate order, or October 31, 2017, whichever occurs earlier
I158: Rate Rider for Recovery of Smart Meter Incremental Revenue Requirement - in effect until the effective date of the next cost of service-based rate order
I159: Rate Rider for Recovery of Smart Meter Incremental Revenue Requirement - Non-Interval Metered - in effect until the effective date of the next cost of service-based rate order
I160: Rate Rider for Recovery of Smart Meter Incremental Revenue Requirements - in effect until the effective date of the next cost of service application
I161: Rate Rider for Recovery of Smart Meter Stranded Assets - effective until April 30, 2016
I162: Rate Rider for Recovery of Storm Damage Costs - effective until August 31, 2017
I163: Rate Rider for Recovery of Stranded Assets - effective until April 30, 2016
I164: Rate Rider for Recovery of Stranded Meter Assets - effective July 1, 2012 - April 30, 2016
I165: Rate Rider for Recovery of Stranded Meter Assets – effective until April 30, 2015
I166: Rate Rider for Recovery of Stranded Meter Assets - effective until April 30, 2016
I167: Rate Rider for Recovery of Stranded Meter Assets - effective until April 30, 2017
I168: Rate Rider for Recovery of Stranded Meter Assets - effective until August 31, 2015
I169: Rate Rider for Recovery of Stranded Meter Assets - effective until August 31, 2017
I170: Rate Rider for Recovery of Stranded Meter Assets - effective until December 31, 2014
I171: Rate Rider for Recovery of Stranded Meter Assets - effective until December 31, 2015
I172: Rate Rider for Recovery of Stranded Meter Assets - effective until June 30, 2016
I173: Rate Rider for Recovery of Stranded Meter Assets - effective until March 31, 2016
I174: Rate Rider for Recovery of Stranded Meter Assets - effective until May 31, 2014
I175: Rate Rider for Reversal of Deferral/Variance Account Disposition (2011) - effective until April 30, 2015
I176: Rate Rider for Smart Meter Disposition - effective until April 30, 2016
I177: Rate Rider for Smart Meter Incremental Revenue Requirement - in effect until the effective date of the next cost of service-based rate order
I178: Rate Rider for Smart Metering Entity Charge - effective until October 31, 2018
I179: Rate Rider for Stranded Meter Cost Recovery - effective until April 30, 2017
I180: Rate Rider for Tax Change
I181: Rate Rider for Tax Change - effective until April 30, 2015
I182: Rate Rider for Tax Change (2014) - effective until April 30, 2015
I183: Retail Transmission Rate - Line and Transformation Connection Service Rate
I184: Retail Transmission Rate - Line and Transformation Connection Service Rate - (less than 1,000 kW)
I185: Retail Transmission Rate - Line and Transformation Connection Service Rate - Interval Metered
I186: Retail Transmission Rate - Line and Transformation Connection Service Rate - Interval Metered (1,000 to 4,999 kW)
I187: Retail Transmission Rate - Line and Transformation Connection Service Rate - Interval Metered (less than 1,000 kW)
I188: Retail Transmission Rate - Line and Transformation Connection Service Rate - Interval Metered < 1,000 kW
I189: Retail Transmission Rate - Line and Transformation Connection Service Rate FOR ALL SERVICE AREAS EXCEPT HENSALL
I190: Retail Transmission Rate - Line and Transformation Connection Service Rate - Interval Metered > 1,000 kW
I191: Retail Transmission Rate - Line Connection Service Rate
I192: Retail Transmission Rate - Network Service Rate
I193: Retail Transmission Rate - Network Service Rate - (less than 1,000 kW)
I194: Retail Transmission Rate - Network Service Rate - Interval Metered
I195: Retail Transmission Rate - Network Service Rate - Interval Metered (1,000 to 4,999 kW)
I196: Retail Transmission Rate - Network Service Rate - Interval Metered (less than 1,000 kW)
I197: Retail Transmission Rate - Network Service Rate - Interval Metered > 1,000 kW
I198: Retail Transmission Rate - Transformation Connection Service Rate
I199: Rider for Global Adjustment Sub-Account Disposition (2012) - effective until April 30, 2016 Applicable only for Non-RPP Customers
I200: Rural or Remote Electricity Rate Protection Charge (RRRP)
... 14 more rows

Sheet Sheet1 (hidden)
